Workbook

Sheet Olimpíadas
B6: Olimpíadas da Ortografia
B19: CLASSIF MENSAL E ORDEM | I19: CLASSIF POR GRUPOS

Sheet lista_alunos
B4: Olimpíadas da Ortografia
E6: LISTA DE ALUNOS
B7: DATA E HORA
B8: =NOW() -> 2022-03-07T21:12:40.540
G9: N.º | H9: Nome Aluno(a)
G10: 1 | H10: a
G11: 2 | H11: B
G12: 3 | H12: C
G13: 4 | H13: D
G14: 5 | H14: E
G15: 6 | H15: F
G16: 7 | H16: G
G17: 8 | H17: H
G18: 9 | H18: I
G19: 10 | H19: J
G20: 11 | H20: L
G21: 12 | H21: M
G22: 13 | H22: N
G23: 14 | H23: O
G24: 15 | H24: P
G25: 16
G26: 17
G27: 18
G28: 19
G29: 20
G30: 21
G31: 22
G32: 23
G33: 24
G34: 25
G35: 26

Sheet campeonato
C2: CAMPEONATO DAS OLIMPÍADAS DA ORTOGRAFIA
C7: MESES DO ANO | G7: setembro | K7: outubro | P7: novembro | U7: dezembro | Z7: janeiro | AE7: fevereiro | AJ7: março | AO7: abril | AT7: maio | AY7: junho
A8: N.º | B8: Nome Aluno(a) | C8: Total ANUAL | D8: F | E8: B | F8: J1 | G8: J2 | H8: J3 | I8: J4 | J8: Total | K8: J5 | L8: J6 | M8: J7 | N8: J8 | O8: Total | P8: J9 | Q8: J10 | R8: J11 | S8: J12 | T8: Total | U8: J13 | V8: J14 | W8: J15 | X8: J16 | Y8: Total | Z8: j17 | AA8: J18 | AB8: J19 | AC8: J20 | AD8: Total | AE8: j21 | AF8: J22 | AG8: J23 | AH8: J24 | AI8: Total | AJ8: J25 | AK8: J26 | AL8: J27 | AM8: J28 | AN8: Total | AO8: j29 | AP8: J30 | AQ8: J31 | AR8: J32 | AS8: TOTAL | AT8: J33 | AU8: J34 | AV8: J35 | AW8: J36 | AX8: TOTAL | AY8: J37 | AZ8: J38 | BA8: J39 | BB8: J40 | BC8: Total
A9: 1 | B9: =lista_alunos!H10 -> a | C9: =SUM($J9,$O9,$T9,$Y9,$AI9,$AN9,$AS9,$AX9,$BC9,) -> 360 | D9: =COUNTIF($F9:$BB9,"*F*") -> 3 | E9: =COUNTIF($F9:$BB9,"*B*") -> 1 | F9: 54 | G9: 4 | H9: 98 | I9: 4 | J9: =SUM(F9:I9) -> 160 | K9: 136 | L9: F | M9: F | N9: 12 | O9: =SUM(K9:N9) -> 148 | P9: B | Q9: F | R9: 1 | T9: =SUM(P9:S9) -> 1 | U9: 1 | V9: 2 | W9: 1 | X9: 3 | Y9: =SUM(U9:X9) -> 7 | Z9: 2 | AC9: 5 | AD9: =SUM(Z9:AC9) -> 7 | AE9: 1 | AH9: 3 | AI9: =SUM(AE9:AH9) -> 4 | AJ9: 2 | AM9: 30 | AN9: =SUM(AJ9:AM9) -> 32 | AS9: =SUM(AO9:AR9) -> 0 | AW9: 3 | AX9: =SUM(AT9:AW9) -> 3 | AZ9: 1 | BA9: 4 | BC9: =SUM(AY9:BB9) -> 5
A10: 2 | B10: =lista_alunos!H11 -> B | C10: =SUM($J10,$O10,$T10,$Y10,$AI10,$AN10,$AS10,$AX10,$BC10,) -> 124 | D10: =COUNTIF($F10:$BB10,"*F*") -> 1 | E10: =COUNTIF($F10:$BB10,"*B*") -> 0 | F10: 2 | G10: 18 | H10: 34 | J10: =SUM(F10:I10) -> 54 | K10: 48 | L10: F | M10: 22 | O10: =SUM(K10:N10) -> 70 | T10: =SUM(P10:S10) -> 0 | Y10: =SUM(U10,X10) -> 0 | AD10: =SUM(Z10:AC10) -> 0 | AI10: =SUM(AE10:AH10) -> 0 | AN10: =SUM(AJ10:AM10) -> 0 | AS10: =SUM(AO10:AR10) -> 0 | AX10: =SUM(AT10:AW10) -> 0 | BC10: =SUM(AY10:BB10) -> 0
A11: 3 | B11: =lista_alunos!H12 -> C | C11: 283 | D11: =COUNTIF($F11:$BB11,"*F*") -> 0 | E11: =COUNTIF($F11:$BB11,"*B*") -> 0 | F11: 23 | G11: 100 | H11: 22 | I11: 25 | J11: 170 | K11: 12 | L11: 48 | N11: 27 | O11: 87 | T11: 0 | Y11: 0 | AD11: 0 | AI11: 0 | AJ11: 22 | AM11: 4 | AN11: 26 | AS11: 0 | AX11: 0 | BC11: 0
A12: 4 | B12: =lista_alunos!H13 -> D | C12: 134 | D12: =COUNTIF($F12:$BB12,"*F*") -> 1 | E12: =COUNTIF($F12:$BB12,"*B*") -> 0 | F12: 60 | G12: 7 | H12: 5 | J12: 72 | K12: 16 | L12: f | M12: 38 | O12: 54 | T12: 0 | Y12: 0 | AD12: 0 | AI12: 0 | AN12: 0 | AS12: 0 | AW12: 8 | AX12: 8 | BC12: 0
A13: 5 | B13: =lista_alunos!H14 -> E | C13: 361 | D13: =COUNTIF($F13:$BB13,"*F*") -> 0 | E13: 0 | F13: 80 | G13: 24 | H13: 68 | J13: 172 | K13: 137 | L13: 52 | O13: 189 | T13: 0 | Y13: 0 | AA13: 7 | AD13: 7 | AI13: 0 | AN13: 0 | AS13: 0 | AX13: 0 | BC13: 0
A14: 6 | B14: =lista_alunos!H15 -> F | C14: 108 | D14: =COUNTIF($F14:$BB14,"*F*") -> 0 | E14: 3 | G14: 21 | H14: 45 | J14: 66 | K14: 41 | L14: b | M14: B | N14: B | O14: 41 | T14: 0 | Y14: 0 | AD14: 0 | AI14: 0 | AJ14: 1 | AN14: 1 | AS14: 0 | AX14: 0 | BC14: 0
A15: 7 | B15: =lista_alunos!H16 -> G | C15: 155 | D15: 0 | E15: 1 | J15: 0 | K15: B | L15: 96 | O15: 96 | T15: 0 | Y15: 0 | AD15: 0 | AE15: 43 | AI15: 43 | AN15: 0 | AS15: 0 | AX15: 0 | AZ15: 16 | BC15: 16
A16: 8 | B16: =lista_alunos!H17 -> H | C16: 256 | D16: 0 | E16: 1 | F16: 100 | H16: 10 | J16: 110 | K16: 146 | L16: b | O16: 146 | T16: 0 | Y16: 0 | AD16: 0 | AI16: 0 | AN16: 0 | AS16: 0 | AX16: 0 | BC16: 0
A17: 9 | B17: =lista_alunos!H18 -> I | C17: 176 | D17: 0 | E17: 0 | J17: 0 | K17: 74 | L17: 102 | O17: 176 | T17: 0 | Y17: 0 | AD17: 0 | AI17: 0 | AN17: 0 | AS17: 0 | AX17: 0 | BC17: 0
A18: 10 | B18: =lista_alunos!H19 -> J | C18: 139 | D18: 1 | E18: 0 | J18: 0 | K18: 121 | L18: f | O18: 121 | T18: 0 | Y18: 0 | AD18: 0 | AH18: 18 | AI18: 18 | AN18: 0 | AS18: 0 | AX18: 0 | BC18: 0
A19: 11 | B19: =lista_alunos!H20 -> L | C19: 15 | D19: 1 | E19: 0 | J19: 0 | K19: F | L19: 15 | O19: 15 | T19: 0 | Y19: 0 | AD19: 0 | AI19: 0 | AN19: 0 | AS19: 0 | AX19: 0 | BC19: 0
A20: 12 | B20: =lista_alunos!H21 -> M | C20: 135 | D20: 0 | E20: 1 | J20: 0 | K20: B | L20: 70 | M20: 65 | O20: 135 | T20: 0 | Y20: 0 | AD20: 0 | AI20: 0 | AN20: 0 | AS20: 0 | AX20: 0 | BC20: 0
A21: 13 | B21: =lista_alunos!H22 -> N | C21: 285 | D21: 0 | E21: 0 | J21: 0 | K21: 125 | L21: 80 | N21: 59 | O21: 264 | T21: 0 | Y21: 0 | AD21: 0 | AI21: 0 | AM21: 21 | AN21: 21 | AS21: 0 | AX21: 0 | BC21: 0
A22: 14 | B22: =lista_alunos!H23 -> O | C22: 142 | D22: 0 | E22: 0 | J22: 0 | K22: 61 | L22: 81 | O22: 142 | T22: 0 | Y22: 0 | AD22: 0 | AI22: 0 | AN22: 0 | AS22: 0 | AX22: 0 | BC22: 0
A23: 15 | B23: =lista_alunos!H24 -> P | C23: 374 | D23: 0 | E23: 0 | J23: 0 | K23: 111 | L23: 86 | M23: 97 | O23: 294 | T23: 0 | Y23: 0 | AD23: 0 | AI23: 0 | AJ23: 80 | AN23: 80 | AS23: 0 | AX23: 0 | BC23: 0
A24: 16 | B24: =lista_alunos!H25 -> 0 | C24: 226 | D24: 0 | E24: 0 | I24: 12 | J24: 12 | K24: 126 | L24: 88 | O24: 214 | T24: 0 | Y24: 0 | AD24: 0 | AI24: 0 | AN24: 0 | AS24: 0 | AX24: 0 | BC24: 0
A25: 17 | B25: =lista_alunos!H26 -> 0 | C25: 194 | D25: 0 | E25: 0 | J25: 0 | K25: 100 | L25: 94 | O25: 194 | T25: 0 | Y25: 0 | AD25: 0 | AI25: 0 | AN25: 0 | AS25: 0 | AX25: 0 | BC25: 0
A26: 18 | B26: =lista_alunos!H27 -> 0 | C26: 0 | D26: 0 | E26: 0 | J26: 0 | O26: 0 | T26: 0 | Y26: 0 | AD26: 0 | AI26: 0 | AN26: 0 | AS26: 0 | AX26: 0 | BC26: 0
A27: 19 | B27: =lista_alunos!H28 -> 0 | C27: 0 | D27: 0 | E27: 0 | J27: 0 | O27: 0 | T27: 0 | Y27: 0 | AD27: 0 | AI27: 0 | AN27: 0 | AS27: 0 | AX27: 0 | BC27: 0
A28: 20 | B28: =lista_alunos!H29 -> 0 | C28: 0 | D28: 0 | E28: 0 | J28: 0 | O28: 0 | T28: 0 | Y28: 0 | AD28: 0 | AI28: 0 | AN28: 0 | AS28: 0 | AX28: 0 | BC28: 0
A29: 21 | B29: =lista_alunos!H30 -> 0 | C29: 0 | D29: 0 | E29: 0 | J29: 0 | O29: 0 | T29: 0 | Y29: 0 | AD29: 0 | AI29: 0 | AN29: 0 | AS29: 0 | AX29: 0 | BC29: 0
A30: 22 | B30: =lista_alunos!H31 -> 0 | C30: 0 | D30: 0 | E30: 0 | J30: 0 | O30: 0 | T30: 0 | Y30: 0 | AD30: 0 | AI30: 0 | AN30: 0 | AS30: 0 | AX30: 0 | BC30: 0
A31: 23 | B31: =lista_alunos!H32 -> 0 | C31: 0 | D31: 0 | E31: 0 | J31: 0 | O31: 0 | T31: 0 | Y31: 0 | AD31: 0 | AI31: 0 | AN31: 0 | AS31: 0 | AX31: 0 | BC31: 0
A32: 24 | B32: =lista_alunos!H33 -> 0 | C32: 0 | D32: 0 | E32: 0 | J32: 0 | O32: 0 | T32: 0 | Y32: 0 | AD32: 0 | AI32: 0 | AN32: 0 | AS32: 0 | AX32: 0 | BC32: 0
A33: 25 | B33: =lista_alunos!H34 -> 0 | C33: 0 | D33: 0 | E33: 0 | J33: 0 | O33: 0 | T33: 0 | Y33: 0 | AD33: 0 | AI33: 0 | AN33: 0 | AS33: 0 | AX33: 0 | BC33: 0
A34: 26 | B34: =lista_alunos!H35 -> 0 | C34: 99 | D34: 0 | E34: 0 | H34: 99 | J34: 99 | O34: 0 | T34: 0 | Y34: 0 | AD34: 0 | AI34: 0 | AN34: 0 | AS34: 0 | AX34: 0 | BC34: 0
B35: Total | C35: =SUM(C9:C34) -> 3566 | D35: =SUM(D9:D34) -> 7 | E35: =SUM(E9:E34) -> 7 | F35: =SUM(F9:F34) -> 319 | G35: =SUM(G9:G34) -> 174 | H35: 381 | I35: 41 | J35: 915 | K35: 1254 | L35: 812 | M35: 222 | N35: 98 | O35: 2386 | P35: 0 | Q35: 0 | R35: 1 | S35: 0 | T35: 1 | U35: 1 | V35: 2 | W35: 1 | X35: 3 | Y35: 7 | Z35: 2 | AA35: 7 | AB35: 0 | AC35: 5 | AD35: 14 | AE35: 44 | AF35: 0 | AG35: 0 | AH35: 21 | AI35: 65 | AJ35: 105 | AK35: 0 | AL35: 0 | AM35: 55 | AN35: 160 | AO35: 0 | AP35: 0 | AQ35: 0 | AR35: 0 | AS35: 0 | AT35: 0 | AU35: 0 | AV35: 0 | AW35: 11 | AX35: 11 | AY35: 0 | AZ35: 17 | BA35: 4 | BB35: 0 | BC35: 21
B40: LISTA DA FALTA DE PRESENÇAS EM JOGOS DA ORTOGRAFIA
A43: N.º | B43: Nome Aluno(a) | C43: Árbitros | F43: FALTA PRESENÇA
A44: 1 | B44: =lista_alunos!H10 -> a | C44: =E9 -> 1 | F44: =E9 -> 1
A45: 2 | B45: =lista_alunos!H11 -> B | C45: 0 | F45: =E10 -> 0
A46: 3 | B46: =lista_alunos!H12 -> C | C46: 0 | F46: 0
A47: 4 | B47: =lista_alunos!H13 -> D | C47: 0 | F47: 0
A48: 5 | B48: =lista_alunos!H14 -> E | C48: 0 | F48: 0
A49: 6 | B49: =lista_alunos!H15 -> F | C49: 3 | F49: 3
A50: 7 | B50: =lista_alunos!H16 -> G | C50: 1 | F50: 1
A51: 8 | B51: =lista_alunos!H17 -> H | C51: 1 | F51: 1
A52: 9 | B52: =lista_alunos!H18 -> I | C52: 0 | F52: 0
A53: 10 | B53: =lista_alunos!H19 -> J | C53: 0 | F53: 0
A54: 11 | B54: =lista_alunos!H20 -> L | C54: 0 | F54: 0
A55: 12 | B55: =lista_alunos!H21 -> M | C55: 1 | F55: 1
A56: 13 | B56: =lista_alunos!H22 -> N | C56: 0 | F56: 0
A57: 14 | B57: =lista_alunos!H23 -> O | C57: 0 | F57: 0
A58: 15 | B58: =lista_alunos!H24 -> P | C58: 0 | F58: 0
A59: 16 | B59: =lista_alunos!H25 -> 0 | C59: 0 | F59: 0
A60: 17 | B60: =lista_alunos!H26 -> 0 | C60: 0 | F60: 0
A61: 18 | B61: =lista_alunos!H27 -> 0 | C61: 0 | F61: 0
A62: 19 | B62: =lista_alunos!H28 -> 0 | C62: 0 | F62: 0
A63: 20 | B63: =lista_alunos!H29 -> 0 | C63: 0 | F63: 0
A64: 21 | B64: =lista_alunos!H30 -> 0 | C64: 0 | F64: 0
A65: 22 | B65: =lista_alunos!H31 -> 0 | C65: 0 | F65: 0
A66: 23 | B66: =lista_alunos!H32 -> 0 | C66: 0 | F66: 0
A67: 24 | B67: =lista_alunos!H33 -> 0 | C67: 0 | F67: 0
A68: 25 | B68: =lista_alunos!H34 -> 0 | C68: 0 | F68: 0
A69: 26 | B69: =lista_alunos!H35 -> 0 | C69: 0 | F69: 0
C72: CLASSIFICAÇÃO POR PERÍODOS
C74: NOME | L74: 1ºPeríodo | O74: 2ºPeríodo | R74: 3ºPerído
C75: =lista_alunos!H10 -> a | L75: =SUM(J9,9,O9,T9,Y9) -> 325 | O75: =SUM(AD9,AI9,AN9) -> 43 | R75: =SUM(AS9,AX9,BC9) -> 8
C76: =lista_alunos!H11 -> B | L76: =SUM(J10,9,O10,T10,Y10) -> 133 | O76: =SUM(AD10,AI10,AN10) -> 0 | R76: =SUM(AS10,AX10,BC10) -> 0
C77: =lista_alunos!H12 -> C | L77: 266 | O77: 26 | R77: 0
C78: =lista_alunos!H13 -> D | L78: 135 | O78: 0 | R78: 8
C79: =lista_alunos!H14 -> E | L79: 370 | O79: 7 | R79: 0
C80: =lista_alunos!H15 -> F | L80: 116 | O80: 1 | R80: 0
C81: =lista_alunos!H16 -> G | L81: 105 | O81: 43 | R81: 16
C82: =lista_alunos!H17 -> H | L82: 265 | O82: 0 | R82: 0
C83: =lista_alunos!H18 -> I | L83: 185 | O83: 0 | R83: 0
C84: =lista_alunos!H19 -> J | L84: 130 | O84: 18 | R84: 0
C85: =lista_alunos!H20 -> L | L85: 24 | O85: 0 | R85: 0
C86: =lista_alunos!H21 -> M | L86: 144 | O86: 0 | R86: 0
C87: =lista_alunos!H22 -> N | L87: 273 | O87: 21 | R87: 0
C88: =lista_alunos!H23 -> O | L88: 151 | O88: 0 | R88: 0
C89: =lista_alunos!H24 -> P | L89: 303 | O89: 80 | R89: 0
C90: =lista_alunos!H25 -> 0 | L90: 235 | O90: 0 | R90: 0
C91: =lista_alunos!H26 -> 0 | L91: 203 | O91: 0 | R91: 0
C92: =lista_alunos!H27 -> 0 | L92: 9 | O92: 0 | R92: 0
C93: =lista_alunos!H28 -> 0 | L93: 9 | O93: 0 | R93: 0
C94: =lista_alunos!H29 -> 0 | L94: 9 | O94: 0 | R94: 0
C95: =lista_alunos!H30 -> 0 | L95: 9 | O95: 0 | R95: 0
C96: =lista_alunos!H31 -> 0 | L96: 9 | O96: 0 | R96: 0
C97: =lista_alunos!H32 -> 0 | L97: 9 | O97: 0 | R97: 0
C98: =lista_alunos!H33 -> 0 | L98: 9 | O98: 0 | R98: 0
C99: =lista_alunos!H34 -> 0 | L99: 9 | O99: 0 | R99: 0
C100: =lista_alunos!H35 -> 0 | L100: 108 | O100: 0 | R100: 0

Sheet classif-individual
A3: CLASSIFICAÇÃO INDIVIDUAL
E6: ANUAL
C9: MESES DO ANO
B10: Nome Aluno(a) | C10: setembro | E10: outubro | F10: novembro | H10: dezembro | I10: janeiro | K10: fevereiro | L10: março | N10: abril | P10: maio | R10: junho | T10: TOTAL
B11: =lista_alunos!H10 -> a | C11: =campeonato!J9 -> 160 | E11: =campeonato!O9 -> 148 | F11: =campeonato!T9 -> 1 | H11: =campeonato!Y9 -> 7 | I11: =campeonato!AD9 -> 7 | K11: =campeonato!AI9 -> 4 | L11: =campeonato!AN9 -> 32 | N11: =campeonato!AS9 -> 0 | P11: =campeonato!AX9 -> 3 | R11: =campeonato!BC9 -> 5 | T11: =SUM(C11:S11) -> 367
B12: =lista_alunos!H11 -> B | C12: =campeonato!J10 -> 54 | E12: =campeonato!O10 -> 70 | F12: =campeonato!T10 -> 0 | H12: =campeonato!Y10 -> 0 | I12: =campeonato!AD10 -> 0 | K12: =campeonato!AI10 -> 0 | L12: =campeonato!AN10 -> 0 | N12: =campeonato!AS10 -> 0 | P12: =campeonato!AX10 -> 0 | R12: =campeonato!BC10 -> 0 | T12: =SUM(C12:S12) -> 124
B13: =lista_alunos!H12 -> C | C13: =campeonato!J11 -> 170 | E13: =campeonato!O11 -> 87 | F13: =campeonato!T11 -> 0 | H13: =campeonato!Y11 -> 0 | I13: =campeonato!AD11 -> 0 | K13: =campeonato!AI11 -> 0 | L13: =campeonato!AN11 -> 26 | N13: =campeonato!AS11 -> 0 | P13: =campeonato!AX11 -> 0 | R13: =campeonato!BC11 -> 0 | T13: 283
B14: =lista_alunos!H13 -> D | C14: =campeonato!J12 -> 72 | E14: =campeonato!O12 -> 54 | F14: =campeonato!T12 -> 0 | H14: =campeonato!Y12 -> 0 | I14: =campeonato!AD12 -> 0 | K14: =campeonato!AI12 -> 0 | L14: =campeonato!AN12 -> 0 | N14: =campeonato!AS12 -> 0 | P14: =campeonato!AX12 -> 8 | R14: =campeonato!BC12 -> 0 | T14: 134
B15: =lista_alunos!H14 -> E | C15: =campeonato!J13 -> 172 | E15: =campeonato!O13 -> 189 | F15: =campeonato!T13 -> 0 | H15: =campeonato!Y13 -> 0 | I15: =campeonato!AD13 -> 7 | K15: =campeonato!AI13 -> 0 | L15: =campeonato!AN13 -> 0 | N15: =campeonato!AS13 -> 0 | P15: =campeonato!AX13 -> 0 | R15: =campeonato!BC13 -> 0 | T15: 368
B16: =lista_alunos!H15 -> F | C16: =campeonato!J14 -> 66 | E16: =campeonato!O14 -> 41 | F16: =campeonato!T14 -> 0 | H16: =campeonato!Y14 -> 0 | I16: =campeonato!AD14 -> 0 | K16: =campeonato!AI14 -> 0 | L16: =campeonato!AN14 -> 1 | N16: =campeonato!AS14 -> 0 | P16: =campeonato!AX14 -> 0 | R16: =campeonato!BC14 -> 0 | T16: 108
B17: =lista_alunos!H16 -> G | C17: =campeonato!J15 -> 0 | E17: =campeonato!O15 -> 96 | F17: =campeonato!T15 -> 0 | H17: =campeonato!Y15 -> 0 | I17: =campeonato!AD15 -> 0 | K17: =campeonato!AI15 -> 43 | L17: =campeonato!AN15 -> 0 | N17: =campeonato!AS15 -> 0 | P17: =campeonato!AX15 -> 0 | R17: =campeonato!BC15 -> 16 | T17: 155
B18: =lista_alunos!H17 -> H | C18: =campeonato!J16 -> 110 | E18: =campeonato!O16 -> 146 | F18: =campeonato!T16 -> 0 | H18: =campeonato!Y16 -> 0 | I18: =campeonato!AD16 -> 0 | K18: =campeonato!AI16 -> 0 | L18: =campeonato!AN16 -> 0 | N18: =campeonato!AS16 -> 0 | P18: =campeonato!AX16 -> 0 | R18: =campeonato!BC16 -> 0 | T18: 256
B19: =lista_alunos!H18 -> I | C19: =campeonato!J17 -> 0 | E19: =campeonato!O17 -> 176 | F19: =campeonato!T17 -> 0 | H19: =campeonato!Y17 -> 0 | I19: =campeonato!AD17 -> 0 | K19: =campeonato!AI17 -> 0 | L19: =campeonato!AN17 -> 0 | N19: =campeonato!AS17 -> 0 | P19: =campeonato!AX17 -> 0 | R19: =campeonato!BC17 -> 0 | T19: 176
B20: =lista_alunos!H19 -> J | C20: =campeonato!J18 -> 0 | E20: =campeonato!O18 -> 121 | F20: =campeonato!T18 -> 0 | H20: =campeonato!Y18 -> 0 | I20: =campeonato!AD18 -> 0 | K20: =campeonato!AI18 -> 18 | L20: =campeonato!AN18 -> 0 | N20: =campeonato!AS18 -> 0 | P20: =campeonato!AX18 -> 0 | R20: =campeonato!BC18 -> 0 | T20: 139
B21: =lista_alunos!H20 -> L | C21: =campeonato!J19 -> 0 | E21: =campeonato!O19 -> 15 | F21: =campeonato!T19 -> 0 | H21: =campeonato!Y19 -> 0 | I21: =campeonato!AD19 -> 0 | K21: =campeonato!AI19 -> 0 | L21: =campeonato!AN19 -> 0 | N21: =campeonato!AS19 -> 0 | P21: =campeonato!AX19 -> 0 | R21: =campeonato!BC19 -> 0 | T21: 15
B22: =lista_alunos!H21 -> M | C22: =campeonato!J20 -> 0 | E22: =campeonato!O20 -> 135 | F22: =campeonato!T20 -> 0 | H22: =campeonato!Y20 -> 0 | I22: =campeonato!AD20 -> 0 | K22: =campeonato!AI20 -> 0 | L22: =campeonato!AN20 -> 0 | N22: =campeonato!AS20 -> 0 | P22: =campeonato!AX20 -> 0 | R22: =campeonato!BC20 -> 0 | T22: 135
B23: =lista_alunos!H22 -> N | C23: =campeonato!J21 -> 0 | E23: =campeonato!O21 -> 264 | F23: =campeonato!T21 -> 0 | H23: =campeonato!Y21 -> 0 | I23: =campeonato!AD21 -> 0 | K23: =campeonato!AI21 -> 0 | L23: =campeonato!AN21 -> 21 | N23: =campeonato!AS21 -> 0 | P23: =campeonato!AX21 -> 0 | R23: =campeonato!BC21 -> 0 | T23: 285
B24: =lista_alunos!H23 -> O | C24: =campeonato!J22 -> 0 | E24: =campeonato!O22 -> 142 | F24: =campeonato!T22 -> 0 | H24: =campeonato!Y22 -> 0 | I24: =campeonato!AD22 -> 0 | K24: =campeonato!AI22 -> 0 | L24: =campeonato!AN22 -> 0 | N24: =campeonato!AS22 -> 0 | P24: =campeonato!AX22 -> 0 | R24: =campeonato!BC22 -> 0 | T24: 142
B25: =lista_alunos!H24 -> P | C25: =campeonato!J23 -> 0 | E25: =campeonato!O23 -> 294 | F25: =campeonato!T23 -> 0 | H25: =campeonato!Y23 -> 0 | I25: =campeonato!AD23 -> 0 | K25: =campeonato!AI23 -> 0 | L25: =campeonato!AN23 -> 80 | N25: =campeonato!AS23 -> 0 | P25: =campeonato!AX23 -> 0 | R25: =campeonato!BC23 -> 0 | T25: 374
B26: =lista_alunos!H25 -> 0 | C26: =campeonato!J24 -> 12 | E26: =campeonato!O24 -> 214 | F26: =campeonato!T24 -> 0 | H26: =campeonato!Y24 -> 0 | I26: =campeonato!AD24 -> 0 | K26: =campeonato!AI24 -> 0 | L26: =campeonato!AN24 -> 0 | N26: =campeonato!AS24 -> 0 | P26: =campeonato!AX24 -> 0 | R26: =campeonato!BC24 -> 0 | T26: 226
B27: =lista_alunos!H26 -> 0 | C27: =campeonato!J25 -> 0 | E27: =campeonato!O25 -> 194 | F27: =campeonato!T25 -> 0 | H27: =campeonato!Y25 -> 0 | I27: =campeonato!AD25 -> 0 | K27: =campeonato!AI25 -> 0 | L27: =campeonato!AN25 -> 0 | N27: =campeonato!AS25 -> 0 | P27: =campeonato!AX25 -> 0 | R27: =campeonato!BC25 -> 0 | T27: 194
B28: =lista_alunos!H27 -> 0 | C28: =campeonato!J26 -> 0 | E28: =campeonato!O26 -> 0 | F28: =campeonato!T26 -> 0 | H28: =campeonato!Y26 -> 0 | I28: =campeonato!AD26 -> 0 | K28: =campeonato!AI26 -> 0 | L28: =campeonato!AN26 -> 0 | N28: =campeonato!AS26 -> 0 | P28: =campeonato!AX26 -> 0 | R28: =campeonato!BC26 -> 0 | T28: 0
B29: =lista_alunos!H28 -> 0 | C29: =campeonato!J27 -> 0 | E29: =campeonato!O27 -> 0 | F29: =campeonato!T27 -> 0 | H29: =campeonato!Y27 -> 0 | I29: =campeonato!AD27 -> 0 | K29: =campeonato!AI27 -> 0 | L29: =campeonato!AN27 -> 0 | N29: =campeonato!AS27 -> 0 | P29: =campeonato!AX27 -> 0 | R29: =campeonato!BC27 -> 0 | T29: 0
B30: =lista_alunos!H29 -> 0 | C30: =campeonato!J28 -> 0 | E30: =campeonato!O28 -> 0 | F30: =campeonato!T28 -> 0 | H30: =campeonato!Y28 -> 0 | I30: =campeonato!AD28 -> 0 | K30: =campeonato!AI28 -> 0 | L30: =campeonato!AN28 -> 0 | N30: =campeonato!AS28 -> 0 | P30: =campeonato!AX28 -> 0 | R30: =campeonato!BC28 -> 0 | T30: 0
B31: =lista_alunos!H30 -> 0 | C31: =campeonato!J29 -> 0 | E31: =campeonato!O29 -> 0 | F31: =campeonato!T29 -> 0 | H31: =campeonato!Y29 -> 0 | I31: =campeonato!AD29 -> 0 | K31: =campeonato!AI29 -> 0 | L31: =campeonato!AN29 -> 0 | N31: =campeonato!AS29 -> 0 | P31: =campeonato!AX29 -> 0 | R31: =campeonato!BC29 -> 0 | T31: 0
B32: =lista_alunos!H31 -> 0 | C32: =campeonato!J30 -> 0 | E32: =campeonato!O30 -> 0 | F32: =campeonato!T30 -> 0 | H32: =campeonato!Y30 -> 0 | I32: =campeonato!AD30 -> 0 | K32: =campeonato!AI30 -> 0 | L32: =campeonato!AN30 -> 0 | N32: =campeonato!AS30 -> 0 | P32: =campeonato!AX30 -> 0 | R32: =campeonato!BC30 -> 0 | T32: 0
B33: =lista_alunos!H32 -> 0 | C33: =campeonato!J31 -> 0 | E33: =campeonato!O31 -> 0 | F33: =campeonato!T31 -> 0 | H33: =campeonato!Y31 -> 0 | I33: =campeonato!AD31 -> 0 | K33: =campeonato!AI31 -> 0 | L33: =campeonato!AN31 -> 0 | N33: =campeonato!AS31 -> 0 | P33: =campeonato!AX31 -> 0 | R33: =campeonato!BC31 -> 0 | T33: 0
B34: =lista_alunos!H33 -> 0 | C34: =campeonato!J32 -> 0 | E34: =campeonato!O32 -> 0 | F34: =campeonato!T32 -> 0 | H34: =campeonato!Y32 -> 0 | I34: =campeonato!AD32 -> 0 | K34: =campeonato!AI32 -> 0 | L34: =campeonato!AN32 -> 0 | N34: =campeonato!AS32 -> 0 | P34: =campeonato!AX32 -> 0 | R34: =campeonato!BC32 -> 0 | T34: 0
B35: =lista_alunos!H34 -> 0 | C35: =campeonato!J33 -> 0 | E35: =campeonato!O33 -> 0 | F35: =campeonato!T33 -> 0 | H35: =campeonato!Y33 -> 0 | I35: =campeonato!AD33 -> 0 | K35: =campeonato!AI33 -> 0 | L35: =campeonato!AN33 -> 0 | N35: =campeonato!AS33 -> 0 | P35: =campeonato!AX33 -> 0 | R35: =campeonato!BC33 -> 0 | T35: 0
B36: =lista_alunos!H35 -> 0 | C36: =campeonato!J34 -> 99 | E36: =campeonato!O34 -> 0 | F36: =campeonato!T34 -> 0 | H36: =campeonato!Y34 -> 0 | I36: =campeonato!AD34 -> 0 | K36: =campeonato!AI34 -> 0 | L36: =campeonato!AN34 -> 0 | N36: =campeonato!AS34 -> 0 | P36: =campeonato!AX34 -> 0 | R36: =campeonato!BC34 -> 0 | T36: 99
B44: Nome Aluno(a) | C44: TOTAL
B45: =B11 -> a | C45: =T11 -> 367
B46: =B12 -> B | C46: =T12 -> 124
B47: C | C47: 283
B48: D | C48: 134
B49: E | C49: 368
B50: F | C50: 108
B51: G | C51: 155
B52: H | C52: 256
B53: I | C53: 176
B54: J | C54: 139
B55: L | C55: 15
B56: M | C56: 135
B57: N | C57: 285
B58: O | C58: 142
B59: P | C59: 374
B60: 0 | C60: 226
B61: 0 | C61: 194
B62: 0 | C62: 0
B63: 0 | C63: 0
B64: 0 | C64: 0
B65: 0 | C65: 0
B66: 0 | C66: 0
B67: 0 | C67: 0
B68: 0 | C68: 0
B69: 0 | C69: 0
B70: 0 | C70: 99

Sheet CLASSIFICAÇÃO
A2: Jogos de setembro
C6: setembro
A7: Nome | B7: Ordem | C7: J1 | D7: Nome | E7: Ordem | F7: J2 | G7: Nome | H7: Ordem | I7: J3 | J7: Nome | K7: Ordem | L7: J4 | M7: Total
A8: =lista_alunos!H22 -> N | B8: 13 | C8: 13 | D8: =campeonato!B10 -> B | E8: =campeonato!A10 -> 2 | F8: =campeonato!G13 -> 24 | G8: =campeonato!B10 -> B | H8: =campeonato!A10 -> 2 | I8: =campeonato!H9 -> 98 | J8: =campeonato!B23 -> P | K8: =campeonato!A23 -> 15 | L8: =campeonato!I11 -> 25 | M8: =SUM(C8:L8) -> 179
A9: =lista_alunos!H19 -> J | B9: 10 | C9: =campeonato!F13 -> 80 | D9: =campeonato!B14 -> F | E9: =campeonato!A14 -> 6 | F9: =campeonato!G14 -> 21 | G9: =campeonato!B34 -> 0 | H9: =campeonato!A34 -> 26 | I9: =campeonato!H34 -> 99 | J9: =campeonato!B13 -> E | K9: =campeonato!A13 -> 5 | L9: =campeonato!I24 -> 12 | M9: 249
A10: =lista_alunos!H15 -> F | B10: 6 | C10: =campeonato!F12 -> 60 | D10: =campeonato!B13 -> E | E10: =campeonato!A13 -> 5 | F10: =campeonato!G10 -> 18 | G10: =campeonato!B9 -> a | H10: =campeonato!A9 -> 1 | I10: =campeonato!H13 -> 68 | J10: =campeonato!B12 -> D | K10: =campeonato!A12 -> 4 | L10: =campeonato!I9 -> 4 | M10: 160
A11: =lista_alunos!H10 -> a | B11: 1 | C11: =campeonato!F9 -> 54 | D11: =campeonato!B11 -> C | E11: =campeonato!A11 -> 3 | F11: =campeonato!G12 -> 7 | G11: =campeonato!B12 -> D | H11: =campeonato!A12 -> 4 | I11: =campeonato!H14 -> 45 | J11: =campeonato!B18 -> J | K11: =campeonato!A18 -> 10 | L11: =campeonato!I10 -> 0 | M11: 123
A12: =lista_alunos!H14 -> E | B12: 5 | C12: =campeonato!F11 -> 23 | D12: =campeonato!B9 -> a | E12: =campeonato!A9 -> 1 | F12: =campeonato!G9 -> 4 | G12: =campeonato!B14 -> F | H12: =campeonato!A14 -> 6 | I12: =campeonato!H10 -> 34 | J12: =campeonato!B21 -> N | K12: =campeonato!A21 -> 13 | L12: =campeonato!I13 -> 0 | M12: 81
A13: =lista_alunos!H11 -> B | B13: 2 | C13: =campeonato!F10 -> 2 | D13: =campeonato!B12 -> D | E13: =campeonato!A12 -> 4 | F13: =campeonato!G9 -> 4 | G13: =campeonato!B13 -> E | H13: =campeonato!A13 -> 5 | I13: =campeonato!H11 -> 22 | J13: =campeonato!B22 -> O | K13: =campeonato!A22 -> 14 | L13: =campeonato!I12 -> 0 | M13: 51
A14: =lista_alunos!H24 -> P | B14: 15 | C14: =campeonato!F14 -> 0 | D14: =campeonato!B20 -> M | E14: =campeonato!A20 -> 12 | F14: =campeonato!G20 -> 0 | G14: =campeonato!B16 -> H | H14: =campeonato!A16 -> 8 | I14: =campeonato!H16 -> 10 | J14: =campeonato!B20 -> M | K14: =campeonato!A20 -> 12 | L14: =campeonato!I14 -> 0 | M14: 42
A15: =lista_alunos!H23 -> O | B15: 14 | C15: =campeonato!F15 -> 0 | D15: =campeonato!B19 -> L | E15: =campeonato!A19 -> 11 | F15: =campeonato!G19 -> 0 | G15: =campeonato!B11 -> C | H15: =campeonato!A11 -> 3 | I15: =campeonato!H12 -> 5 | J15: =campeonato!B19 -> L | K15: =campeonato!A19 -> 11 | L15: =campeonato!I15 -> 0 | M15: 30
A16: =lista_alunos!H21 -> M | B16: 12 | C16: =campeonato!F17 -> 0 | D16: =campeonato!B24 -> 0 | E16: =campeonato!A24 -> 16 | F16: =campeonato!G24 -> 0 | G16: =campeonato!B18 -> J | H16: =campeonato!A18 -> 10 | I16: =campeonato!H18 -> 0 | J16: =campeonato!B24 -> 0 | K16: =campeonato!A24 -> 16 | L16: =campeonato!I16 -> 0 | M16: 42
A17: =lista_alunos!H20 -> L | B17: 11 | C17: =campeonato!F18 -> 0 | D17: =campeonato!B16 -> H | E17: =campeonato!A16 -> 8 | F17: =campeonato!G16 -> 0 | G17: =campeonato!B23 -> P | H17: =campeonato!A23 -> 15 | I17: =campeonato!H23 -> 0 | J17: =campeonato!B16 -> H | K17: =campeonato!A16 -> 8 | L17: =campeonato!I17 -> 0 | M17: 31
A18: =lista_alunos!H25 -> 0 | B18: 16 | C18: =campeonato!F19 -> 0 | D18: =campeonato!B17 -> I | E18: =campeonato!A17 -> 9 | F18: =campeonato!G17 -> 0 | G18: =campeonato!B22 -> O | H18: =campeonato!A22 -> 14 | I18: =campeonato!H22 -> 0 | J18: =campeonato!B14 -> F | K18: =campeonato!A14 -> 6 | L18: =campeonato!I18 -> 0 | M18: 29
A19: =lista_alunos!H17 -> H | B19: 8 | C19: =campeonato!F20 -> 0 | D19: =campeonato!B34 -> 0 | E19: =campeonato!A34 -> 26 | F19: =campeonato!G34 -> 0 | G19: =campeonato!B21 -> N | H19: =campeonato!A21 -> 13 | I19: =campeonato!H21 -> 0 | J19: =campeonato!B17 -> I | K19: =campeonato!A17 -> 9 | L19: =campeonato!I19 -> 0 | M19: 48
A20: =lista_alunos!H18 -> I | B20: 9 | C20: =campeonato!F21 -> 0 | D20: =campeonato!B18 -> J | E20: =campeonato!A18 -> 10 | F20: =campeonato!G18 -> 0 | G20: =campeonato!B20 -> M | H20: =campeonato!A20 -> 12 | I20: =campeonato!H20 -> 0 | J20: =campeonato!B34 -> 0 | K20: =campeonato!A34 -> 26 | L20: =campeonato!I20 -> 0 | M20: 48
A21: =lista_alunos!H26 -> 0 | B21: 17 | C21: =campeonato!F23 -> 0 | D21: =campeonato!B23 -> P | E21: =campeonato!A23 -> 15 | F21: =campeonato!G23 -> 0 | G21: =campeonato!B19 -> L | H21: =campeonato!A19 -> 11 | I21: =campeonato!H19 -> 0 | J21: =campeonato!B11 -> C | K21: =campeonato!A11 -> 3 | L21: =campeonato!I22 -> 0 | M21: 29
A22: =lista_alunos!H12 -> C | B22: 3 | C22: =campeonato!F24 -> 0 | D22: =campeonato!B22 -> O | E22: =campeonato!A22 -> 14 | F22: =campeonato!G22 -> 0 | G22: =campeonato!B24 -> 0 | H22: =campeonato!A24 -> 16 | I22: =campeonato!H24 -> 0 | J22: =campeonato!B9 -> a | K22: =campeonato!A9 -> 1 | L22: =campeonato!I23 -> 0 | M22: 31
A23: =lista_alunos!H13 -> D | B23: 4 | C23: =campeonato!F25 -> 0 | D23: =campeonato!B21 -> N | E23: =campeonato!A21 -> 13 | F23: =campeonato!G21 -> 0 | G23: =campeonato!B17 -> I | H23: =campeonato!A17 -> 9 | I23: =campeonato!H17 -> 0 | J23: =campeonato!B10 -> B | K23: =campeonato!A10 -> 2 | L23: =campeonato!I25 -> 0 | M23: 24
A24: =lista_alunos!H16 -> G | B24: 7 | C24: =campeonato!F26 -> 0 | D24: =campeonato!B15 -> G | E24: =campeonato!A15 -> 7 | F24: =campeonato!G15 -> 0 | G24: =campeonato!B25 -> 0 | H24: =campeonato!A25 -> 17 | I24: =campeonato!H25 -> 0 | J24: =campeonato!B15 -> G | K24: =campeonato!A15 -> 7 | L24: =campeonato!I26 -> 0 | M24: 31
A25: =lista_alunos!H27 -> 0 | B25: 18 | C25: =campeonato!F27 -> 0 | D25: =campeonato!B27 -> 0 | E25: =campeonato!A27 -> 19 | F25: =campeonato!G27 -> 0 | G25: =campeonato!B15 -> G | H25: =campeonato!A15 -> 7 | I25: =campeonato!H15 -> 0 | J25: =campeonato!B32 -> 0 | K25: =campeonato!A32 -> 24 | L25: =campeonato!I33 -> 0 | M25: 50
A26: =lista_alunos!H35 -> 0 | B26: 26 | C26: =campeonato!F22 -> 0 | D26: =campeonato!B25 -> 0 | E26: =campeonato!A25 -> 17 | F26: =campeonato!G25 -> 0 | G26: =campeonato!B27 -> 0 | H26: =campeonato!A27 -> 19 | I26: =campeonato!H27 -> 0 | J26: =campeonato!B25 -> 0 | K26: =campeonato!A25 -> 17 | L26: =campeonato!I21 -> 0 | M26: 53
A27: =lista_alunos!H34 -> 0 | B27: 25 | C27: =campeonato!F34 -> 0 | D27: =campeonato!B26 -> 0 | E27: =campeonato!A26 -> 18 | F27: =campeonato!G26 -> 0 | G27: =campeonato!B26 -> 0 | H27: =campeonato!A26 -> 18 | I27: =campeonato!H26 -> 0 | J27: =campeonato!B33 -> 0 | K27: =campeonato!A33 -> 25 | L27: =campeonato!I34 -> 0 | M27: 61
A28: =lista_alunos!H28 -> 0 | B28: 19 | C28: =campeonato!F28 -> 0 | D28: =campeonato!B28 -> 0 | E28: =campeonato!A28 -> 20 | F28: =campeonato!G28 -> 0 | G28: =campeonato!B28 -> 0 | H28: =campeonato!A28 -> 20 | I28: =campeonato!H28 -> 0 | J28: =campeonato!B31 -> 0 | K28: =campeonato!A31 -> 23 | L28: =campeonato!I32 -> 0 | M28: 63
A29: =lista_alunos!H29 -> 0 | B29: 20 | C29: =campeonato!F29 -> 0 | D29: =campeonato!B29 -> 0 | E29: =campeonato!A29 -> 21 | F29: =campeonato!G29 -> 0 | G29: =campeonato!B29 -> 0 | H29: =campeonato!A29 -> 21 | I29: =campeonato!H29 -> 0 | J29: =campeonato!B30 -> 0 | K29: =campeonato!A30 -> 22 | L29: =campeonato!I31 -> 0 | M29: 64
A30: =lista_alunos!H30 -> 0 | B30: 21 | C30: =campeonato!F30 -> 0 | D30: =campeonato!B30 -> 0 | E30: =campeonato!A30 -> 22 | F30: =campeonato!G30 -> 0 | G30: =campeonato!B30 -> 0 | H30: =campeonato!A30 -> 22 | I30: =campeonato!H30 -> 0 | J30: =campeonato!B29 -> 0 | K30: =campeonato!A29 -> 21 | L30: =campeonato!I30 -> 0 | M30: 65
A31: =lista_alunos!H31 -> 0 | B31: 22 | C31: =campeonato!F31 -> 0 | D31: =campeonato!B31 -> 0 | E31: =campeonato!A31 -> 23 | F31: =campeonato!G31 -> 0 | G31: =campeonato!B31 -> 0 | H31: =campeonato!A31 -> 23 | I31: =campeonato!H31 -> 0 | J31: =campeonato!B28 -> 0 | K31: =campeonato!A28 -> 20 | L31: =campeonato!I29 -> 0 | M31: 66
A32: =lista_alunos!H32 -> 0 | B32: 23 | C32: =campeonato!F32 -> 0 | D32: =campeonato!B32 -> 0 | E32: =campeonato!A32 -> 24 | F32: =campeonato!G32 -> 0 | G32: =campeonato!B32 -> 0 | H32: =campeonato!A32 -> 24 | I32: =campeonato!H32 -> 0 | J32: =campeonato!B27 -> 0 | K32: =campeonato!A27 -> 19 | L32: =campeonato!I28 -> 0 | M32: 67
A33: =lista_alunos!H33 -> 0 | B33: 24 | C33: =campeonato!F33 -> 0 | D33: =campeonato!B33 -> 0 | E33: =campeonato!A33 -> 25 | F33: =campeonato!G33 -> 0 | G33: =campeonato!B33 -> 0 | H33: =campeonato!A33 -> 25 | I33: =campeonato!H33 -> 0 | J33: =campeonato!B26 -> 0 | K33: =campeonato!A26 -> 18 | L33: =campeonato!I27 -> 0 | M33: 68
B38: JOGO 1 | H38: JOGO 2 | N38: JOGO 3 | S38: JOGO 4
C40: =LARGE(C8:C32,1) -> 80 | I40: =LARGE(F8:F32,1) -> 24 | O40: =LARGE(I8:I32,1) -> 99 | T40: =LARGE(T8:T32,1) -> 
B41: =LARGE(C8:C32,2) -> 60 | C41: 1ºLugar | D41: =LARGE(C8:C32,3) -> 54 | H41: =LARGE(F8:F32,2) -> 21 | I41: 1ºLugar | J41: =LARGE(F8:F32,3) -> 18 | N41: =LARGE(I8:I32,2) -> 98 | O41: 1ºLugar | P41: =LARGE(I8:I32,3) -> 68 | S41: =LARGE(T8:T32,2) ->  | T41: 1ºLugar | U41: =LARGE(T8:T32,3) -> 
B42: 2ºLugar | D42: 3ºLugar | F42: =LARGE(C8:C32,4) -> 23 | H42: 2ºLugar | J42: 3ºLugar | L42: =LARGE(F8:F32,4) -> 7 | N42: 2ºLugar | P42: 3ºLugar | Q42: =LARGE(I8:I32,4) -> 45 | S42: 2ºLugar | U42: 3ºLugar | V42: =LARGE(T8:T32,4) -> 
E43: 4ºLugar | K43: 4ºLugar | Q43: 4ºLugar | V43: 4ºLugar

Sheet Classif-grupos-1ºp
A2: Classificação por grupos
C6: setembro
A9: Grupo | B9: Jogos setembro
B10: J1 | C10: J2 | D10: J3 | E10: J4 | F10: Total
A11: Grupo 1 | B11: 1 | C11: 1 | D11: 1 | E11: 1 | F11: =SUM(B11:E11) -> 4
A12: Grupo2 | B12: 1 | C12: 1 | D12: 1 | E12: 1 | F12: =SUM(B12:E12) -> 4
A13: Grupo3 | B13: 1 | C13: 1 | D13: 1 | E13: 1 | F13: 4
A14: Grupo4 | B14: 1 | C14: 1 | D14: 1 | E14: 1 | F14: 4
A15: Grupo5 | B15: 1 | C15: 4 | D15: 1 | E15: 1 | F15: 7
A16: Grupo6 | B16: 1 | C16: 1 | D16: 1 | E16: 1 | F16: 4
A17: GRupo7 | B17: 1 | C17: 1 | D17: 1 | E17: 1 | F17: 4
A18: Total | B18: =SUM(B11:B17) -> 7 | C18: =SUM(C11:C17) -> 10 | D18: 7 | E18: 7 | F18: 31
C22: outubro
A25: Grupo | B25: Jogos outubro
B26: J1 | C26: J2 | D26: J3 | E26: J4 | F26: Total
A27: Grupo 1 | B27: 1 | C27: 1 | D27: 6 | E27: 1 | F27: =SUM(B27:E27) -> 9
A28: Grupo2 | B28: 1 | C28: 1 | D28: 1 | E28: 1 | F28: =SUM(B28:E28) -> 4
A29: Grupo3 | B29: 1 | C29: 1 | D29: 1 | E29: 1 | F29: 4
A30: Grupo4 | B30: 1 | C30: 1 | D30: 1 | E30: 1 | F30: 4
A31: Grupo5 | B31: 1 | C31: 4 | D31: 1 | E31: 1 | F31: 7
A32: Grupo6 | B32: 1 | C32: 1 | D32: 1 | E32: 1 | F32: 4
A33: GRupo7 | B33: 1 | C33: 1 | D33: 1 | E33: 1 | F33: 4
A34: Total | B34: =SUM(B27:B33) -> 7 | C34: =SUM(C27:C33) -> 10 | D34: =SUM(D27:D33) -> 12 | E34: =SUM(E27:E33) -> 7 | F34: 36
C37: novembro
A40: Grupo | B40: Jogos novembro
B41: J1 | C41: J2 | D41: J3 | E41: J4 | F41: Total
A42: Grupo 1 | B42: 1 | C42: 1 | D42: 6 | E42: 1 | F42: =SUM(B42:E42) -> 9
A43: Grupo2 | B43: 1 | C43: 1 | D43: 1 | E43: 1 | F43: =SUM(B43:E43) -> 4
A44: Grupo3 | B44: 1 | C44: 1 | D44: 1 | E44: 1 | F44: 4
A45: Grupo4 | B45: 1 | C45: 1 | D45: 1 | E45: 1 | F45: 4
A46: Grupo5 | B46: 1 | C46: 4 | D46: 1 | E46: 1 | F46: 7
A47: Grupo6 | B47: 1 | C47: 1 | D47: 1 | E47: 1 | F47: 4
A48: GRupo7 | B48: 1 | C48: 1 | D48: 1 | E48: 1 | F48: 4
A49: Total | B49: =SUM(B42:B48) -> 7 | C49: =SUM(C42:C48) -> 10 | D49: =SUM(D42:D48) -> 12 | E49: =SUM(E42:E48) -> 7 | F49: 36
C52: dezembro
A55: Grupo | B55: Jogos dezembro
B56: J1 | C56: J2 | D56: J3 | E56: J4 | F56: Total
A57: Grupo 1 | B57: 1 | C57: 1 | D57: 6 | E57: 1 | F57: =SUM(B57:E57) -> 9
A58: Grupo2 | B58: 1 | C58: 1 | D58: 1 | E58: 1 | F58: =SUM(B58:E58) -> 4
A59: Grupo3 | B59: 1 | C59: 1 | D59: 1 | E59: 1 | F59: 4
A60: Grupo4 | B60: 1 | C60: 1 | D60: 1 | E60: 1 | F60: 4
A61: Grupo5 | B61: 1 | C61: 4 | D61: 1 | E61: 1 | F61: 7
A62: Grupo6 | B62: 1 | C62: 1 | D62: 1 | E62: 1 | F62: 4
A63: GRupo7 | B63: 1 | C63: 1 | D63: 1 | E63: 1 | F63: 4
A64: Total | B64: =SUM(B57:B63) -> 7 | C64: =SUM(C57:C63) -> 10 | D64: =SUM(D57:D63) -> 12 | E64: =SUM(E57:E63) -> 7 | F64: 36

Sheet classif-grupos-2ºp
A2: Classificação por grupos
C6: janeiro
A9: Grupo | B9: Jogos janeiro
B10: J1 | C10: J2 | D10: J3 | E10: J4 | F10: Total
A11: Grupo 1 | B11: 1 | C11: 1 | D11: 1 | E11: 1 | F11: =SUM(B11:E11) -> 4
A12: Grupo2 | B12: 1 | C12: 1 | D12: 1 | E12: 1 | F12: =SUM(B12:E12) -> 4
A13: Grupo3 | B13: 1 | C13: 1 | D13: 1 | E13: 1 | F13: 4
A14: Grupo4 | B14: 1 | C14: 1 | D14: 1 | E14: 1 | F14: 4
A15: Grupo5 | B15: 1 | C15: 4 | D15: 1 | E15: 1 | F15: 7
A16: Grupo6 | B16: 1 | C16: 1 | D16: 1 | E16: 1 | F16: 4
A17: GRupo7 | B17: 1 | C17: 1 | D17: 1 | E17: 1 | F17: 4
A18: Total | B18: =SUM(B11:B17) -> 7 | C18: =SUM(C11:C17) -> 10 | D18: 7 | E18: 7 | F18: 31
C22: fevereiro
A25: Grupo | B25: Jogos fevereiro
B26: J1 | C26: J2 | D26: J3 | E26: J4 | F26: Total
A27: Grupo 1 | B27: 1 | C27: 1 | D27: 6 | E27: 1 | F27: =SUM(B27:E27) -> 9
A28: Grupo2 | B28: 1 | C28: 1 | D28: 1 | E28: 1 | F28: =SUM(B28:E28) -> 4
A29: Grupo3 | B29: 1 | C29: 1 | D29: 1 | E29: 1 | F29: 4
A30: Grupo4 | B30: 1 | C30: 1 | D30: 1 | E30: 1 | F30: 4
A31: Grupo5 | B31: 1 | C31: 4 | D31: 1 | E31: 1 | F31: 7
A32: Grupo6 | B32: 1 | C32: 1 | D32: 1 | E32: 1 | F32: 4
A33: GRupo7 | B33: 1 | C33: 1 | D33: 1 | E33: 1 | F33: 4
A34: Total | B34: =SUM(B27:B33) -> 7 | C34: =SUM(C27:C33) -> 10 | D34: 12 | E34: 7 | F34: 36
C37: março
A40: Grupo | B40: Jogos março
B41: J1 | C41: J2 | D41: J3 | E41: J4 | F41: Total
A42: Grupo 1 | B42: 1 | C42: 1 | D42: 6 | E42: 1 | F42: =SUM(B42:E42) -> 9
A43: Grupo2 | B43: 1 | C43: 1 | D43: 1 | E43: 1 | F43: =SUM(B43:E43) -> 4
A44: Grupo3 | B44: 1 | C44: 1 | D44: 1 | E44: 1 | F44: 4
A45: Grupo4 | B45: 1 | C45: 1 | D45: 1 | E45: 1 | F45: 4
A46: Grupo5 | B46: 1 | C46: 4 | D46: 1 | E46: 1 | F46: 7
A47: Grupo6 | B47: 1 | C47: 1 | D47: 1 | E47: 1 | F47: 4
A48: GRupo7 | B48: 1 | C48: 1 | D48: 1 | E48: 1 | F48: 4
A49: Total | B49: =SUM(B42:B48) -> 7 | C49: =SUM(C42:C48) -> 10 | D49: 12 | E49: 7 | F49: 36
C52: abril
A55: Grupo | B55: Jogos abril
B56: J1 | C56: J2 | D56: J3 | E56: J4 | F56: Total
A57: Grupo 1 | B57: 1 | C57: 1 | D57: 6 | E57: 1 | F57: =SUM(B57:E57) -> 9
A58: Grupo2 | B58: 1 | C58: 1 | D58: 1 | E58: 1 | F58: =SUM(B58:E58) -> 4
A59: Grupo3 | B59: 1 | C59: 1 | D59: 1 | E59: 1 | F59: 4
A60: Grupo4 | B60: 1 | C60: 1 | D60: 1 | E60: 1 | F60: 4
A61: Grupo5 | B61: 1 | C61: 4 | D61: 1 | E61: 1 | F61: 7
A62: Grupo6 | B62: 1 | C62: 1 | D62: 1 | E62: 1 | F62: 4
A63: GRupo7 | B63: 1 | C63: 1 | D63: 1 | E63: 1 | F63: 4
A64: Total | B64: =SUM(B57:B63) -> 7 | C64: =SUM(C57:C63) -> 10 | D64: 12 | E64: 7 | F64: 36

Sheet classif-grupos-3ºp
A2: Classificação por grupos
C6: maio
A9: Grupo | B9: Jogos maio
B10: J1 | C10: J2 | D10: J3 | E10: J4 | F10: Total
A11: Grupo 1 | B11: 1 | C11: 1 | D11: 1 | E11: 1 | F11: =SUM(B11:E11) -> 4
A12: Grupo2 | B12: 1 | C12: 1 | D12: 1 | E12: 1 | F12: =SUM(B12:E12) -> 4
A13: Grupo3 | B13: 1 | C13: 1 | D13: 1 | E13: 1 | F13: 4
A14: Grupo4 | B14: 1 | C14: 1 | D14: 1 | E14: 1 | F14: 4
A15: Grupo5 | B15: 1 | C15: 4 | D15: 1 | E15: 1 | F15: 7
A16: Grupo6 | B16: 1 | C16: 1 | D16: 1 | E16: 1 | F16: 4
A17: GRupo7 | B17: 1 | C17: 1 | D17: 1 | E17: 1 | F17: 4
A18: Total | B18: =SUM(B11:B17) -> 7 | C18: =SUM(C11:C17) -> 10 | D18: 7 | E18: 7 | F18: 31
C22: junho
A25: Grupo | B25: Jogos junho
B26: J1 | C26: J2 | D26: J3 | E26: J4 | F26: Total
A27: Grupo 1 | B27: 1 | C27: 1 | D27: 6 | E27: 1 | F27: =SUM(B27:E27) -> 9
A28: Grupo2 | B28: 1 | C28: 1 | D28: 1 | E28: 1 | F28: =SUM(B28:E28) -> 4
A29: Grupo3 | B29: 1 | C29: 1 | D29: 1 | E29: 1 | F29: 4
A30: Grupo4 | B30: 1 | C30: 1 | D30: 1 | E30: 1 | F30: 4
A31: Grupo5 | B31: 1 | C31: 4 | D31: 1 | E31: 1 | F31: 7
A32: Grupo6 | B32: 1 | C32: 1 | D32: 1 | E32: 1 | F32: 4
A33: GRupo7 | B33: 1 | C33: 1 | D33: 1 | E33: 1 | F33: 4
A34: Total | B34: =SUM(B27:B33) -> 7 | C34: =SUM(C27:C33) -> 10 | D34: 12 | E34: 7 | F34: 36

Sheet CLASSIF-FINAL-GRUPOS
A3: CLASSIFICAÇÃO POR GRUPOS
E6: ANUAL
C9: MESES DO ANO
B10: GRUPOS | C10: setembro | E10: outubro | F10: novembro | H10: dezembro | I10: janeiro | K10: fevereiro | L10: março | N10: abril | P10: maio | R10: junho | T10: TOTAL
B11: GRUPO1 | C11: ='Classif-grupos-1ºp'!F11 -> 4 | E11: ='Classif-grupos-1ºp'!F27 -> 9 | F11: ='Classif-grupos-1ºp'!F42 -> 9 | H11: ='Classif-grupos-1ºp'!F57 -> 9 | I11: ='classif-grupos-2ºp'!F11 -> 4 | K11: ='classif-grupos-2ºp'!F27 -> 9 | L11: ='classif-grupos-2ºp'!F42 -> 9 | N11: ='classif-grupos-2ºp'!F57 -> 9 | P11: ='classif-grupos-3ºp'!F11 -> 4 | R11: ='classif-grupos-3ºp'!F27 -> 9 | T11: =SUM(C11:S11) -> 75
B12: GRUPO2 | C12: ='Classif-grupos-1ºp'!F12 -> 4 | E12: ='Classif-grupos-1ºp'!F28 -> 4 | F12: ='Classif-grupos-1ºp'!F43 -> 4 | H12: ='Classif-grupos-1ºp'!F58 -> 4 | I12: ='classif-grupos-2ºp'!F12 -> 4 | K12: ='classif-grupos-2ºp'!F28 -> 4 | L12: ='classif-grupos-2ºp'!F43 -> 4 | N12: ='classif-grupos-2ºp'!F58 -> 4 | P12: ='classif-grupos-3ºp'!F12 -> 4 | R12: ='classif-grupos-3ºp'!F28 -> 4 | T12: =SUM(C12:S12) -> 40
B13: GRUPO3 | C13: ='Classif-grupos-1ºp'!F13 -> 4 | E13: ='Classif-grupos-1ºp'!F29 -> 4 | F13: ='Classif-grupos-1ºp'!F44 -> 4 | H13: ='Classif-grupos-1ºp'!F59 -> 4 | I13: ='classif-grupos-2ºp'!F13 -> 4 | K13: ='classif-grupos-2ºp'!F29 -> 4 | L13: ='classif-grupos-2ºp'!F44 -> 4 | N13: ='classif-grupos-2ºp'!F59 -> 4 | P13: ='classif-grupos-3ºp'!F13 -> 4 | R13: ='classif-grupos-3ºp'!F29 -> 4 | T13: 40
B14: GRUPO4 | C14: ='Classif-grupos-1ºp'!F14 -> 4 | E14: ='Classif-grupos-1ºp'!F30 -> 4 | F14: ='Classif-grupos-1ºp'!F45 -> 4 | H14: ='Classif-grupos-1ºp'!F60 -> 4 | I14: ='classif-grupos-2ºp'!F14 -> 4 | K14: ='classif-grupos-2ºp'!F30 -> 4 | L14: ='classif-grupos-2ºp'!F45 -> 4 | N14: ='classif-grupos-2ºp'!F60 -> 4 | P14: ='classif-grupos-3ºp'!F14 -> 4 | R14: ='classif-grupos-3ºp'!F30 -> 4 | T14: 40
B15: GRUPO5 | C15: ='Classif-grupos-1ºp'!F15 -> 7 | E15: ='Classif-grupos-1ºp'!F31 -> 7 | F15: ='Classif-grupos-1ºp'!F46 -> 7 | H15: ='Classif-grupos-1ºp'!F61 -> 7 | I15: ='classif-grupos-2ºp'!F15 -> 7 | K15: ='classif-grupos-2ºp'!F31 -> 7 | L15: ='classif-grupos-2ºp'!F46 -> 7 | N15: ='classif-grupos-2ºp'!F61 -> 7 | P15: ='classif-grupos-3ºp'!F15 -> 7 | R15: ='classif-grupos-3ºp'!F31 -> 7 | T15: 70
B16: GRUPO6 | C16: ='Classif-grupos-1ºp'!F16 -> 4 | E16: ='Classif-grupos-1ºp'!F32 -> 4 | F16: ='Classif-grupos-1ºp'!F47 -> 4 | H16: ='Classif-grupos-1ºp'!F62 -> 4 | I16: ='classif-grupos-2ºp'!F16 -> 4 | K16: ='classif-grupos-2ºp'!F32 -> 4 | L16: ='classif-grupos-2ºp'!F47 -> 4 | N16: ='classif-grupos-2ºp'!F62 -> 4 | P16: ='classif-grupos-3ºp'!F16 -> 4 | R16: ='classif-grupos-3ºp'!F32 -> 4 | T16: 40
B17: GRUPO7 | C17: ='Classif-grupos-1ºp'!F17 -> 4 | E17: ='Classif-grupos-1ºp'!F33 -> 4 | F17: ='Classif-grupos-1ºp'!F48 -> 4 | H17: ='Classif-grupos-1ºp'!F63 -> 4 | I17: ='classif-grupos-2ºp'!F17 -> 4 | K17: ='classif-grupos-2ºp'!F33 -> 4 | L17: ='classif-grupos-2ºp'!F48 -> 4 | N17: ='classif-grupos-2ºp'!F63 -> 4 | P17: ='classif-grupos-3ºp'!F17 -> 4 | R17: ='classif-grupos-3ºp'!F33 -> 4 | T17: 40
B21: GRUPOS | C21: TOTAL
B22: GRUPO1 | C22: =T11 -> 75
B23: GRUPO2 | C23: =T12 -> 40
B24: GRUPO3 | C24: 40
B25: GRUPO4 | C25: 40
B26: GRUPO5 | C26: 70
B27: GRUPO6 | C27: 40
B28: GRUPO7 | C28: 40
D52: Resultados Finais
D54: =LARGE(C22:D28,1) -> 75
A55: =LARGE(C22:D28,2) -> 70 | D55: 1º
A56: 2º | G56: =LARGE(C22:D28,3) -> 40
G57: 3º
J58: =LARGE(C22:D28,4) -> 40
J59: 4º

Sheet outubro
A2: Jogos de outubro
C6: outubro
A7: Nome | B7: Ordem | C7: J5 | D7: Nome | E7: Ordem | F7: J6 | G7: Nome | H7: Ordem | I7: J7 | J7: Nome | K7: Ordem | L7: J8 | M7: Total
A8: =lista_alunos!H25 -> 0 | B8: 16 | C8: =campeonato!K19 -> F | D8: =campeonato!B16 -> H | E8: =campeonato!A16 -> 8 | F8: =campeonato!L18 -> f | G8: =campeonato!B10 -> B | H8: =campeonato!A10 -> 2 | I8: =campeonato!M9 -> F | J8: =campeonato!B21 -> N | K8: =campeonato!A21 -> 13 | L8: =campeonato!N14 -> B | M8: =SUM(C8:L8) -> 23
A9: =lista_alunos!H24 -> P | B9: 15 | C9: =campeonato!K15 -> B | D9: =campeonato!B14 -> F | E9: =campeonato!A14 -> 6 | F9: =campeonato!L10 -> F | G9: =campeonato!B13 -> E | H9: =campeonato!A13 -> 5 | I9: =campeonato!M14 -> B | J9: =campeonato!B34 -> 0 | K9: =campeonato!A34 -> 26 | L9: =campeonato!N21 -> 59 | M9: 96
A10: =lista_alunos!H17 -> H | B10: 8 | C10: =campeonato!K20 -> B | D10: =campeonato!B11 -> C | E10: =campeonato!A11 -> 3 | F10: =campeonato!L12 -> f | G10: =campeonato!B24 -> 0 | H10: =campeonato!A24 -> 16 | I10: =campeonato!M23 -> 97 | J10: =campeonato!B12 -> D | K10: =campeonato!A12 -> 4 | L10: =campeonato!N11 -> 27 | M10: 147
A11: =lista_alunos!H23 -> O | B11: 14 | C11: =campeonato!K16 -> 146 | D11: =campeonato!B10 -> B | E11: =campeonato!A10 -> 2 | F11: =campeonato!L9 -> F | G11: =campeonato!B21 -> N | H11: =campeonato!A21 -> 13 | I11: =campeonato!M20 -> 65 | J11: =campeonato!B23 -> P | K11: =campeonato!A23 -> 15 | L11: =campeonato!N9 -> 12 | M11: 253
A12: =lista_alunos!H19 -> J | B12: 10 | C12: =campeonato!K13 -> 137 | D12: =campeonato!B19 -> L | E12: =campeonato!A19 -> 11 | F12: =campeonato!L16 -> b | G12: =campeonato!B12 -> D | H12: =campeonato!A12 -> 4 | I12: =campeonato!M12 -> 38 | J12: =campeonato!B18 -> J | K12: =campeonato!A18 -> 10 | L12: =campeonato!N12 -> 0 | M12: 200
A13: =lista_alunos!H13 -> D | B13: 4 | C13: =campeonato!K9 -> 136 | D13: =campeonato!B9 -> a | E13: =campeonato!A9 -> 1 | F13: =campeonato!L14 -> b | G13: =campeonato!B34 -> 0 | H13: =campeonato!A34 -> 26 | I13: =campeonato!M10 -> 22 | J13: =campeonato!B22 -> O | K13: =campeonato!A22 -> 14 | L13: =campeonato!N13 -> 0 | M13: 199
A14: =lista_alunos!H14 -> E | B14: 5 | C14: =campeonato!K24 -> 126 | D14: =campeonato!B24 -> 0 | E14: =campeonato!A24 -> 16 | F14: =campeonato!L17 -> 102 | G14: =campeonato!B18 -> J | H14: =campeonato!A18 -> 10 | I14: =campeonato!M17 -> 0 | J14: =campeonato!B20 -> M | K14: =campeonato!A20 -> 12 | L14: =campeonato!N15 -> 0 | M14: 266
A15: =lista_alunos!H15 -> F | B15: 6 | C15: =campeonato!K21 -> 125 | D15: =campeonato!B20 -> M | E15: =campeonato!A20 -> 12 | F15: =campeonato!L15 -> 96 | G15: =campeonato!B23 -> P | H15: =campeonato!A23 -> 15 | I15: =campeonato!M18 -> 0 | J15: =campeonato!B19 -> L | K15: =campeonato!A19 -> 11 | L15: =campeonato!N16 -> 0 | M15: 259
A16: =lista_alunos!H21 -> M | B16: 12 | C16: =campeonato!K18 -> 121 | D16: =campeonato!B21 -> N | E16: =campeonato!A21 -> 13 | F16: =campeonato!L25 -> 94 | G16: =campeonato!B22 -> O | H16: =campeonato!A22 -> 14 | I16: =campeonato!M19 -> 0 | J16: =campeonato!B24 -> 0 | K16: =campeonato!A24 -> 16 | L16: =campeonato!N17 -> 0 | M16: 258
A17: =lista_alunos!H10 -> a | B17: 1 | C17: =campeonato!K23 -> 111 | D17: =campeonato!B22 -> O | E17: =campeonato!A22 -> 14 | F17: =campeonato!L24 -> 88 | G17: =campeonato!B20 -> M | H17: =campeonato!A20 -> 12 | I17: =campeonato!M21 -> 0 | J17: =campeonato!B16 -> H | K17: =campeonato!A16 -> 8 | L17: =campeonato!N18 -> 0 | M17: 233
A18: =lista_alunos!H11 -> B | B18: 2 | C18: =campeonato!K25 -> 100 | D18: =campeonato!B23 -> P | E18: =campeonato!A23 -> 15 | F18: =campeonato!L23 -> 86 | G18: =campeonato!B19 -> L | H18: =campeonato!A19 -> 11 | I18: =campeonato!M22 -> 0 | J18: =campeonato!B14 -> F | K18: =campeonato!A14 -> 6 | L18: =campeonato!N19 -> 0 | M18: 218
A19: =lista_alunos!H22 -> N | B19: 13 | C19: =campeonato!K17 -> 74 | D19: =campeonato!B25 -> 0 | E19: =campeonato!A25 -> 17 | F19: =campeonato!L22 -> 81 | G19: =campeonato!B16 -> H | H19: =campeonato!A16 -> 8 | I19: =campeonato!M15 -> 0 | J19: =campeonato!B17 -> I | K19: =campeonato!A17 -> 9 | L19: =campeonato!N20 -> 0 | M19: 189
A20: =lista_alunos!H18 -> I | B20: 9 | C20: =campeonato!K22 -> 61 | D20: =campeonato!B18 -> J | E20: =campeonato!A18 -> 10 | F20: =campeonato!L21 -> 80 | G20: =campeonato!B14 -> F | H20: =campeonato!A14 -> 6 | I20: =campeonato!M13 -> 0 | J20: =campeonato!B25 -> 0 | K20: =campeonato!A25 -> 17 | L20: =campeonato!N22 -> 0 | M20: 174
A21: =lista_alunos!H20 -> L | B21: 11 | C21: =campeonato!K10 -> 48 | D21: =campeonato!B34 -> 0 | E21: =campeonato!A34 -> 26 | F21: =campeonato!L20 -> 70 | G21: =campeonato!B17 -> I | H21: =campeonato!A17 -> 9 | I21: =campeonato!M24 -> 0 | J21: =campeonato!B11 -> C | K21: =campeonato!A11 -> 3 | L21: =campeonato!N23 -> 0 | M21: 156
A22: =lista_alunos!H26 -> 0 | B22: 17 | C22: =campeonato!K14 -> 41 | D22: =campeonato!B12 -> D | E22: =campeonato!A12 -> 4 | F22: =campeonato!L13 -> 52 | G22: =campeonato!B25 -> 0 | H22: =campeonato!A25 -> 17 | I22: =campeonato!M25 -> 0 | J22: =campeonato!B9 -> a | K22: =campeonato!A9 -> 1 | L22: =campeonato!N24 -> 0 | M22: 115
A23: =lista_alunos!H35 -> 0 | B23: 26 | C23: =campeonato!K12 -> 16 | D23: =campeonato!B13 -> E | E23: =campeonato!A13 -> 5 | F23: =campeonato!L11 -> 48 | G23: =campeonato!B11 -> C | H23: =campeonato!A11 -> 3 | I23: =campeonato!M16 -> 0 | J23: =campeonato!B13 -> E | K23: =campeonato!A13 -> 5 | L23: =campeonato!N10 -> 0 | M23: 77
A24: =lista_alunos!H12 -> C | B24: 3 | C24: =campeonato!K11 -> 12 | D24: =campeonato!B17 -> I | E24: =campeonato!A17 -> 9 | F24: =campeonato!L19 -> 15 | G24: =campeonato!B9 -> a | H24: =campeonato!A9 -> 1 | I24: =campeonato!M11 -> 0 | J24: =campeonato!B10 -> B | K24: =campeonato!A10 -> 2 | L24: =campeonato!N25 -> 0 | M24: 39
A25: =lista_alunos!H16 -> G | B25: 7 | C25: =campeonato!K26 -> 0 | D25: =campeonato!B15 -> G | E25: =campeonato!A15 -> 7 | F25: =campeonato!L26 -> 0 | G25: =campeonato!B15 -> G | H25: =campeonato!A15 -> 7 | I25: =campeonato!M26 -> 0 | J25: =campeonato!B15 -> G | K25: =campeonato!A15 -> 7 | L25: =campeonato!N26 -> 0 | M25: 21
A26: =lista_alunos!H34 -> 0 | B26: 25 | C26: =campeonato!K27 -> 0 | D26: =campeonato!B26 -> 0 | E26: =campeonato!A26 -> 18 | F26: =campeonato!L27 -> 0 | G26: =campeonato!B26 -> 0 | H26: =campeonato!A26 -> 18 | I26: =campeonato!M27 -> 0 | J26: =campeonato!B33 -> 0 | K26: =campeonato!A33 -> 25 | L26: =campeonato!N27 -> 0 | M26: 61
A27: =lista_alunos!H27 -> 0 | B27: 18 | C27: =campeonato!K28 -> 0 | D27: =campeonato!B27 -> 0 | E27: =campeonato!A27 -> 19 | F27: =campeonato!L28 -> 0 | G27: =campeonato!B27 -> 0 | H27: =campeonato!A27 -> 19 | I27: =campeonato!M28 -> 0 | J27: =campeonato!B32 -> 0 | K27: =campeonato!A32 -> 24 | L27: =campeonato!N28 -> 0 | M27: 62
A28: =lista_alunos!H28 -> 0 | B28: 19 | C28: =campeonato!K29 -> 0 | D28: =campeonato!B28 -> 0 | E28: =campeonato!A28 -> 20 | F28: =campeonato!L29 -> 0 | G28: =campeonato!B28 -> 0 | H28: =campeonato!A28 -> 20 | I28: =campeonato!M29 -> 0 | J28: =campeonato!B31 -> 0 | K28: =campeonato!A31 -> 23 | L28: =campeonato!N29 -> 0 | M28: 63
A29: =lista_alunos!H29 -> 0 | B29: 20 | C29: =campeonato!K30 -> 0 | D29: =campeonato!B29 -> 0 | E29: =campeonato!A29 -> 21 | F29: =campeonato!L30 -> 0 | G29: =campeonato!B29 -> 0 | H29: =campeonato!A29 -> 21 | I29: =campeonato!M30 -> 0 | J29: =campeonato!B30 -> 0 | K29: =campeonato!A30 -> 22 | L29: =campeonato!N30 -> 0 | M29: 64
A30: =lista_alunos!H30 -> 0 | B30: 21 | C30: =campeonato!K31 -> 0 | D30: =campeonato!B30 -> 0 | E30: =campeonato!A30 -> 22 | F30: =campeonato!L31 -> 0 | G30: =campeonato!B30 -> 0 | H30: =campeonato!A30 -> 22 | I30: =campeonato!M31 -> 0 | J30: =campeonato!B29 -> 0 | K30: =campeonato!A29 -> 21 | L30: =campeonato!N31 -> 0 | M30: 65
A31: =lista_alunos!H31 -> 0 | B31: 22 | C31: =campeonato!K32 -> 0 | D31: =campeonato!B31 -> 0 | E31: =campeonato!A31 -> 23 | F31: =campeonato!L32 -> 0 | G31: =campeonato!B31 -> 0 | H31: =campeonato!A31 -> 23 | I31: =campeonato!M32 -> 0 | J31: =campeonato!B28 -> 0 | K31: =campeonato!A28 -> 20 | L31: =campeonato!N32 -> 0 | M31: 66
A32: =lista_alunos!H32 -> 0 | B32: 23 | C32: =campeonato!K33 -> 0 | D32: =campeonato!B32 -> 0 | E32: =campeonato!A32 -> 24 | F32: =campeonato!L33 -> 0 | G32: =campeonato!B32 -> 0 | H32: =campeonato!A32 -> 24 | I32: =campeonato!M33 -> 0 | J32: =campeonato!B27 -> 0 | K32: =campeonato!A27 -> 19 | L32: =campeonato!N33 -> 0 | M32: 67
A33: =lista_alunos!H33 -> 0 | B33: 24 | C33: =campeonato!K34 -> 0 | D33: =campeonato!B33 -> 0 | E33: =campeonato!A33 -> 25 | F33: =campeonato!L34 -> 0 | G33: =campeonato!B33 -> 0 | H33: =campeonato!A33 -> 25 | I33: =campeonato!M34 -> 0 | J33: =campeonato!B26 -> 0 | K33: =campeonato!A26 -> 18 | L33: =campeonato!N34 -> 0 | M33: 68
B38: JOGO 1 | H38: JOGO 2 | N38: JOGO 3 | S38: JOGO 4
C40: =LARGE(C8:C32,1) -> 146 | I40: =LARGE(F8:F32,1) -> 102 | O40: =LARGE(I8:I32,1) -> 97 | T40: =LARGE(L8:L32,1) -> 59
B41: =LARGE(C8:C32,2) -> 137 | C41: 1ºLugar | D41: =LARGE(C8:C32,3) -> 136 | H41: =LARGE(F8:F32,2) -> 96 | I41: 1ºLugar | J41: =LARGE(F8:F32,3) -> 94 | N41: =LARGE(I8:I32,2) -> 65 | O41: 1ºLugar | P41: =LARGE(I8:I32,3) -> 38 | S41: =LARGE(L8:L32,2) -> 27 | T41: 1ºLugar | U41: =LARGE(L8:L32,3) -> 12
B42: 2ºLugar | D42: 3ºLugar | F42: =LARGE(C8:C32,4) -> 126 | H42: 2ºLugar | J42: 3ºLugar | L42: =LARGE(F8:F32,4) -> 88 | N42: 2ºLugar | P42: 3ºLugar | Q42: =LARGE(I8:I32,4) -> 22 | S42: 2ºLugar | U42: 3ºLugar | V42: =LARGE(L8:L32,4) -> 0
E43: 4ºLugar | K43: 4ºLugar | Q43: 4ºLugar | V43: 4ºLugar

Sheet novembro
A2: Jogos de novembro
C6: novembro
A7: Nome | B7: Ordem | C7: J9 | D7: Nome | E7: Ordem | F7: J10 | G7: Nome | H7: Ordem | I7: J11 | J7: Nome | K7: Ordem | L7: J12 | M7: Total
A8: =lista_alunos!H25 -> 0 | B8: 16 | C8: =campeonato!P9 -> B | D8: =campeonato!B34 -> 0 | E8: =campeonato!A34 -> 26 | F8: =campeonato!Q22 -> 0 | G8: =campeonato!B18 -> J | H8: =campeonato!A18 -> 10 | I8: =campeonato!R15 -> 0 | J8: =campeonato!B18 -> J | K8: =campeonato!A18 -> 10 | L8: =campeonato!S13 -> 0 | M8: =SUM(C8:L8) -> 46
A9: =lista_alunos!H19 -> J | B9: 10 | C9: =campeonato!P13 -> 0 | D9: =campeonato!B33 -> 0 | E9: =campeonato!A33 -> 25 | F9: =campeonato!Q34 -> 0 | G9: =campeonato!B23 -> P | H9: =campeonato!A23 -> 15 | I9: =campeonato!R16 -> 0 | J9: =campeonato!B23 -> P | K9: =campeonato!A23 -> 15 | L9: =campeonato!S12 -> 0 | M9: 55
A10: =lista_alunos!H24 -> P | B10: 15 | C10: =campeonato!P10 -> 0 | D10: =campeonato!B32 -> 0 | E10: =campeonato!A32 -> 24 | F10: =campeonato!Q33 -> 0 | G10: =campeonato!B22 -> O | H10: =campeonato!A22 -> 14 | I10: =campeonato!R17 -> 0 | J10: =campeonato!B22 -> O | K10: =campeonato!A22 -> 14 | L10: =campeonato!S14 -> 0 | M10: 52
A11: =lista_alunos!H23 -> O | B11: 14 | C11: =campeonato!P12 -> 0 | D11: =campeonato!B31 -> 0 | E11: =campeonato!A31 -> 23 | F11: =campeonato!Q32 -> 0 | G11: =campeonato!B21 -> N | H11: =campeonato!A21 -> 13 | I11: =campeonato!R12 -> 0 | J11: =campeonato!B21 -> N | K11: =campeonato!A21 -> 13 | L11: =campeonato!S9 -> 0 | M11: 49
A12: =lista_alunos!H22 -> N | B12: 13 | C12: =campeonato!P20 -> 0 | D12: =campeonato!B30 -> 0 | E12: =campeonato!A30 -> 22 | F12: =campeonato!Q31 -> 0 | G12: =campeonato!B20 -> M | H12: =campeonato!A20 -> 12 | I12: =campeonato!R18 -> 0 | J12: =campeonato!B20 -> M | K12: =campeonato!A20 -> 12 | L12: =campeonato!S15 -> 0 | M12: 46
A13: =lista_alunos!H21 -> M | B13: 12 | C13: =campeonato!P17 -> 0 | D13: =campeonato!B29 -> 0 | E13: =campeonato!A29 -> 21 | F13: =campeonato!Q30 -> 0 | G13: =campeonato!B19 -> L | H13: =campeonato!A19 -> 11 | I13: =campeonato!R19 -> 0 | J13: =campeonato!B19 -> L | K13: =campeonato!A19 -> 11 | L13: =campeonato!S16 -> 0 | M13: 43
A14: =lista_alunos!H20 -> L | B14: 11 | C14: =campeonato!P22 -> 0 | D14: =campeonato!B28 -> 0 | E14: =campeonato!A28 -> 20 | F14: =campeonato!Q29 -> 0 | G14: =campeonato!B24 -> 0 | H14: =campeonato!A24 -> 16 | I14: =campeonato!R11 -> 0 | J14: =campeonato!B24 -> 0 | K14: =campeonato!A24 -> 16 | L14: =campeonato!S17 -> 0 | M14: 52
A15: =lista_alunos!H17 -> H | B15: 8 | C15: =campeonato!P11 -> 0 | D15: =campeonato!B27 -> 0 | E15: =campeonato!A27 -> 19 | F15: =campeonato!Q28 -> 0 | G15: =campeonato!B16 -> H | H15: =campeonato!A16 -> 8 | I15: =campeonato!R20 -> 0 | J15: =campeonato!B16 -> H | K15: =campeonato!A16 -> 8 | L15: =campeonato!S18 -> 0 | M15: 35
A16: =lista_alunos!H15 -> F | B16: 6 | C16: =campeonato!P16 -> 0 | D16: =campeonato!B26 -> 0 | E16: =campeonato!A26 -> 18 | F16: =campeonato!Q27 -> 0 | G16: =campeonato!B14 -> F | H16: =campeonato!A14 -> 6 | I16: =campeonato!R21 -> 0 | J16: =campeonato!B14 -> F | K16: =campeonato!A14 -> 6 | L16: =campeonato!S19 -> 0 | M16: 30
A17: =lista_alunos!H18 -> I | B17: 9 | C17: =campeonato!P21 -> 0 | D17: =campeonato!B25 -> 0 | E17: =campeonato!A25 -> 17 | F17: =campeonato!Q20 -> 0 | G17: =campeonato!B17 -> I | H17: =campeonato!A17 -> 9 | I17: =campeonato!R22 -> 0 | J17: =campeonato!B17 -> I | K17: =campeonato!A17 -> 9 | L17: =campeonato!S20 -> 0 | M17: 35
A18: =lista_alunos!H35 -> 0 | B18: 26 | C18: =campeonato!P24 -> 0 | D18: =campeonato!B24 -> 0 | E18: =campeonato!A24 -> 16 | F18: =campeonato!Q15 -> 0 | G18: =campeonato!B34 -> 0 | H18: =campeonato!A34 -> 26 | I18: =campeonato!R14 -> 0 | J18: =campeonato!B34 -> 0 | K18: =campeonato!A34 -> 26 | L18: =campeonato!S10 -> 0 | M18: 68
A19: =lista_alunos!H26 -> 0 | B19: 17 | C19: =campeonato!P23 -> 0 | D19: =campeonato!B23 -> P | E19: =campeonato!A23 -> 15 | F19: =campeonato!Q19 -> 0 | G19: =campeonato!B25 -> 0 | H19: =campeonato!A25 -> 17 | I19: =campeonato!R23 -> 0 | J19: =campeonato!B25 -> 0 | K19: =campeonato!A25 -> 17 | L19: =campeonato!S21 -> 0 | M19: 49
A20: =lista_alunos!H12 -> C | B20: 3 | C20: =campeonato!P25 -> 0 | D20: =campeonato!B22 -> O | E20: =campeonato!A22 -> 14 | F20: =campeonato!Q18 -> 0 | G20: =campeonato!B11 -> C | H20: =campeonato!A11 -> 3 | I20: =campeonato!R24 -> 0 | J20: =campeonato!B11 -> C | K20: =campeonato!A11 -> 3 | L20: =campeonato!S22 -> 0 | M20: 20
A21: =lista_alunos!H10 -> a | B21: 1 | C21: =campeonato!P18 -> 0 | D21: =campeonato!B21 -> N | E21: =campeonato!A21 -> 13 | F21: =campeonato!Q17 -> 0 | G21: =campeonato!B9 -> a | H21: =campeonato!A9 -> 1 | I21: =campeonato!R25 -> 0 | J21: =campeonato!B9 -> a | K21: =campeonato!A9 -> 1 | L21: =campeonato!S23 -> 0 | M21: 15
A22: =lista_alunos!H14 -> E | B22: 5 | C22: =campeonato!P15 -> 0 | D22: =campeonato!B20 -> M | E22: =campeonato!A20 -> 12 | F22: =campeonato!Q16 -> 0 | G22: =campeonato!B13 -> E | H22: =campeonato!A13 -> 5 | I22: =campeonato!R10 -> 0 | J22: =campeonato!B13 -> E | K22: =campeonato!A13 -> 5 | L22: =campeonato!S24 -> 0 | M22: 22
A23: =lista_alunos!H11 -> B | B23: 2 | C23: =campeonato!P19 -> 0 | D23: =campeonato!B19 -> L | E23: =campeonato!A19 -> 11 | F23: =campeonato!Q13 -> 0 | G23: =campeonato!B10 -> B | H23: =campeonato!A10 -> 2 | I23: =campeonato!R9 -> 1 | J23: =campeonato!B10 -> B | K23: =campeonato!A10 -> 2 | L23: =campeonato!S25 -> 0 | M23: 16
A24: =lista_alunos!H13 -> D | B24: 4 | C24: =campeonato!P14 -> 0 | D24: =campeonato!B18 -> J | E24: =campeonato!A18 -> 10 | F24: =campeonato!Q21 -> 0 | G24: =campeonato!B12 -> D | H24: =campeonato!A12 -> 4 | I24: =campeonato!R13 -> 0 | J24: =campeonato!B12 -> D | K24: =campeonato!A12 -> 4 | L24: =campeonato!S11 -> 0 | M24: 18
A25: =lista_alunos!H16 -> G | B25: 7 | C25: =campeonato!P26 -> 0 | D25: =campeonato!B17 -> I | E25: =campeonato!A17 -> 9 | F25: =campeonato!Q25 -> 0 | G25: =campeonato!B15 -> G | H25: =campeonato!A15 -> 7 | I25: =campeonato!R26 -> 0 | J25: =campeonato!B15 -> G | K25: =campeonato!A15 -> 7 | L25: =campeonato!S26 -> 0 | M25: 23
A26: =lista_alunos!H34 -> 0 | B26: 25 | C26: =campeonato!P27 -> 0 | D26: =campeonato!B16 -> H | E26: =campeonato!A16 -> 8 | F26: =campeonato!Q9 -> F | G26: =campeonato!B26 -> 0 | H26: =campeonato!A26 -> 18 | I26: =campeonato!R27 -> 0 | J26: =campeonato!B33 -> 0 | K26: =campeonato!A33 -> 25 | L26: =campeonato!S27 -> 0 | M26: 51
A27: =lista_alunos!H27 -> 0 | B27: 18 | C27: =campeonato!P28 -> 0 | D27: =campeonato!B15 -> G | E27: =campeonato!A15 -> 7 | F27: =campeonato!Q26 -> 0 | G27: =campeonato!B27 -> 0 | H27: =campeonato!A27 -> 19 | I27: =campeonato!R28 -> 0 | J27: =campeonato!B32 -> 0 | K27: =campeonato!A32 -> 24 | L27: =campeonato!S28 -> 0 | M27: 50
A28: =lista_alunos!H28 -> 0 | B28: 19 | C28: =campeonato!P29 -> 0 | D28: =campeonato!B14 -> F | E28: =campeonato!A14 -> 6 | F28: =campeonato!Q10 -> 0 | G28: =campeonato!B28 -> 0 | H28: =campeonato!A28 -> 20 | I28: =campeonato!R29 -> 0 | J28: =campeonato!B31 -> 0 | K28: =campeonato!A31 -> 23 | L28: =campeonato!S29 -> 0 | M28: 49
A29: =lista_alunos!H29 -> 0 | B29: 20 | C29: =campeonato!P30 -> 0 | D29: =campeonato!B13 -> E | E29: =campeonato!A13 -> 5 | F29: =campeonato!Q24 -> 0 | G29: =campeonato!B29 -> 0 | H29: =campeonato!A29 -> 21 | I29: =campeonato!R30 -> 0 | J29: =campeonato!B30 -> 0 | K29: =campeonato!A30 -> 22 | L29: =campeonato!S30 -> 0 | M29: 48
A30: =lista_alunos!H30 -> 0 | B30: 21 | C30: =campeonato!P31 -> 0 | D30: =campeonato!B12 -> D | E30: =campeonato!A12 -> 4 | F30: =campeonato!Q23 -> 0 | G30: =campeonato!B30 -> 0 | H30: =campeonato!A30 -> 22 | I30: =campeonato!R31 -> 0 | J30: =campeonato!B29 -> 0 | K30: =campeonato!A29 -> 21 | L30: =campeonato!S31 -> 0 | M30: 47
A31: =lista_alunos!H31 -> 0 | B31: 22 | C31: =campeonato!P32 -> 0 | D31: =campeonato!B11 -> C | E31: =campeonato!A11 -> 3 | F31: =campeonato!Q11 -> 0 | G31: =campeonato!B31 -> 0 | H31: =campeonato!A31 -> 23 | I31: =campeonato!R32 -> 0 | J31: =campeonato!B28 -> 0 | K31: =campeonato!A28 -> 20 | L31: =campeonato!S32 -> 0 | M31: 46
A32: =lista_alunos!H32 -> 0 | B32: 23 | C32: =campeonato!P33 -> 0 | D32: =campeonato!B10 -> B | E32: =campeonato!A10 -> 2 | F32: =campeonato!Q12 -> 0 | G32: =campeonato!B32 -> 0 | H32: =campeonato!A32 -> 24 | I32: =campeonato!R33 -> 0 | J32: =campeonato!B27 -> 0 | K32: =campeonato!A27 -> 19 | L32: =campeonato!S33 -> 0 | M32: 45
A33: =lista_alunos!H33 -> 0 | B33: 24 | C33: =campeonato!P34 -> 0 | D33: =campeonato!B9 -> a | E33: =campeonato!A9 -> 1 | F33: =campeonato!Q14 -> 0 | G33: =campeonato!B33 -> 0 | H33: =campeonato!A33 -> 25 | I33: =campeonato!R34 -> 0 | J33: =campeonato!B26 -> 0 | K33: =campeonato!A26 -> 18 | L33: =campeonato!S34 -> 0 | M33: 44
B38: JOGO 1 | H38: JOGO 2 | N38: JOGO 3 | S38: JOGO 4
C40: =LARGE(C8:C32,1) -> 0 | I40: =LARGE(F8:F32,1) -> 0 | O40: =LARGE(I8:I32,1) -> 1 | T40: =LARGE(L8:L32,1) -> 0
B41: =LARGE(C8:C32,2) -> 0 | C41: 1ºLugar | D41: =LARGE(C8:C32,3) -> 0 | H41: =LARGE(F8:F32,2) -> 0 | I41: 1ºLugar | J41: =LARGE(F8:F32,3) -> 0 | N41: =LARGE(I8:I32,2) -> 0 | O41: 1ºLugar | P41: =LARGE(I8:I32,3) -> 0 | S41: =LARGE(L8:L32,2) -> 0 | T41: 1ºLugar | U41: =LARGE(L8:L32,3) -> 0
B42: 2ºLugar | D42: 3ºLugar | F42: =LARGE(C8:C32,4) -> 0 | H42: 2ºLugar | J42: 3ºLugar | L42: =LARGE(F8:F32,4) -> 0 | N42: 2ºLugar | P42: 3ºLugar | Q42: =LARGE(I8:I32,4) -> 0 | S42: 2ºLugar | U42: 3ºLugar | V42: =LARGE(L8:L32,4) -> 0
E43: 4ºLugar | K43: 4ºLugar | Q43: 4ºLugar | V43: 4ºLugar

Sheet dezembro
A2: Jogos de dezembro
C6: dezembro
A7: Nome | B7: Ordem | C7: J13 | D7: Nome | E7: Ordem | F7: J14 | G7: Nome | H7: Ordem | I7: J15 | J7: Nome | K7: Ordem | L7: J16 | M7: Total
A8: =lista_alunos!H25 -> 0 | B8: 16 | C8: =campeonato!P9 -> B | D8: =campeonato!B16 -> H | E8: =campeonato!A16 -> 8 | F8: =campeonato!Q9 -> F | G8: =campeonato!B10 -> B | H8: =campeonato!A10 -> 2 | I8: =campeonato!W9 -> 1 | J8: =campeonato!B18 -> J | K8: =campeonato!A18 -> 10 | L8: =campeonato!X9 -> 3 | M8: =SUM(C8:L8) -> 24
A9: =lista_alunos!H19 -> J | B9: 10 | C9: =campeonato!P13 -> 0 | D9: =campeonato!B18 -> J | E9: =campeonato!A18 -> 10 | F9: =campeonato!Q21 -> 0 | G9: =campeonato!B23 -> P | H9: =campeonato!A23 -> 15 | I9: =campeonato!W10 -> 0 | J9: =campeonato!B23 -> P | K9: =campeonato!A23 -> 15 | L9: =campeonato!X10 -> 0 | M9: 40
A10: =lista_alunos!H24 -> P | B10: 15 | C10: =campeonato!P10 -> 0 | D10: =campeonato!B23 -> P | E10: =campeonato!A23 -> 15 | F10: =campeonato!Q19 -> 0 | G10: =campeonato!B22 -> O | H10: =campeonato!A22 -> 14 | I10: =campeonato!W11 -> 0 | J10: =campeonato!B22 -> O | K10: =campeonato!A22 -> 14 | L10: =campeonato!X11 -> 0 | M10: 43
A11: =lista_alunos!H23 -> O | B11: 14 | C11: =campeonato!P12 -> 0 | D11: =campeonato!B22 -> O | E11: =campeonato!A22 -> 14 | F11: =campeonato!Q18 -> 0 | G11: =campeonato!B21 -> N | H11: =campeonato!A21 -> 13 | I11: =campeonato!W12 -> 0 | J11: =campeonato!B21 -> N | K11: =campeonato!A21 -> 13 | L11: =campeonato!X12 -> 0 | M11: 40
A12: =lista_alunos!H22 -> N | B12: 13 | C12: =campeonato!P20 -> 0 | D12: =campeonato!B21 -> N | E12: =campeonato!A21 -> 13 | F12: =campeonato!Q17 -> 0 | G12: =campeonato!B20 -> M | H12: =campeonato!A20 -> 12 | I12: =campeonato!W13 -> 0 | J12: =campeonato!B20 -> M | K12: =campeonato!A20 -> 12 | L12: =campeonato!X13 -> 0 | M12: 37
A13: =lista_alunos!H21 -> M | B13: 12 | C13: =campeonato!P17 -> 0 | D13: =campeonato!B20 -> M | E13: =campeonato!A20 -> 12 | F13: =campeonato!Q16 -> 0 | G13: =campeonato!B19 -> L | H13: =campeonato!A19 -> 11 | I13: =campeonato!W14 -> 0 | J13: =campeonato!B19 -> L | K13: =campeonato!A19 -> 11 | L13: =campeonato!X14 -> 0 | M13: 34
A14: =lista_alunos!H20 -> L | B14: 11 | C14: =campeonato!P22 -> 0 | D14: =campeonato!B19 -> L | E14: =campeonato!A19 -> 11 | F14: =campeonato!Q13 -> 0 | G14: =campeonato!B18 -> J | H14: =campeonato!A18 -> 10 | I14: =campeonato!W15 -> 0 | J14: =campeonato!B17 -> I | K14: =campeonato!A17 -> 9 | L14: =campeonato!X18 -> 0 | M14: 30
A15: =lista_alunos!H17 -> H | B15: 8 | C15: =campeonato!P11 -> 0 | D15: =campeonato!B24 -> 0 | E15: =campeonato!A24 -> 16 | F15: =campeonato!Q15 -> 0 | G15: =campeonato!B17 -> I | H15: =campeonato!A17 -> 9 | I15: =campeonato!W16 -> 0 | J15: =campeonato!B16 -> H | K15: =campeonato!A16 -> 8 | L15: =campeonato!X16 -> 0 | M15: 33
A16: =lista_alunos!H15 -> F | B16: 6 | C16: =campeonato!P16 -> 0 | D16: =campeonato!B14 -> F | E16: =campeonato!A14 -> 6 | F16: =campeonato!Q10 -> 0 | G16: =campeonato!B16 -> H | H16: =campeonato!A16 -> 8 | I16: =campeonato!W17 -> 0 | J16: =campeonato!B15 -> G | K16: =campeonato!A15 -> 7 | L16: =campeonato!X26 -> 0 | M16: 21
A17: =lista_alunos!H18 -> I | B17: 9 | C17: =campeonato!P21 -> 0 | D17: =campeonato!B17 -> I | E17: =campeonato!A17 -> 9 | F17: =campeonato!Q25 -> 0 | G17: =campeonato!B15 -> G | H17: =campeonato!A15 -> 7 | I17: =campeonato!W18 -> 0 | J17: =campeonato!B14 -> F | K17: =campeonato!A14 -> 6 | L17: =campeonato!X17 -> 0 | M17: 22
A18: =lista_alunos!H35 -> 0 | B18: 26 | C18: =campeonato!P24 -> 0 | D18: =campeonato!B34 -> 0 | E18: =campeonato!A34 -> 26 | F18: =campeonato!Q22 -> 0 | G18: =campeonato!B14 -> F | H18: =campeonato!A14 -> 6 | I18: =campeonato!W19 -> 0 | J18: =campeonato!B13 -> E | K18: =campeonato!A13 -> 5 | L18: =campeonato!X23 -> 0 | M18: 37
A19: =lista_alunos!H26 -> 0 | B19: 17 | C19: =campeonato!P23 -> 0 | D19: =campeonato!B25 -> 0 | E19: =campeonato!A25 -> 17 | F19: =campeonato!Q20 -> 0 | G19: =campeonato!B13 -> E | H19: =campeonato!A13 -> 5 | I19: =campeonato!W20 -> 0 | J19: =campeonato!B12 -> D | K19: =campeonato!A12 -> 4 | L19: =campeonato!X25 -> 0 | M19: 26
A20: =lista_alunos!H12 -> C | B20: 3 | C20: =campeonato!P25 -> 0 | D20: =campeonato!B11 -> C | E20: =campeonato!A11 -> 3 | F20: =campeonato!Q11 -> 0 | G20: =campeonato!B12 -> D | H20: =campeonato!A12 -> 4 | I20: =campeonato!W21 -> 0 | J20: =campeonato!B11 -> C | K20: =campeonato!A11 -> 3 | L20: =campeonato!X21 -> 0 | M20: 10
A21: =lista_alunos!H10 -> a | B21: 1 | C21: =campeonato!P18 -> 0 | D21: =campeonato!B9 -> a | E21: =campeonato!A9 -> 1 | F21: =campeonato!Q14 -> 0 | G21: =campeonato!B11 -> C | H21: =campeonato!A11 -> 3 | I21: =campeonato!W22 -> 0 | J21: =campeonato!B10 -> B | K21: =campeonato!A10 -> 2 | L21: =campeonato!X24 -> 0 | M21: 6
A22: =lista_alunos!H14 -> E | B22: 5 | C22: =campeonato!P15 -> 0 | D22: =campeonato!B13 -> E | E22: =campeonato!A13 -> 5 | F22: =campeonato!Q24 -> 0 | G22: =campeonato!B9 -> a | H22: =campeonato!A9 -> 1 | I22: =campeonato!W23 -> 0 | J22: =campeonato!B9 -> a | K22: =campeonato!A9 -> 1 | L22: =campeonato!X22 -> 0 | M22: 7
A23: =lista_alunos!H11 -> B | B23: 2 | C23: =campeonato!P19 -> 0 | D23: =campeonato!B10 -> B | E23: =campeonato!A10 -> 2 | F23: =campeonato!Q12 -> 0 | G23: =campeonato!B24 -> 0 | H23: =campeonato!A24 -> 16 | I23: =campeonato!W24 -> 0 | J23: =campeonato!B24 -> 0 | K23: =campeonato!A24 -> 16 | L23: =campeonato!X15 -> 0 | M23: 34
A24: =lista_alunos!H13 -> D | B24: 4 | C24: =campeonato!P14 -> 0 | D24: =campeonato!B12 -> D | E24: =campeonato!A12 -> 4 | F24: =campeonato!Q23 -> 0 | G24: =campeonato!B34 -> 0 | H24: =campeonato!A34 -> 26 | I24: =campeonato!W25 -> 0 | J24: =campeonato!B34 -> 0 | K24: =campeonato!A34 -> 26 | L24: =campeonato!X19 -> 0 | M24: 56
A25: =lista_alunos!H16 -> G | B25: 7 | C25: =campeonato!P26 -> 0 | D25: =campeonato!B15 -> G | E25: =campeonato!A15 -> 7 | F25: =campeonato!Q26 -> 0 | G25: =campeonato!B25 -> 0 | H25: =campeonato!A25 -> 17 | I25: =campeonato!W26 -> 0 | J25: =campeonato!B25 -> 0 | K25: =campeonato!A25 -> 17 | L25: =campeonato!X20 -> 0 | M25: 41
A26: =lista_alunos!H34 -> 0 | B26: 25 | C26: =campeonato!P27 -> 0 | D26: =campeonato!B33 -> 0 | E26: =campeonato!A33 -> 25 | F26: =campeonato!Q34 -> 0 | G26: =campeonato!B26 -> 0 | H26: =campeonato!A26 -> 18 | I26: =campeonato!W27 -> 0 | J26: =campeonato!B33 -> 0 | K26: =campeonato!A33 -> 25 | L26: =campeonato!X27 -> 0 | M26: 68
A27: =lista_alunos!H27 -> 0 | B27: 18 | C27: =campeonato!P28 -> 0 | D27: =campeonato!B32 -> 0 | E27: =campeonato!A32 -> 24 | F27: =campeonato!Q33 -> 0 | G27: =campeonato!B27 -> 0 | H27: =campeonato!A27 -> 19 | I27: =campeonato!W28 -> 0 | J27: =campeonato!B32 -> 0 | K27: =campeonato!A32 -> 24 | L27: =campeonato!X28 -> 0 | M27: 67
A28: =lista_alunos!H28 -> 0 | B28: 19 | C28: =campeonato!P29 -> 0 | D28: =campeonato!B31 -> 0 | E28: =campeonato!A31 -> 23 | F28: =campeonato!Q32 -> 0 | G28: =campeonato!B28 -> 0 | H28: =campeonato!A28 -> 20 | I28: =campeonato!W29 -> 0 | J28: =campeonato!B31 -> 0 | K28: =campeonato!A31 -> 23 | L28: =campeonato!X29 -> 0 | M28: 66
A29: =lista_alunos!H29 -> 0 | B29: 20 | C29: =campeonato!P30 -> 0 | D29: =campeonato!B30 -> 0 | E29: =campeonato!A30 -> 22 | F29: =campeonato!Q31 -> 0 | G29: =campeonato!B29 -> 0 | H29: =campeonato!A29 -> 21 | I29: =campeonato!W30 -> 0 | J29: =campeonato!B30 -> 0 | K29: =campeonato!A30 -> 22 | L29: =campeonato!X30 -> 0 | M29: 65
A30: =lista_alunos!H30 -> 0 | B30: 21 | C30: =campeonato!P31 -> 0 | D30: =campeonato!B29 -> 0 | E30: =campeonato!A29 -> 21 | F30: =campeonato!Q30 -> 0 | G30: =campeonato!B30 -> 0 | H30: =campeonato!A30 -> 22 | I30: =campeonato!W31 -> 0 | J30: =campeonato!B29 -> 0 | K30: =campeonato!A29 -> 21 | L30: =campeonato!X31 -> 0 | M30: 64
A31: =lista_alunos!H31 -> 0 | B31: 22 | C31: =campeonato!P32 -> 0 | D31: =campeonato!B28 -> 0 | E31: =campeonato!A28 -> 20 | F31: =campeonato!Q29 -> 0 | G31: =campeonato!B31 -> 0 | H31: =campeonato!A31 -> 23 | I31: =campeonato!W32 -> 0 | J31: =campeonato!B28 -> 0 | K31: =campeonato!A28 -> 20 | L31: =campeonato!X32 -> 0 | M31: 63
A32: =lista_alunos!H32 -> 0 | B32: 23 | C32: =campeonato!P33 -> 0 | D32: =campeonato!B27 -> 0 | E32: =campeonato!A27 -> 19 | F32: =campeonato!Q28 -> 0 | G32: =campeonato!B32 -> 0 | H32: =campeonato!A32 -> 24 | I32: =campeonato!W33 -> 0 | J32: =campeonato!B27 -> 0 | K32: =campeonato!A27 -> 19 | L32: =campeonato!X33 -> 0 | M32: 62
A33: =lista_alunos!H33 -> 0 | B33: 24 | C33: =campeonato!P34 -> 0 | D33: =campeonato!B26 -> 0 | E33: =campeonato!A26 -> 18 | F33: =campeonato!Q27 -> 0 | G33: =campeonato!B33 -> 0 | H33: =campeonato!A33 -> 25 | I33: =campeonato!W34 -> 0 | J33: =campeonato!B26 -> 0 | K33: =campeonato!A26 -> 18 | L33: =campeonato!X34 -> 0 | M33: 61
B38: JOGO 1 | H38: JOGO 2 | N38: JOGO 3 | S38: JOGO 4
C40: =LARGE(C8:C32,1) -> 0 | I40: =LARGE(F8:F32,1) -> 0 | O40: =LARGE(I8:I32,1) -> 1 | T40: =LARGE(L8:L32,1) -> 3
B41: =LARGE(C8:C32,2) -> 0 | C41: 1ºLugar | D41: =LARGE(C8:C32,3) -> 0 | H41: =LARGE(F8:F32,2) -> 0 | I41: 1ºLugar | J41: =LARGE(F8:F32,3) -> 0 | N41: =LARGE(I8:I32,2) -> 0 | O41: 1ºLugar | P41: =LARGE(I8:I32,3) -> 0 | S41: =LARGE(L8:L32,2) -> 0 | T41: 1ºLugar | U41: =LARGE(L8:L32,3) -> 0
B42: 2ºLugar | D42: 3ºLugar | F42: =LARGE(C8:C32,4) -> 0 | H42: 2ºLugar | J42: 3ºLugar | L42: =LARGE(F8:F32,4) -> 0 | N42: 2ºLugar | P42: 3ºLugar | Q42: =LARGE(I8:I32,4) -> 0 | S42: 2ºLugar | U42: 3ºLugar | V42: =LARGE(L8:L32,4) -> 0
E43: 4ºLugar | K43: 4ºLugar | Q43: 4ºLugar | V43: 4ºLugar

Sheet janeio
A2: Jogos de janeiro
C6: janeiro
A7: Nome | B7: Ordem | C7: J17 | D7: Nome | E7: Ordem | F7: J18 | G7: Nome | H7: Ordem | I7: J19 | J7: Nome | K7: Ordem | L7: J20 | M7: Total
A8: =lista_alunos!H27 -> 0 | B8: 18 | C8: =campeonato!Z9 -> 2 | D8: =campeonato!B26 -> 0 | E8: =campeonato!A26 -> 18 | F8: =campeonato!AA9 -> 0 | G8: =campeonato!B26 -> 0 | H8: =campeonato!A26 -> 18 | I8: =campeonato!AB9 -> 0 | J8: =campeonato!B26 -> 0 | K8: =campeonato!A26 -> 18 | L8: =campeonato!AC9 -> 5 | M8: =SUM(C8:L8) -> 61
A9: =lista_alunos!H19 -> J | B9: 10 | C9: =campeonato!Z10 -> 0 | D9: =campeonato!B18 -> J | E9: =campeonato!A18 -> 10 | F9: =campeonato!AA10 -> 0 | G9: =campeonato!B18 -> J | H9: =campeonato!A18 -> 10 | I9: =campeonato!AB10 -> 0 | J9: =campeonato!B18 -> J | K9: =campeonato!A18 -> 10 | L9: =campeonato!AC10 -> 0 | M9: 30
A10: =lista_alunos!H24 -> P | B10: 15 | C10: =campeonato!Z11 -> 0 | D10: =campeonato!B23 -> P | E10: =campeonato!A23 -> 15 | F10: =campeonato!AA11 -> 0 | G10: =campeonato!B23 -> P | H10: =campeonato!A23 -> 15 | I10: =campeonato!AB11 -> 0 | J10: =campeonato!B23 -> P | K10: =campeonato!A23 -> 15 | L10: =campeonato!AC11 -> 0 | M10: 45
A11: =lista_alunos!H23 -> O | B11: 14 | C11: =campeonato!Z12 -> 0 | D11: =campeonato!B22 -> O | E11: =campeonato!A22 -> 14 | F11: =campeonato!AA12 -> 0 | G11: =campeonato!B22 -> O | H11: =campeonato!A22 -> 14 | I11: =campeonato!AB12 -> 0 | J11: =campeonato!B22 -> O | K11: =campeonato!A22 -> 14 | L11: =campeonato!AC12 -> 0 | M11: 42
A12: =lista_alunos!H22 -> N | B12: 13 | C12: =campeonato!Z13 -> 0 | D12: =campeonato!B21 -> N | E12: =campeonato!A21 -> 13 | F12: =campeonato!AA13 -> 7 | G12: =campeonato!B21 -> N | H12: =campeonato!A21 -> 13 | I12: =campeonato!AB13 -> 0 | J12: =campeonato!B21 -> N | K12: =campeonato!A21 -> 13 | L12: =campeonato!AC13 -> 0 | M12: 46
A13: =lista_alunos!H21 -> M | B13: 12 | C13: =campeonato!Z14 -> 0 | D13: =campeonato!B20 -> M | E13: =campeonato!A20 -> 12 | F13: =campeonato!AA14 -> 0 | G13: =campeonato!B20 -> M | H13: =campeonato!A20 -> 12 | I13: =campeonato!AB14 -> 0 | J13: =campeonato!B20 -> M | K13: =campeonato!A20 -> 12 | L13: =campeonato!AC14 -> 0 | M13: 36
A14: =lista_alunos!H20 -> L | B14: 11 | C14: =campeonato!Z15 -> 0 | D14: =campeonato!B19 -> L | E14: =campeonato!A19 -> 11 | F14: =campeonato!AA15 -> 0 | G14: =campeonato!B19 -> L | H14: =campeonato!A19 -> 11 | I14: =campeonato!AB15 -> 0 | J14: =campeonato!B19 -> L | K14: =campeonato!A19 -> 11 | L14: =campeonato!AC15 -> 0 | M14: 33
A15: =lista_alunos!H25 -> 0 | B15: 16 | C15: =campeonato!Z16 -> 0 | D15: =campeonato!B24 -> 0 | E15: =campeonato!A24 -> 16 | F15: =campeonato!AA16 -> 0 | G15: =campeonato!B24 -> 0 | H15: =campeonato!A24 -> 16 | I15: =campeonato!AB16 -> 0 | J15: =campeonato!B24 -> 0 | K15: =campeonato!A24 -> 16 | L15: =campeonato!AC16 -> 0 | M15: 48
A16: =lista_alunos!H17 -> H | B16: 8 | C16: =campeonato!Z17 -> 0 | D16: =campeonato!B16 -> H | E16: =campeonato!A16 -> 8 | F16: =campeonato!AA17 -> 0 | G16: =campeonato!B16 -> H | H16: =campeonato!A16 -> 8 | I16: =campeonato!AB17 -> 0 | J16: =campeonato!B16 -> H | K16: =campeonato!A16 -> 8 | L16: =campeonato!AC17 -> 0 | M16: 24
A17: =lista_alunos!H15 -> F | B17: 6 | C17: =campeonato!Z18 -> 0 | D17: =campeonato!B14 -> F | E17: =campeonato!A14 -> 6 | F17: =campeonato!AA18 -> 0 | G17: =campeonato!B14 -> F | H17: =campeonato!A14 -> 6 | I17: =campeonato!AB18 -> 0 | J17: =campeonato!B14 -> F | K17: =campeonato!A14 -> 6 | L17: =campeonato!AC18 -> 0 | M17: 18
A18: =lista_alunos!H18 -> I | B18: 9 | C18: =campeonato!Z19 -> 0 | D18: =campeonato!B17 -> I | E18: =campeonato!A17 -> 9 | F18: =campeonato!AA19 -> 0 | G18: =campeonato!B17 -> I | H18: =campeonato!A17 -> 9 | I18: =campeonato!AB19 -> 0 | J18: =campeonato!B17 -> I | K18: =campeonato!A17 -> 9 | L18: =campeonato!AC19 -> 0 | M18: 27
A19: =lista_alunos!H35 -> 0 | B19: 26 | C19: =campeonato!Z20 -> 0 | D19: =campeonato!B34 -> 0 | E19: =campeonato!A34 -> 26 | F19: =campeonato!AA20 -> 0 | G19: =campeonato!B34 -> 0 | H19: =campeonato!A34 -> 26 | I19: =campeonato!AB20 -> 0 | J19: =campeonato!B34 -> 0 | K19: =campeonato!A34 -> 26 | L19: =campeonato!AC20 -> 0 | M19: 78
A20: =lista_alunos!H26 -> 0 | B20: 17 | C20: =campeonato!Z21 -> 0 | D20: =campeonato!B25 -> 0 | E20: =campeonato!A25 -> 17 | F20: =campeonato!AA21 -> 0 | G20: =campeonato!B25 -> 0 | H20: =campeonato!A25 -> 17 | I20: =campeonato!AB21 -> 0 | J20: =campeonato!B25 -> 0 | K20: =campeonato!A25 -> 17 | L20: =campeonato!AC21 -> 0 | M20: 51
A21: =lista_alunos!H12 -> C | B21: 3 | C21: =campeonato!Z22 -> 0 | D21: =campeonato!B11 -> C | E21: =campeonato!A11 -> 3 | F21: =campeonato!AA22 -> 0 | G21: =campeonato!B11 -> C | H21: =campeonato!A11 -> 3 | I21: =campeonato!AB22 -> 0 | J21: =campeonato!B11 -> C | K21: =campeonato!A11 -> 3 | L21: =campeonato!AC22 -> 0 | M21: 9
A22: =lista_alunos!H10 -> a | B22: 1 | C22: =campeonato!Z23 -> 0 | D22: =campeonato!B9 -> a | E22: =campeonato!A9 -> 1 | F22: =campeonato!AA23 -> 0 | G22: =campeonato!B9 -> a | H22: =campeonato!A9 -> 1 | I22: =campeonato!AB23 -> 0 | J22: =campeonato!B9 -> a | K22: =campeonato!A9 -> 1 | L22: =campeonato!AC23 -> 0 | M22: 3
A23: =lista_alunos!H14 -> E | B23: 5 | C23: =campeonato!Z24 -> 0 | D23: =campeonato!B13 -> E | E23: =campeonato!A13 -> 5 | F23: =campeonato!AA24 -> 0 | G23: =campeonato!B13 -> E | H23: =campeonato!A13 -> 5 | I23: =campeonato!AB24 -> 0 | J23: =campeonato!B13 -> E | K23: =campeonato!A13 -> 5 | L23: =campeonato!AC24 -> 0 | M23: 15
A24: =lista_alunos!H11 -> B | B24: 2 | C24: =campeonato!Z25 -> 0 | D24: =campeonato!B10 -> B | E24: =campeonato!A10 -> 2 | F24: =campeonato!AA25 -> 0 | G24: =campeonato!B10 -> B | H24: =campeonato!A10 -> 2 | I24: =campeonato!AB25 -> 0 | J24: =campeonato!B10 -> B | K24: =campeonato!A10 -> 2 | L24: =campeonato!AC25 -> 0 | M24: 6
A25: =lista_alunos!H13 -> D | B25: 4 | C25: =campeonato!Z26 -> 0 | D25: =campeonato!B12 -> D | E25: =campeonato!A12 -> 4 | F25: =campeonato!AA26 -> 0 | G25: =campeonato!B12 -> D | H25: =campeonato!A12 -> 4 | I25: =campeonato!AB26 -> 0 | J25: =campeonato!B12 -> D | K25: =campeonato!A12 -> 4 | L25: =campeonato!AC26 -> 0 | M25: 12
A26: =lista_alunos!H16 -> G | B26: 7 | C26: =campeonato!Z27 -> 0 | D26: =campeonato!B15 -> G | E26: =campeonato!A15 -> 7 | F26: =campeonato!AA27 -> 0 | G26: =campeonato!B15 -> G | H26: =campeonato!A15 -> 7 | I26: =campeonato!AB27 -> 0 | J26: =campeonato!B15 -> G | K26: =campeonato!A15 -> 7 | L26: =campeonato!AC27 -> 0 | M26: 21
A27: =lista_alunos!H34 -> 0 | B27: 25 | C27: =campeonato!Z28 -> 0 | D27: =campeonato!B33 -> 0 | E27: =campeonato!A33 -> 25 | F27: =campeonato!AA28 -> 0 | G27: =campeonato!B27 -> 0 | H27: =campeonato!A27 -> 19 | I27: =campeonato!AB28 -> 0 | J27: =campeonato!B33 -> 0 | K27: =campeonato!A33 -> 25 | L27: =campeonato!AC28 -> 0 | M27: 69
A28: =lista_alunos!H28 -> 0 | B28: 19 | C28: =campeonato!Z29 -> 0 | D28: =campeonato!B32 -> 0 | E28: =campeonato!A32 -> 24 | F28: =campeonato!AA29 -> 0 | G28: =campeonato!B28 -> 0 | H28: =campeonato!A28 -> 20 | I28: =campeonato!AB29 -> 0 | J28: =campeonato!B32 -> 0 | K28: =campeonato!A32 -> 24 | L28: =campeonato!AC29 -> 0 | M28: 68
A29: =lista_alunos!H29 -> 0 | B29: 20 | C29: =campeonato!Z30 -> 0 | D29: =campeonato!B31 -> 0 | E29: =campeonato!A31 -> 23 | F29: =campeonato!AA30 -> 0 | G29: =campeonato!B29 -> 0 | H29: =campeonato!A29 -> 21 | I29: =campeonato!AB30 -> 0 | J29: =campeonato!B31 -> 0 | K29: =campeonato!A31 -> 23 | L29: =campeonato!AC30 -> 0 | M29: 67
A30: =lista_alunos!H30 -> 0 | B30: 21 | C30: =campeonato!Z31 -> 0 | D30: =campeonato!B30 -> 0 | E30: =campeonato!A30 -> 22 | F30: =campeonato!AA31 -> 0 | G30: =campeonato!B30 -> 0 | H30: =campeonato!A30 -> 22 | I30: =campeonato!AB31 -> 0 | J30: =campeonato!B30 -> 0 | K30: =campeonato!A30 -> 22 | L30: =campeonato!AC31 -> 0 | M30: 66
A31: =lista_alunos!H31 -> 0 | B31: 22 | C31: =campeonato!Z32 -> 0 | D31: =campeonato!B29 -> 0 | E31: =campeonato!A29 -> 21 | F31: =campeonato!AA32 -> 0 | G31: =campeonato!B31 -> 0 | H31: =campeonato!A31 -> 23 | I31: =campeonato!AB32 -> 0 | J31: =campeonato!B29 -> 0 | K31: =campeonato!A29 -> 21 | L31: =campeonato!AC32 -> 0 | M31: 65
A32: =lista_alunos!H32 -> 0 | B32: 23 | C32: =campeonato!Z33 -> 0 | D32: =campeonato!B28 -> 0 | E32: =campeonato!A28 -> 20 | F32: =campeonato!AA33 -> 0 | G32: =campeonato!B32 -> 0 | H32: =campeonato!A32 -> 24 | I32: =campeonato!AB33 -> 0 | J32: =campeonato!B28 -> 0 | K32: =campeonato!A28 -> 20 | L32: =campeonato!AC33 -> 0 | M32: 64
A33: =lista_alunos!H33 -> 0 | B33: 24 | C33: =campeonato!Z34 -> 0 | D33: =campeonato!B27 -> 0 | E33: =campeonato!A27 -> 19 | F33: =campeonato!AA34 -> 0 | G33: =campeonato!B33 -> 0 | H33: =campeonato!A33 -> 25 | I33: =campeonato!AB34 -> 0 | J33: =campeonato!B27 -> 0 | K33: =campeonato!A27 -> 19 | L33: =campeonato!AC34 -> 0 | M33: 63
B38: JOGO 1 | H38: JOGO 2 | N38: JOGO 3 | S38: JOGO 4
C40: =LARGE(C8:C32,1) -> 2 | I40: =LARGE(F8:F32,1) -> 7 | O40: =LARGE(I8:I32,1) -> 0 | T40: =LARGE(L8:L32,1) -> 5
B41: =LARGE(C8:C32,2) -> 0 | C41: 1ºLugar | D41: =LARGE(C8:C32,3) -> 0 | H41: =LARGE(F8:F32,2) -> 0 | I41: 1ºLugar | J41: =LARGE(F8:F32,3) -> 0 | N41: =LARGE(I8:I32,2) -> 0 | O41: 1ºLugar | P41: =LARGE(I8:I32,3) -> 0 | S41: =LARGE(L8:L32,2) -> 0 | T41: 1ºLugar | U41: =LARGE(L8:L32,3) -> 0
B42: 2ºLugar | D42: 3ºLugar | F42: =LARGE(C8:C32,4) -> 0 | H42: 2ºLugar | J42: 3ºLugar | L42: =LARGE(F8:F32,4) -> 0 | N42: 2ºLugar | P42: 3ºLugar | Q42: =LARGE(I8:I32,4) -> 0 | S42: 2ºLugar | U42: 3ºLugar | V42: =LARGE(L8:L32,4) -> 0
E43: 4ºLugar | K43: 4ºLugar | Q43: 4ºLugar | V43: 4ºLugar

Sheet feverei
A2: Jogos de fevereiro
C6: fevereiro
A7: Nome | B7: Ordem | C7: J21 | D7: Nome | E7: Ordem | F7: J22 | G7: Nome | H7: Ordem | I7: J23 | J7: Nome | K7: Ordem | L7: J24 | M7: Total
A8: =lista_alunos!H20 -> L | B8: 11 | C8: =campeonato!AE9 -> 1 | D8: =campeonato!B26 -> 0 | E8: =campeonato!A26 -> 18 | F8: =campeonato!AF9 -> 0 | G8: =campeonato!B26 -> 0 | H8: =campeonato!A26 -> 18 | I8: =campeonato!AG9 -> 0 | J8: =campeonato!B14 -> F | K8: =campeonato!A14 -> 6 | L8: =campeonato!AH9 -> 3 | M8: =SUM(C8:L8) -> 46
A9: =lista_alunos!H27 -> 0 | B9: 18 | C9: =campeonato!AE10 -> 0 | D9: =campeonato!B18 -> J | E9: =campeonato!A18 -> 10 | F9: =campeonato!AF10 -> 0 | G9: =campeonato!B18 -> J | H9: =campeonato!A18 -> 10 | I9: =campeonato!AG10 -> 0 | J9: =campeonato!B26 -> 0 | K9: =campeonato!A26 -> 18 | L9: =campeonato!AH10 -> 0 | M9: 38
A10: =lista_alunos!H19 -> J | B10: 10 | C10: =campeonato!AE11 -> 0 | D10: =campeonato!B23 -> P | E10: =campeonato!A23 -> 15 | F10: =campeonato!AF11 -> 0 | G10: =campeonato!B23 -> P | H10: =campeonato!A23 -> 15 | I10: =campeonato!AG11 -> 0 | J10: =campeonato!B18 -> J | K10: =campeonato!A18 -> 10 | L10: =campeonato!AH11 -> 0 | M10: 40
A11: =lista_alunos!H24 -> P | B11: 15 | C11: =campeonato!AE12 -> 0 | D11: =campeonato!B22 -> O | E11: =campeonato!A22 -> 14 | F11: =campeonato!AF12 -> 0 | G11: =campeonato!B22 -> O | H11: =campeonato!A22 -> 14 | I11: =campeonato!AG12 -> 0 | J11: =campeonato!B23 -> P | K11: =campeonato!A23 -> 15 | L11: =campeonato!AH12 -> 0 | M11: 43
A12: =lista_alunos!H23 -> O | B12: 14 | C12: =campeonato!AE13 -> 0 | D12: =campeonato!B21 -> N | E12: =campeonato!A21 -> 13 | F12: =campeonato!AF13 -> 0 | G12: =campeonato!B21 -> N | H12: =campeonato!A21 -> 13 | I12: =campeonato!AG13 -> 0 | J12: =campeonato!B22 -> O | K12: =campeonato!A22 -> 14 | L12: =campeonato!AH13 -> 0 | M12: 40
A13: =lista_alunos!H22 -> N | B13: 13 | C13: =campeonato!AE14 -> 0 | D13: =campeonato!B20 -> M | E13: =campeonato!A20 -> 12 | F13: =campeonato!AF14 -> 0 | G13: =campeonato!B20 -> M | H13: =campeonato!A20 -> 12 | I13: =campeonato!AG14 -> 0 | J13: =campeonato!B21 -> N | K13: =campeonato!A21 -> 13 | L13: =campeonato!AH14 -> 0 | M13: 37
A14: =lista_alunos!H21 -> M | B14: 12 | C14: =campeonato!AE15 -> 43 | D14: =campeonato!B19 -> L | E14: =campeonato!A19 -> 11 | F14: =campeonato!AF15 -> 0 | G14: =campeonato!B19 -> L | H14: =campeonato!A19 -> 11 | I14: =campeonato!AG15 -> 0 | J14: =campeonato!B20 -> M | K14: =campeonato!A20 -> 12 | L14: =campeonato!AH15 -> 0 | M14: 77
A15: =lista_alunos!H25 -> 0 | B15: 16 | C15: =campeonato!AE16 -> 0 | D15: =campeonato!B24 -> 0 | E15: =campeonato!A24 -> 16 | F15: =campeonato!AF16 -> 0 | G15: =campeonato!B24 -> 0 | H15: =campeonato!A24 -> 16 | I15: =campeonato!AG16 -> 0 | J15: =campeonato!B19 -> L | K15: =campeonato!A19 -> 11 | L15: =campeonato!AH16 -> 0 | M15: 43
A16: =lista_alunos!H17 -> H | B16: 8 | C16: =campeonato!AE17 -> 0 | D16: =campeonato!B16 -> H | E16: =campeonato!A16 -> 8 | F16: =campeonato!AF17 -> 0 | G16: =campeonato!B16 -> H | H16: =campeonato!A16 -> 8 | I16: =campeonato!AG17 -> 0 | J16: =campeonato!B24 -> 0 | K16: =campeonato!A24 -> 16 | L16: =campeonato!AH17 -> 0 | M16: 32
A17: =lista_alunos!H15 -> F | B17: 6 | C17: =campeonato!AE18 -> 0 | D17: =campeonato!B14 -> F | E17: =campeonato!A14 -> 6 | F17: =campeonato!AF18 -> 0 | G17: =campeonato!B14 -> F | H17: =campeonato!A14 -> 6 | I17: =campeonato!AG18 -> 0 | J17: =campeonato!B16 -> H | K17: =campeonato!A16 -> 8 | L17: =campeonato!AH18 -> 18 | M17: 38
A18: =lista_alunos!H18 -> I | B18: 9 | C18: =campeonato!AE19 -> 0 | D18: =campeonato!B17 -> I | E18: =campeonato!A17 -> 9 | F18: =campeonato!AF19 -> 0 | G18: =campeonato!B17 -> I | H18: =campeonato!A17 -> 9 | I18: =campeonato!AG19 -> 0 | J18: =campeonato!B17 -> I | K18: =campeonato!A17 -> 9 | L18: =campeonato!AH19 -> 0 | M18: 27
A19: =lista_alunos!H35 -> 0 | B19: 26 | C19: =campeonato!AE20 -> 0 | D19: =campeonato!B34 -> 0 | E19: =campeonato!A34 -> 26 | F19: =campeonato!AF20 -> 0 | G19: =campeonato!B34 -> 0 | H19: =campeonato!A34 -> 26 | I19: =campeonato!AG20 -> 0 | J19: =campeonato!B34 -> 0 | K19: =campeonato!A34 -> 26 | L19: =campeonato!AH20 -> 0 | M19: 78
A20: =lista_alunos!H26 -> 0 | B20: 17 | C20: =campeonato!AE21 -> 0 | D20: =campeonato!B25 -> 0 | E20: =campeonato!A25 -> 17 | F20: =campeonato!AF21 -> 0 | G20: =campeonato!B25 -> 0 | H20: =campeonato!A25 -> 17 | I20: =campeonato!AG21 -> 0 | J20: =campeonato!B25 -> 0 | K20: =campeonato!A25 -> 17 | L20: =campeonato!AH21 -> 0 | M20: 51
A21: =lista_alunos!H12 -> C | B21: 3 | C21: =campeonato!AE22 -> 0 | D21: =campeonato!B11 -> C | E21: =campeonato!A11 -> 3 | F21: =campeonato!AF22 -> 0 | G21: =campeonato!B11 -> C | H21: =campeonato!A11 -> 3 | I21: =campeonato!AG22 -> 0 | J21: =campeonato!B11 -> C | K21: =campeonato!A11 -> 3 | L21: =campeonato!AH22 -> 0 | M21: 9
A22: =lista_alunos!H10 -> a | B22: 1 | C22: =campeonato!AE23 -> 0 | D22: =campeonato!B9 -> a | E22: =campeonato!A9 -> 1 | F22: =campeonato!AF23 -> 0 | G22: =campeonato!B9 -> a | H22: =campeonato!A9 -> 1 | I22: =campeonato!AG23 -> 0 | J22: =campeonato!B9 -> a | K22: =campeonato!A9 -> 1 | L22: =campeonato!AH23 -> 0 | M22: 3
A23: =lista_alunos!H14 -> E | B23: 5 | C23: =campeonato!AE24 -> 0 | D23: =campeonato!B13 -> E | E23: =campeonato!A13 -> 5 | F23: =campeonato!AF24 -> 0 | G23: =campeonato!B13 -> E | H23: =campeonato!A13 -> 5 | I23: =campeonato!AG24 -> 0 | J23: =campeonato!B13 -> E | K23: =campeonato!A13 -> 5 | L23: =campeonato!AH24 -> 0 | M23: 15
A24: =lista_alunos!H11 -> B | B24: 2 | C24: =campeonato!AE25 -> 0 | D24: =campeonato!B10 -> B | E24: =campeonato!A10 -> 2 | F24: =campeonato!AF25 -> 0 | G24: =campeonato!B10 -> B | H24: =campeonato!A10 -> 2 | I24: =campeonato!AG25 -> 0 | J24: =campeonato!B10 -> B | K24: =campeonato!A10 -> 2 | L24: =campeonato!AH25 -> 0 | M24: 6
A25: =lista_alunos!H13 -> D | B25: 4 | C25: =campeonato!AE26 -> 0 | D25: =campeonato!B12 -> D | E25: =campeonato!A12 -> 4 | F25: =campeonato!AF26 -> 0 | G25: =campeonato!B12 -> D | H25: =campeonato!A12 -> 4 | I25: =campeonato!AG26 -> 0 | J25: =campeonato!B12 -> D | K25: =campeonato!A12 -> 4 | L25: =campeonato!AH26 -> 0 | M25: 12
A26: =lista_alunos!H16 -> G | B26: 7 | C26: =campeonato!AE27 -> 0 | D26: =campeonato!B15 -> G | E26: =campeonato!A15 -> 7 | F26: =campeonato!AF27 -> 0 | G26: =campeonato!B15 -> G | H26: =campeonato!A15 -> 7 | I26: =campeonato!AG27 -> 0 | J26: =campeonato!B15 -> G | K26: =campeonato!A15 -> 7 | L26: =campeonato!AH27 -> 0 | M26: 21
A27: =lista_alunos!H34 -> 0 | B27: 25 | C27: =campeonato!AE28 -> 0 | D27: =campeonato!B33 -> 0 | E27: =campeonato!A33 -> 25 | F27: =campeonato!AF28 -> 0 | G27: =campeonato!B27 -> 0 | H27: =campeonato!A27 -> 19 | I27: =campeonato!AG28 -> 0 | J27: =campeonato!B33 -> 0 | K27: =campeonato!A33 -> 25 | L27: =campeonato!AH28 -> 0 | M27: 69
A28: =lista_alunos!H28 -> 0 | B28: 19 | C28: =campeonato!AE29 -> 0 | D28: =campeonato!B32 -> 0 | E28: =campeonato!A32 -> 24 | F28: =campeonato!AF29 -> 0 | G28: =campeonato!B28 -> 0 | H28: =campeonato!A28 -> 20 | I28: =campeonato!AG29 -> 0 | J28: =campeonato!B32 -> 0 | K28: =campeonato!A32 -> 24 | L28: =campeonato!AH29 -> 0 | M28: 68
A29: =lista_alunos!H29 -> 0 | B29: 20 | C29: =campeonato!AE30 -> 0 | D29: =campeonato!B31 -> 0 | E29: =campeonato!A31 -> 23 | F29: =campeonato!AF30 -> 0 | G29: =campeonato!B29 -> 0 | H29: =campeonato!A29 -> 21 | I29: =campeonato!AG30 -> 0 | J29: =campeonato!B31 -> 0 | K29: =campeonato!A31 -> 23 | L29: =campeonato!AH30 -> 0 | M29: 67
A30: =lista_alunos!H30 -> 0 | B30: 21 | C30: =campeonato!AE31 -> 0 | D30: =campeonato!B30 -> 0 | E30: =campeonato!A30 -> 22 | F30: =campeonato!AF31 -> 0 | G30: =campeonato!B30 -> 0 | H30: =campeonato!A30 -> 22 | I30: =campeonato!AG31 -> 0 | J30: =campeonato!B30 -> 0 | K30: =campeonato!A30 -> 22 | L30: =campeonato!AH31 -> 0 | M30: 66
A31: =lista_alunos!H31 -> 0 | B31: 22 | C31: =campeonato!AE32 -> 0 | D31: =campeonato!B29 -> 0 | E31: =campeonato!A29 -> 21 | F31: =campeonato!AF32 -> 0 | G31: =campeonato!B31 -> 0 | H31: =campeonato!A31 -> 23 | I31: =campeonato!AG32 -> 0 | J31: =campeonato!B29 -> 0 | K31: =campeonato!A29 -> 21 | L31: =campeonato!AH32 -> 0 | M31: 65
A32: =lista_alunos!H32 -> 0 | B32: 23 | C32: =campeonato!AE33 -> 0 | D32: =campeonato!B28 -> 0 | E32: =campeonato!A28 -> 20 | F32: =campeonato!AF33 -> 0 | G32: =campeonato!B32 -> 0 | H32: =campeonato!A32 -> 24 | I32: =campeonato!AG33 -> 0 | J32: =campeonato!B28 -> 0 | K32: =campeonato!A28 -> 20 | L32: =campeonato!AH33 -> 0 | M32: 64
A33: =lista_alunos!H33 -> 0 | B33: 24 | C33: =campeonato!AE34 -> 0 | D33: =campeonato!B27 -> 0 | E33: =campeonato!A27 -> 19 | F33: =campeonato!AF34 -> 0 | G33: =campeonato!B33 -> 0 | H33: =campeonato!A33 -> 25 | I33: =campeonato!AG34 -> 0 | J33: =campeonato!B27 -> 0 | K33: =campeonato!A27 -> 19 | L33: =campeonato!AH34 -> 0 | M33: 63
B38: JOGO 1 | H38: JOGO 2 | N38: JOGO 3 | S38: JOGO 4
C40: =LARGE(C8:C32,1) -> 43 | I40: =LARGE(F8:F32,1) -> 0 | O40: =LARGE(I8:I32,1) -> 0 | T40: =LARGE(L8:L32,1) -> 18
B41: =LARGE(C8:C32,2) -> 1 | C41: 1ºLugar | D41: =LARGE(C8:C32,3) -> 0 | H41: =LARGE(F8:F32,2) -> 0 | I41: 1ºLugar | J41: =LARGE(F8:F32,3) -> 0 | N41: =LARGE(I8:I32,2) -> 0 | O41: 1ºLugar | P41: =LARGE(I8:I32,3) -> 0 | S41: =LARGE(L8:L32,2) -> 3 | T41: 1ºLugar | U41: =LARGE(L8:L32,3) -> 0
B42: 2ºLugar | D42: 3ºLugar | F42: =LARGE(C8:C32,4) -> 0 | H42: 2ºLugar | J42: 3ºLugar | L42: =LARGE(F8:F32,4) -> 0 | N42: 2ºLugar | P42: 3ºLugar | Q42: =LARGE(I8:I32,4) -> 0 | S42: 2ºLugar | U42: 3ºLugar | V42: =LARGE(L8:L32,4) -> 0
E43: 4ºLugar | K43: 4ºLugar | Q43: 4ºLugar | V43: 4ºLugar

Sheet março
A2: Jogos de março
C6: janeiro
A7: Nome | B7: Ordem | C7: J25 | D7: Nome | E7: Ordem | F7: J26 | G7: Nome | H7: Ordem | I7: J27 | J7: Nome | K7: Ordem | L7: J28 | M7: Total
A8: =lista_alunos!H10 -> a | B8: 1 | C8: =campeonato!AJ9 -> 2 | D8: =campeonato!B26 -> 0 | E8: =campeonato!A26 -> 18 | F8: =campeonato!AK9 -> 0 | G8: =campeonato!B26 -> 0 | H8: =campeonato!A26 -> 18 | I8: =campeonato!AL9 -> 0 | J8: =campeonato!B26 -> 0 | K8: =campeonato!A26 -> 18 | L8: =campeonato!AM9 -> 30 | M8: =SUM(C8:L8) -> 86
A9: =lista_alunos!H19 -> J | B9: 10 | C9: =campeonato!AJ10 -> 0 | D9: =campeonato!B18 -> J | E9: =campeonato!A18 -> 10 | F9: =campeonato!AK10 -> 0 | G9: =campeonato!B18 -> J | H9: =campeonato!A18 -> 10 | I9: =campeonato!AL10 -> 0 | J9: =campeonato!B25 -> 0 | K9: =campeonato!A25 -> 17 | L9: =campeonato!AM10 -> 0 | M9: 37
A10: =lista_alunos!H20 -> L | B10: 11 | C10: =campeonato!AJ11 -> 22 | D10: =campeonato!B23 -> P | E10: =campeonato!A23 -> 15 | F10: =campeonato!AK11 -> 0 | G10: =campeonato!B23 -> P | H10: =campeonato!A23 -> 15 | I10: =campeonato!AL11 -> 0 | J10: =campeonato!B23 -> P | K10: =campeonato!A23 -> 15 | L10: =campeonato!AM11 -> 4 | M10: 71
A11: =lista_alunos!H22 -> N | B11: 13 | C11: =campeonato!AJ12 -> 0 | D11: =campeonato!B22 -> O | E11: =campeonato!A22 -> 14 | F11: =campeonato!AK12 -> 0 | G11: =campeonato!B22 -> O | H11: =campeonato!A22 -> 14 | I11: =campeonato!AL12 -> 0 | J11: =campeonato!B18 -> J | K11: =campeonato!A18 -> 10 | L11: =campeonato!AM12 -> 0 | M11: 38
A12: =lista_alunos!H27 -> 0 | B12: 18 | C12: =campeonato!AJ13 -> 0 | D12: =campeonato!B21 -> N | E12: =campeonato!A21 -> 13 | F12: =campeonato!AK13 -> 0 | G12: =campeonato!B21 -> N | H12: =campeonato!A21 -> 13 | I12: =campeonato!AL13 -> 0 | J12: =campeonato!B22 -> O | K12: =campeonato!A22 -> 14 | L12: =campeonato!AM13 -> 0 | M12: 40
A13: =lista_alunos!H24 -> P | B13: 15 | C13: =campeonato!AJ14 -> 1 | D13: =campeonato!B20 -> M | E13: =campeonato!A20 -> 12 | F13: =campeonato!AK14 -> 0 | G13: =campeonato!B20 -> M | H13: =campeonato!A20 -> 12 | I13: =campeonato!AL14 -> 0 | J13: =campeonato!B21 -> N | K13: =campeonato!A21 -> 13 | L13: =campeonato!AM14 -> 0 | M13: 38
A14: =lista_alunos!H23 -> O | B14: 14 | C14: =campeonato!AJ15 -> 0 | D14: =campeonato!B19 -> L | E14: =campeonato!A19 -> 11 | F14: =campeonato!AK15 -> 0 | G14: =campeonato!B19 -> L | H14: =campeonato!A19 -> 11 | I14: =campeonato!AL15 -> 0 | J14: =campeonato!B20 -> M | K14: =campeonato!A20 -> 12 | L14: =campeonato!AM15 -> 0 | M14: 34
A15: =lista_alunos!H21 -> M | B15: 12 | C15: =campeonato!AJ16 -> 0 | D15: =campeonato!B24 -> 0 | E15: =campeonato!A24 -> 16 | F15: =campeonato!AK16 -> 0 | G15: =campeonato!B24 -> 0 | H15: =campeonato!A24 -> 16 | I15: =campeonato!AL16 -> 0 | J15: =campeonato!B19 -> L | K15: =campeonato!A19 -> 11 | L15: =campeonato!AM16 -> 0 | M15: 43
A16: =lista_alunos!H25 -> 0 | B16: 16 | C16: =campeonato!AJ17 -> 0 | D16: =campeonato!B16 -> H | E16: =campeonato!A16 -> 8 | F16: =campeonato!AK17 -> 0 | G16: =campeonato!B16 -> H | H16: =campeonato!A16 -> 8 | I16: =campeonato!AL17 -> 0 | J16: =campeonato!B24 -> 0 | K16: =campeonato!A24 -> 16 | L16: =campeonato!AM17 -> 0 | M16: 32
A17: =lista_alunos!H17 -> H | B17: 8 | C17: =campeonato!AJ18 -> 0 | D17: =campeonato!B14 -> F | E17: =campeonato!A14 -> 6 | F17: =campeonato!AK18 -> 0 | G17: =campeonato!B14 -> F | H17: =campeonato!A14 -> 6 | I17: =campeonato!AL18 -> 0 | J17: =campeonato!B16 -> H | K17: =campeonato!A16 -> 8 | L17: =campeonato!AM18 -> 0 | M17: 20
A18: =lista_alunos!H15 -> F | B18: 6 | C18: =campeonato!AJ19 -> 0 | D18: =campeonato!B17 -> I | E18: =campeonato!A17 -> 9 | F18: =campeonato!AK19 -> 0 | G18: =campeonato!B17 -> I | H18: =campeonato!A17 -> 9 | I18: =campeonato!AL19 -> 0 | J18: =campeonato!B14 -> F | K18: =campeonato!A14 -> 6 | L18: =campeonato!AM19 -> 0 | M18: 24
A19: =lista_alunos!H18 -> I | B19: 9 | C19: =campeonato!AJ20 -> 0 | D19: =campeonato!B34 -> 0 | E19: =campeonato!A34 -> 26 | F19: =campeonato!AK20 -> 0 | G19: =campeonato!B34 -> 0 | H19: =campeonato!A34 -> 26 | I19: =campeonato!AL20 -> 0 | J19: =campeonato!B17 -> I | K19: =campeonato!A17 -> 9 | L19: =campeonato!AM20 -> 0 | M19: 61
A20: =lista_alunos!H35 -> 0 | B20: 26 | C20: =campeonato!AJ21 -> 0 | D20: =campeonato!B25 -> 0 | E20: =campeonato!A25 -> 17 | F20: =campeonato!AK21 -> 0 | G20: =campeonato!B25 -> 0 | H20: =campeonato!A25 -> 17 | I20: =campeonato!AL21 -> 0 | J20: =campeonato!B34 -> 0 | K20: =campeonato!A34 -> 26 | L20: =campeonato!AM21 -> 21 | M20: 81
A21: =lista_alunos!H26 -> 0 | B21: 17 | C21: =campeonato!AJ22 -> 0 | D21: =campeonato!B11 -> C | E21: =campeonato!A11 -> 3 | F21: =campeonato!AK22 -> 0 | G21: =campeonato!B11 -> C | H21: =campeonato!A11 -> 3 | I21: =campeonato!AL22 -> 0 | J21: =campeonato!B11 -> C | K21: =campeonato!A11 -> 3 | L21: =campeonato!AM22 -> 0 | M21: 9
A22: =lista_alunos!H12 -> C | B22: 3 | C22: =campeonato!AJ23 -> 80 | D22: =campeonato!B9 -> a | E22: =campeonato!A9 -> 1 | F22: =campeonato!AK23 -> 0 | G22: =campeonato!B9 -> a | H22: =campeonato!A9 -> 1 | I22: =campeonato!AL23 -> 0 | J22: =campeonato!B9 -> a | K22: =campeonato!A9 -> 1 | L22: =campeonato!AM23 -> 0 | M22: 83
A23: =lista_alunos!H14 -> E | B23: 5 | C23: =campeonato!AJ24 -> 0 | D23: =campeonato!B13 -> E | E23: =campeonato!A13 -> 5 | F23: =campeonato!AK24 -> 0 | G23: =campeonato!B13 -> E | H23: =campeonato!A13 -> 5 | I23: =campeonato!AL24 -> 0 | J23: =campeonato!B13 -> E | K23: =campeonato!A13 -> 5 | L23: =campeonato!AM24 -> 0 | M23: 15
A24: =lista_alunos!H11 -> B | B24: 2 | C24: =campeonato!AJ25 -> 0 | D24: =campeonato!B10 -> B | E24: =campeonato!A10 -> 2 | F24: =campeonato!AK25 -> 0 | G24: =campeonato!B10 -> B | H24: =campeonato!A10 -> 2 | I24: =campeonato!AL25 -> 0 | J24: =campeonato!B10 -> B | K24: =campeonato!A10 -> 2 | L24: =campeonato!AM25 -> 0 | M24: 6
A25: =lista_alunos!H13 -> D | B25: 4 | C25: =campeonato!AJ26 -> 0 | D25: =campeonato!B12 -> D | E25: =campeonato!A12 -> 4 | F25: =campeonato!AK26 -> 0 | G25: =campeonato!B12 -> D | H25: =campeonato!A12 -> 4 | I25: =campeonato!AL26 -> 0 | J25: =campeonato!B12 -> D | K25: =campeonato!A12 -> 4 | L25: =campeonato!AM26 -> 0 | M25: 12
A26: =lista_alunos!H16 -> G | B26: 7 | C26: =campeonato!AJ27 -> 0 | D26: =campeonato!B15 -> G | E26: =campeonato!A15 -> 7 | F26: =campeonato!AK27 -> 0 | G26: =campeonato!B15 -> G | H26: =campeonato!A15 -> 7 | I26: =campeonato!AL27 -> 0 | J26: =campeonato!B15 -> G | K26: =campeonato!A15 -> 7 | L26: =campeonato!AM27 -> 0 | M26: 21
A27: =lista_alunos!H34 -> 0 | B27: 25 | C27: =campeonato!AJ28 -> 0 | D27: =campeonato!B33 -> 0 | E27: =campeonato!A33 -> 25 | F27: =campeonato!AK28 -> 0 | G27: =campeonato!B27 -> 0 | H27: =campeonato!A27 -> 19 | I27: =campeonato!AL28 -> 0 | J27: =campeonato!B33 -> 0 | K27: =campeonato!A33 -> 25 | L27: =campeonato!AM28 -> 0 | M27: 69
A28: =lista_alunos!H28 -> 0 | B28: 19 | C28: =campeonato!AJ29 -> 0 | D28: =campeonato!B32 -> 0 | E28: =campeonato!A32 -> 24 | F28: =campeonato!AK29 -> 0 | G28: =campeonato!B28 -> 0 | H28: =campeonato!A28 -> 20 | I28: =campeonato!AL29 -> 0 | J28: =campeonato!B32 -> 0 | K28: =campeonato!A32 -> 24 | L28: =campeonato!AM29 -> 0 | M28: 68
A29: =lista_alunos!H29 -> 0 | B29: 20 | C29: =campeonato!AJ30 -> 0 | D29: =campeonato!B31 -> 0 | E29: =campeonato!A31 -> 23 | F29: =campeonato!AK30 -> 0 | G29: =campeonato!B29 -> 0 | H29: =campeonato!A29 -> 21 | I29: =campeonato!AL30 -> 0 | J29: =campeonato!B31 -> 0 | K29: =campeonato!A31 -> 23 | L29: =campeonato!AM30 -> 0 | M29: 67
A30: =lista_alunos!H30 -> 0 | B30: 21 | C30: =campeonato!AJ31 -> 0 | D30: =campeonato!B30 -> 0 | E30: =campeonato!A30 -> 22 | F30: =campeonato!AK31 -> 0 | G30: =campeonato!B30 -> 0 | H30: =campeonato!A30 -> 22 | I30: =campeonato!AL31 -> 0 | J30: =campeonato!B30 -> 0 | K30: =campeonato!A30 -> 22 | L30: =campeonato!AM31 -> 0 | M30: 66
A31: =lista_alunos!H31 -> 0 | B31: 22 | C31: =campeonato!AJ32 -> 0 | D31: =campeonato!B29 -> 0 | E31: =campeonato!A29 -> 21 | F31: =campeonato!AK32 -> 0 | G31: =campeonato!B31 -> 0 | H31: =campeonato!A31 -> 23 | I31: =campeonato!AL32 -> 0 | J31: =campeonato!B29 -> 0 | K31: =campeonato!A29 -> 21 | L31: =campeonato!AM32 -> 0 | M31: 65
A32: =lista_alunos!H32 -> 0 | B32: 23 | C32: =campeonato!AJ33 -> 0 | D32: =campeonato!B28 -> 0 | E32: =campeonato!A28 -> 20 | F32: =campeonato!AK33 -> 0 | G32: =campeonato!B32 -> 0 | H32: =campeonato!A32 -> 24 | I32: =campeonato!AL33 -> 0 | J32: =campeonato!B28 -> 0 | K32: =campeonato!A28 -> 20 | L32: =campeonato!AM33 -> 0 | M32: 64
A33: =lista_alunos!H33 -> 0 | B33: 24 | C33: =campeonato!AJ34 -> 0 | D33: =campeonato!B27 -> 0 | E33: =campeonato!A27 -> 19 | F33: =campeonato!AK34 -> 0 | G33: =campeonato!B33 -> 0 | H33: =campeonato!A33 -> 25 | I33: =campeonato!AL34 -> 0 | J33: =campeonato!B27 -> 0 | K33: =campeonato!A27 -> 19 | L33: =campeonato!AM34 -> 0 | M33: 63
B38: JOGO 1 | H38: JOGO 2 | N38: JOGO 3 | S38: JOGO 4
C40: =LARGE(C8:C32,1) -> 80 | I40: =LARGE(F8:F32,1) -> 0 | O40: =LARGE(I8:I32,1) -> 0 | T40: =LARGE(L8:L32,1) -> 30
B41: =LARGE(C8:C32,2) -> 22 | C41: 1ºLugar | D41: =LARGE(C8:C32,3) -> 2 | H41: =LARGE(F8:F32,2) -> 0 | I41: 1ºLugar | J41: =LARGE(F8:F32,3) -> 0 | N41: =LARGE(I8:I32,2) -> 0 | O41: 1ºLugar | P41: =LARGE(I8:I32,3) -> 0 | S41: =LARGE(L8:L32,2) -> 21 | T41: 1ºLugar | U41: =LARGE(L8:L32,3) -> 4
B42: 2ºLugar | D42: 3ºLugar | F42: =LARGE(C8:C32,4) -> 1 | H42: 2ºLugar | J42: 3ºLugar | L42: =LARGE(F8:F32,4) -> 0 | N42: 2ºLugar | P42: 3ºLugar | Q42: =LARGE(I8:I32,4) -> 0 | S42: 2ºLugar | U42: 3ºLugar | V42: =LARGE(L8:L32,4) -> 0
E43: 4ºLugar | K43: 4ºLugar | Q43: 4ºLugar | V43: 4ºLugar

Sheet abril
A2: Jogos de abril
C6: abril
A7: Nome | B7: Ordem | C7: J29 | D7: Nome | E7: Ordem | F7: J30 | G7: Nome | H7: Ordem | I7: J31 | J7: Nome | K7: Ordem | L7: J32 | M7: Total
A8: =lista_alunos!H27 -> 0 | B8: 18 | C8: =campeonato!AO9 -> 0 | D8: =campeonato!B26 -> 0 | E8: =campeonato!A26 -> 18 | F8: =campeonato!AP9 -> 0 | G8: =campeonato!B26 -> 0 | H8: =campeonato!A26 -> 18 | I8: =campeonato!AQ9 -> 0 | J8: =campeonato!B26 -> 0 | K8: =campeonato!A26 -> 18 | L8: =campeonato!AR9 -> 0 | M8: =SUM(C8:L8) -> 54
A9: =lista_alunos!H19 -> J | B9: 10 | C9: =campeonato!AO10 -> 0 | D9: =campeonato!B18 -> J | E9: =campeonato!A18 -> 10 | F9: =campeonato!AP10 -> 0 | G9: =campeonato!B18 -> J | H9: =campeonato!A18 -> 10 | I9: =campeonato!AQ10 -> 0 | J9: =campeonato!B18 -> J | K9: =campeonato!A18 -> 10 | L9: =campeonato!AR10 -> 0 | M9: 30
A10: =lista_alunos!H24 -> P | B10: 15 | C10: =campeonato!AO11 -> 0 | D10: =campeonato!B23 -> P | E10: =campeonato!A23 -> 15 | F10: =campeonato!AP11 -> 0 | G10: =campeonato!B23 -> P | H10: =campeonato!A23 -> 15 | I10: =campeonato!AQ11 -> 0 | J10: =campeonato!B23 -> P | K10: =campeonato!A23 -> 15 | L10: =campeonato!AR11 -> 0 | M10: 45
A11: =lista_alunos!H23 -> O | B11: 14 | C11: =campeonato!AO12 -> 0 | D11: =campeonato!B22 -> O | E11: =campeonato!A22 -> 14 | F11: =campeonato!AP12 -> 0 | G11: =campeonato!B22 -> O | H11: =campeonato!A22 -> 14 | I11: =campeonato!AQ12 -> 0 | J11: =campeonato!B22 -> O | K11: =campeonato!A22 -> 14 | L11: =campeonato!AR12 -> 0 | M11: 42
A12: =lista_alunos!H22 -> N | B12: 13 | C12: =campeonato!AO13 -> 0 | D12: =campeonato!B21 -> N | E12: =campeonato!A21 -> 13 | F12: =campeonato!AP13 -> 0 | G12: =campeonato!B21 -> N | H12: =campeonato!A21 -> 13 | I12: =campeonato!AQ13 -> 0 | J12: =campeonato!B21 -> N | K12: =campeonato!A21 -> 13 | L12: =campeonato!AR13 -> 0 | M12: 39
A13: =lista_alunos!H21 -> M | B13: 12 | C13: =campeonato!AO14 -> 0 | D13: =campeonato!B20 -> M | E13: =campeonato!A20 -> 12 | F13: =campeonato!AP14 -> 0 | G13: =campeonato!B20 -> M | H13: =campeonato!A20 -> 12 | I13: =campeonato!AQ14 -> 0 | J13: =campeonato!B20 -> M | K13: =campeonato!A20 -> 12 | L13: =campeonato!AR14 -> 0 | M13: 36
A14: =lista_alunos!H20 -> L | B14: 11 | C14: =campeonato!AO15 -> 0 | D14: =campeonato!B19 -> L | E14: =campeonato!A19 -> 11 | F14: =campeonato!AP15 -> 0 | G14: =campeonato!B19 -> L | H14: =campeonato!A19 -> 11 | I14: =campeonato!AQ15 -> 0 | J14: =campeonato!B19 -> L | K14: =campeonato!A19 -> 11 | L14: =campeonato!AR15 -> 0 | M14: 33
A15: =lista_alunos!H25 -> 0 | B15: 16 | C15: =campeonato!AO16 -> 0 | D15: =campeonato!B24 -> 0 | E15: =campeonato!A24 -> 16 | F15: =campeonato!AP16 -> 0 | G15: =campeonato!B24 -> 0 | H15: =campeonato!A24 -> 16 | I15: =campeonato!AQ16 -> 0 | J15: =campeonato!B24 -> 0 | K15: =campeonato!A24 -> 16 | L15: =campeonato!AR16 -> 0 | M15: 48
A16: =lista_alunos!H17 -> H | B16: 8 | C16: =campeonato!AO17 -> 0 | D16: =campeonato!B16 -> H | E16: =campeonato!A16 -> 8 | F16: =campeonato!AP17 -> 0 | G16: =campeonato!B16 -> H | H16: =campeonato!A16 -> 8 | I16: =campeonato!AQ17 -> 0 | J16: =campeonato!B16 -> H | K16: =campeonato!A16 -> 8 | L16: =campeonato!AR17 -> 0 | M16: 24
A17: =lista_alunos!H15 -> F | B17: 6 | C17: =campeonato!AO18 -> 0 | D17: =campeonato!B14 -> F | E17: =campeonato!A14 -> 6 | F17: =campeonato!AP18 -> 0 | G17: =campeonato!B14 -> F | H17: =campeonato!A14 -> 6 | I17: =campeonato!AQ18 -> 0 | J17: =campeonato!B14 -> F | K17: =campeonato!A14 -> 6 | L17: =campeonato!AR18 -> 0 | M17: 18
A18: =lista_alunos!H18 -> I | B18: 9 | C18: =campeonato!AO19 -> 0 | D18: =campeonato!B17 -> I | E18: =campeonato!A17 -> 9 | F18: =campeonato!AP19 -> 0 | G18: =campeonato!B17 -> I | H18: =campeonato!A17 -> 9 | I18: =campeonato!AQ19 -> 0 | J18: =campeonato!B17 -> I | K18: =campeonato!A17 -> 9 | L18: =campeonato!AR19 -> 0 | M18: 27
A19: =lista_alunos!H35 -> 0 | B19: 26 | C19: =campeonato!AO20 -> 0 | D19: =campeonato!B34 -> 0 | E19: =campeonato!A34 -> 26 | F19: =campeonato!AP20 -> 0 | G19: =campeonato!B34 -> 0 | H19: =campeonato!A34 -> 26 | I19: =campeonato!AQ20 -> 0 | J19: =campeonato!B34 -> 0 | K19: =campeonato!A34 -> 26 | L19: =campeonato!AR20 -> 0 | M19: 78
A20: =lista_alunos!H26 -> 0 | B20: 17 | C20: =campeonato!AO21 -> 0 | D20: =campeonato!B25 -> 0 | E20: =campeonato!A25 -> 17 | F20: =campeonato!AP21 -> 0 | G20: =campeonato!B25 -> 0 | H20: =campeonato!A25 -> 17 | I20: =campeonato!AQ21 -> 0 | J20: =campeonato!B25 -> 0 | K20: =campeonato!A25 -> 17 | L20: =campeonato!AR21 -> 0 | M20: 51
A21: =lista_alunos!H12 -> C | B21: 3 | C21: =campeonato!AO22 -> 0 | D21: =campeonato!B11 -> C | E21: =campeonato!A11 -> 3 | F21: =campeonato!AP22 -> 0 | G21: =campeonato!B11 -> C | H21: =campeonato!A11 -> 3 | I21: =campeonato!AQ22 -> 0 | J21: =campeonato!B11 -> C | K21: =campeonato!A11 -> 3 | L21: =campeonato!AR22 -> 0 | M21: 9
A22: =lista_alunos!H10 -> a | B22: 1 | C22: =campeonato!AO23 -> 0 | D22: =campeonato!B9 -> a | E22: =campeonato!A9 -> 1 | F22: =campeonato!AP23 -> 0 | G22: =campeonato!B9 -> a | H22: =campeonato!A9 -> 1 | I22: =campeonato!AQ23 -> 0 | J22: =campeonato!B9 -> a | K22: =campeonato!A9 -> 1 | L22: =campeonato!AR23 -> 0 | M22: 3
A23: =lista_alunos!H14 -> E | B23: 5 | C23: =campeonato!AO24 -> 0 | D23: =campeonato!B13 -> E | E23: =campeonato!A13 -> 5 | F23: =campeonato!AP24 -> 0 | G23: =campeonato!B13 -> E | H23: =campeonato!A13 -> 5 | I23: =campeonato!AQ24 -> 0 | J23: =campeonato!B13 -> E | K23: =campeonato!A13 -> 5 | L23: =campeonato!AR24 -> 0 | M23: 15
A24: =lista_alunos!H11 -> B | B24: 2 | C24: =campeonato!AO25 -> 0 | D24: =campeonato!B10 -> B | E24: =campeonato!A10 -> 2 | F24: =campeonato!AP25 -> 0 | G24: =campeonato!B10 -> B | H24: =campeonato!A10 -> 2 | I24: =campeonato!AQ25 -> 0 | J24: =campeonato!B10 -> B | K24: =campeonato!A10 -> 2 | L24: =campeonato!AR25 -> 0 | M24: 6
A25: =lista_alunos!H13 -> D | B25: 4 | C25: =campeonato!AO26 -> 0 | D25: =campeonato!B12 -> D | E25: =campeonato!A12 -> 4 | F25: =campeonato!AP26 -> 0 | G25: =campeonato!B12 -> D | H25: =campeonato!A12 -> 4 | I25: =campeonato!AQ26 -> 0 | J25: =campeonato!B12 -> D | K25: =campeonato!A12 -> 4 | L25: =campeonato!AR26 -> 0 | M25: 12
A26: =lista_alunos!H16 -> G | B26: 7 | C26: =campeonato!AO27 -> 0 | D26: =campeonato!B15 -> G | E26: =campeonato!A15 -> 7 | F26: =campeonato!AP27 -> 0 | G26: =campeonato!B15 -> G | H26: =campeonato!A15 -> 7 | I26: =campeonato!AQ27 -> 0 | J26: =campeonato!B15 -> G | K26: =campeonato!A15 -> 7 | L26: =campeonato!AR27 -> 0 | M26: 21
A27: =lista_alunos!H34 -> 0 | B27: 25 | C27: =campeonato!AO28 -> 0 | D27: =campeonato!B33 -> 0 | E27: =campeonato!A33 -> 25 | F27: =campeonato!AP28 -> 0 | G27: =campeonato!B27 -> 0 | H27: =campeonato!A27 -> 19 | I27: =campeonato!AQ28 -> 0 | J27: =campeonato!B33 -> 0 | K27: =campeonato!A33 -> 25 | L27: =campeonato!AR28 -> 0 | M27: 69
A28: =lista_alunos!H28 -> 0 | B28: 19 | C28: =campeonato!AO29 -> 0 | D28: =campeonato!B32 -> 0 | E28: =campeonato!A32 -> 24 | F28: =campeonato!AP29 -> 0 | G28: =campeonato!B28 -> 0 | H28: =campeonato!A28 -> 20 | I28: =campeonato!AQ29 -> 0 | J28: =campeonato!B32 -> 0 | K28: =campeonato!A32 -> 24 | L28: =campeonato!AR29 -> 0 | M28: 68
A29: =lista_alunos!H29 -> 0 | B29: 20 | C29: =campeonato!AO30 -> 0 | D29: =campeonato!B31 -> 0 | E29: =campeonato!A31 -> 23 | F29: =campeonato!AP30 -> 0 | G29: =campeonato!B29 -> 0 | H29: =campeonato!A29 -> 21 | I29: =campeonato!AQ30 -> 0 | J29: =campeonato!B31 -> 0 | K29: =campeonato!A31 -> 23 | L29: =campeonato!AR30 -> 0 | M29: 67
A30: =lista_alunos!H30 -> 0 | B30: 21 | C30: =campeonato!AO31 -> 0 | D30: =campeonato!B30 -> 0 | E30: =campeonato!A30 -> 22 | F30: =campeonato!AP31 -> 0 | G30: =campeonato!B30 -> 0 | H30: =campeonato!A30 -> 22 | I30: =campeonato!AQ31 -> 0 | J30: =campeonato!B30 -> 0 | K30: =campeonato!A30 -> 22 | L30: =campeonato!AR31 -> 0 | M30: 66
A31: =lista_alunos!H31 -> 0 | B31: 22 | C31: =campeonato!AO32 -> 0 | D31: =campeonato!B29 -> 0 | E31: =campeonato!A29 -> 21 | F31: =campeonato!AP32 -> 0 | G31: =campeonato!B31 -> 0 | H31: =campeonato!A31 -> 23 | I31: =campeonato!AQ32 -> 0 | J31: =campeonato!B29 -> 0 | K31: =campeonato!A29 -> 21 | L31: =campeonato!AR32 -> 0 | M31: 65
A32: =lista_alunos!H32 -> 0 | B32: 23 | C32: =campeonato!AO33 -> 0 | D32: =campeonato!B28 -> 0 | E32: =campeonato!A28 -> 20 | F32: =campeonato!AP33 -> 0 | G32: =campeonato!B32 -> 0 | H32: =campeonato!A32 -> 24 | I32: =campeonato!AQ33 -> 0 | J32: =campeonato!B28 -> 0 | K32: =campeonato!A28 -> 20 | L32: =campeonato!AR33 -> 0 | M32: 64
A33: =lista_alunos!H33 -> 0 | B33: 24 | C33: =campeonato!AO34 -> 0 | D33: =campeonato!B27 -> 0 | E33: =campeonato!A27 -> 19 | F33: =campeonato!AP34 -> 0 | G33: =campeonato!B33 -> 0 | H33: =campeonato!A33 -> 25 | I33: =campeonato!AQ34 -> 0 | J33: =campeonato!B27 -> 0 | K33: =campeonato!A27 -> 19 | L33: =campeonato!AR34 -> 0 | M33: 63
B38: JOGO 1 | H38: JOGO 2 | N38: JOGO 3 | S38: JOGO 4
C40: =LARGE(C8:C32,1) -> 0 | I40: =LARGE(F8:F32,1) -> 0 | O40: =LARGE(I8:I32,1) -> 0 | T40: =LARGE(L8:L32,1) -> 0
B41: =LARGE(C8:C32,2) -> 0 | C41: 1ºLugar | D41: =LARGE(C8:C32,3) -> 0 | H41: =LARGE(F8:F32,2) -> 0 | I41: 1ºLugar | J41: =LARGE(F8:F32,3) -> 0 | N41: =LARGE(I8:I32,2) -> 0 | O41: 1ºLugar | P41: =LARGE(I8:I32,3) -> 0 | S41: =LARGE(L8:L32,2) -> 0 | T41: 1ºLugar | U41: =LARGE(L8:L32,3) -> 0
B42: 2ºLugar | D42: 3ºLugar | F42: =LARGE(C8:C32,4) -> 0 | H42: 2ºLugar | J42: 3ºLugar | L42: =LARGE(F8:F32,4) -> 0 | N42: 2ºLugar | P42: 3ºLugar | Q42: =LARGE(I8:I32,4) -> 0 | S42: 2ºLugar | U42: 3ºLugar | V42: =LARGE(L8:L32,4) -> 0
E43: 4ºLugar | K43: 4ºLugar | Q43: 4ºLugar | V43: 4ºLugar

Sheet maio
A2: Jogos de maio
C6: maio
A7: Nome | B7: Ordem | C7: J33 | D7: Nome | E7: Ordem | F7: J34 | G7: Nome | H7: Ordem | I7: J35 | J7: Nome | K7: Ordem | L7: J36 | M7: Total
A8: =lista_alunos!H27 -> 0 | B8: 18 | C8: =campeonato!AT9 -> 0 | D8: =campeonato!B26 -> 0 | E8: =campeonato!A26 -> 18 | F8: =campeonato!AU9 -> 0 | G8: =campeonato!B26 -> 0 | H8: =campeonato!A26 -> 18 | I8: =campeonato!AV9 -> 0 | J8: =campeonato!B18 -> J | K8: =campeonato!A18 -> 10 | L8: =campeonato!AW9 -> 3 | M8: =SUM(C8:L8) -> 49
A9: =lista_alunos!H19 -> J | B9: 10 | C9: =campeonato!AT10 -> 0 | D9: =campeonato!B18 -> J | E9: =campeonato!A18 -> 10 | F9: =campeonato!AU10 -> 0 | G9: =campeonato!B18 -> J | H9: =campeonato!A18 -> 10 | I9: =campeonato!AV10 -> 0 | J9: =campeonato!B26 -> 0 | K9: =campeonato!A26 -> 18 | L9: =campeonato!AW10 -> 0 | M9: 38
A10: =lista_alunos!H24 -> P | B10: 15 | C10: =campeonato!AT11 -> 0 | D10: =campeonato!B23 -> P | E10: =campeonato!A23 -> 15 | F10: =campeonato!AU11 -> 0 | G10: =campeonato!B23 -> P | H10: =campeonato!A23 -> 15 | I10: =campeonato!AV11 -> 0 | J10: =campeonato!B23 -> P | K10: =campeonato!A23 -> 15 | L10: =campeonato!AW11 -> 0 | M10: 45
A11: =lista_alunos!H23 -> O | B11: 14 | C11: =campeonato!AT12 -> 0 | D11: =campeonato!B22 -> O | E11: =campeonato!A22 -> 14 | F11: =campeonato!AU12 -> 0 | G11: =campeonato!B22 -> O | H11: =campeonato!A22 -> 14 | I11: =campeonato!AV12 -> 0 | J11: =campeonato!B22 -> O | K11: =campeonato!A22 -> 14 | L11: =campeonato!AW12 -> 8 | M11: 50
A12: =lista_alunos!H22 -> N | B12: 13 | C12: =campeonato!AT13 -> 0 | D12: =campeonato!B21 -> N | E12: =campeonato!A21 -> 13 | F12: =campeonato!AU13 -> 0 | G12: =campeonato!B21 -> N | H12: =campeonato!A21 -> 13 | I12: =campeonato!AV13 -> 0 | J12: =campeonato!B21 -> N | K12: =campeonato!A21 -> 13 | L12: =campeonato!AW13 -> 0 | M12: 39
A13: =lista_alunos!H21 -> M | B13: 12 | C13: =campeonato!AT14 -> 0 | D13: =campeonato!B20 -> M | E13: =campeonato!A20 -> 12 | F13: =campeonato!AU14 -> 0 | G13: =campeonato!B20 -> M | H13: =campeonato!A20 -> 12 | I13: =campeonato!AV14 -> 0 | J13: =campeonato!B20 -> M | K13: =campeonato!A20 -> 12 | L13: =campeonato!AW14 -> 0 | M13: 36
A14: =lista_alunos!H20 -> L | B14: 11 | C14: =campeonato!AT15 -> 0 | D14: =campeonato!B19 -> L | E14: =campeonato!A19 -> 11 | F14: =campeonato!AU15 -> 0 | G14: =campeonato!B19 -> L | H14: =campeonato!A19 -> 11 | I14: =campeonato!AV15 -> 0 | J14: =campeonato!B19 -> L | K14: =campeonato!A19 -> 11 | L14: =campeonato!AW15 -> 0 | M14: 33
A15: =lista_alunos!H25 -> 0 | B15: 16 | C15: =campeonato!AT16 -> 0 | D15: =campeonato!B24 -> 0 | E15: =campeonato!A24 -> 16 | F15: =campeonato!AU16 -> 0 | G15: =campeonato!B24 -> 0 | H15: =campeonato!A24 -> 16 | I15: =campeonato!AV16 -> 0 | J15: =campeonato!B24 -> 0 | K15: =campeonato!A24 -> 16 | L15: =campeonato!AW16 -> 0 | M15: 48
A16: =lista_alunos!H17 -> H | B16: 8 | C16: =campeonato!AT17 -> 0 | D16: =campeonato!B16 -> H | E16: =campeonato!A16 -> 8 | F16: =campeonato!AU17 -> 0 | G16: =campeonato!B16 -> H | H16: =campeonato!A16 -> 8 | I16: =campeonato!AV17 -> 0 | J16: =campeonato!B16 -> H | K16: =campeonato!A16 -> 8 | L16: =campeonato!AW17 -> 0 | M16: 24
A17: =lista_alunos!H15 -> F | B17: 6 | C17: =campeonato!AT18 -> 0 | D17: =campeonato!B14 -> F | E17: =campeonato!A14 -> 6 | F17: =campeonato!AU18 -> 0 | G17: =campeonato!B14 -> F | H17: =campeonato!A14 -> 6 | I17: =campeonato!AV18 -> 0 | J17: =campeonato!B14 -> F | K17: =campeonato!A14 -> 6 | L17: =campeonato!AW18 -> 0 | M17: 18
A18: =lista_alunos!H18 -> I | B18: 9 | C18: =campeonato!AT19 -> 0 | D18: =campeonato!B17 -> I | E18: =campeonato!A17 -> 9 | F18: =campeonato!AU19 -> 0 | G18: =campeonato!B17 -> I | H18: =campeonato!A17 -> 9 | I18: =campeonato!AV19 -> 0 | J18: =campeonato!B17 -> I | K18: =campeonato!A17 -> 9 | L18: =campeonato!AW19 -> 0 | M18: 27
A19: =lista_alunos!H35 -> 0 | B19: 26 | C19: =campeonato!AT20 -> 0 | D19: =campeonato!B34 -> 0 | E19: =campeonato!A34 -> 26 | F19: =campeonato!AU20 -> 0 | G19: =campeonato!B34 -> 0 | H19: =campeonato!A34 -> 26 | I19: =campeonato!AV20 -> 0 | J19: =campeonato!B34 -> 0 | K19: =campeonato!A34 -> 26 | L19: =campeonato!AW20 -> 0 | M19: 78
A20: =lista_alunos!H26 -> 0 | B20: 17 | C20: =campeonato!AT21 -> 0 | D20: =campeonato!B25 -> 0 | E20: =campeonato!A25 -> 17 | F20: =campeonato!AU21 -> 0 | G20: =campeonato!B25 -> 0 | H20: =campeonato!A25 -> 17 | I20: =campeonato!AV21 -> 0 | J20: =campeonato!B25 -> 0 | K20: =campeonato!A25 -> 17 | L20: =campeonato!AW21 -> 0 | M20: 51
A21: =lista_alunos!H12 -> C | B21: 3 | C21: =campeonato!AT22 -> 0 | D21: =campeonato!B11 -> C | E21: =campeonato!A11 -> 3 | F21: =campeonato!AU22 -> 0 | G21: =campeonato!B11 -> C | H21: =campeonato!A11 -> 3 | I21: =campeonato!AV22 -> 0 | J21: =campeonato!B11 -> C | K21: =campeonato!A11 -> 3 | L21: =campeonato!AW22 -> 0 | M21: 9
A22: =lista_alunos!H10 -> a | B22: 1 | C22: =campeonato!AT23 -> 0 | D22: =campeonato!B9 -> a | E22: =campeonato!A9 -> 1 | F22: =campeonato!AU23 -> 0 | G22: =campeonato!B9 -> a | H22: =campeonato!A9 -> 1 | I22: =campeonato!AV23 -> 0 | J22: =campeonato!B9 -> a | K22: =campeonato!A9 -> 1 | L22: =campeonato!AW23 -> 0 | M22: 3
A23: =lista_alunos!H14 -> E | B23: 5 | C23: =campeonato!AT24 -> 0 | D23: =campeonato!B13 -> E | E23: =campeonato!A13 -> 5 | F23: =campeonato!AU24 -> 0 | G23: =campeonato!B13 -> E | H23: =campeonato!A13 -> 5 | I23: =campeonato!AV24 -> 0 | J23: =campeonato!B13 -> E | K23: =campeonato!A13 -> 5 | L23: =campeonato!AW24 -> 0 | M23: 15
A24: =lista_alunos!H11 -> B | B24: 2 | C24: =campeonato!AT25 -> 0 | D24: =campeonato!B10 -> B | E24: =campeonato!A10 -> 2 | F24: =campeonato!AU25 -> 0 | G24: =campeonato!B10 -> B | H24: =campeonato!A10 -> 2 | I24: =campeonato!AV25 -> 0 | J24: =campeonato!B10 -> B | K24: =campeonato!A10 -> 2 | L24: =campeonato!AW25 -> 0 | M24: 6
A25: =lista_alunos!H13 -> D | B25: 4 | C25: =campeonato!AT26 -> 0 | D25: =campeonato!B12 -> D | E25: =campeonato!A12 -> 4 | F25: =campeonato!AU26 -> 0 | G25: =campeonato!B12 -> D | H25: =campeonato!A12 -> 4 | I25: =campeonato!AV26 -> 0 | J25: =campeonato!B12 -> D | K25: =campeonato!A12 -> 4 | L25: =campeonato!AW26 -> 0 | M25: 12
A26: =lista_alunos!H16 -> G | B26: 7 | C26: =campeonato!AT27 -> 0 | D26: =campeonato!B15 -> G | E26: =campeonato!A15 -> 7 | F26: =campeonato!AU27 -> 0 | G26: =campeonato!B15 -> G | H26: =campeonato!A15 -> 7 | I26: =campeonato!AV27 -> 0 | J26: =campeonato!B15 -> G | K26: =campeonato!A15 -> 7 | L26: =campeonato!AW27 -> 0 | M26: 21
A27: =lista_alunos!H34 -> 0 | B27: 25 | C27: =campeonato!AT28 -> 0 | D27: =campeonato!B33 -> 0 | E27: =campeonato!A33 -> 25 | F27: =campeonato!AU28 -> 0 | G27: =campeonato!B27 -> 0 | H27: =campeonato!A27 -> 19 | I27: =campeonato!AV28 -> 0 | J27: =campeonato!B33 -> 0 | K27: =campeonato!A33 -> 25 | L27: =campeonato!AW28 -> 0 | M27: 69
A28: =lista_alunos!H28 -> 0 | B28: 19 | C28: =campeonato!AT29 -> 0 | D28: =campeonato!B32 -> 0 | E28: =campeonato!A32 -> 24 | F28: =campeonato!AU29 -> 0 | G28: =campeonato!B28 -> 0 | H28: =campeonato!A28 -> 20 | I28: =campeonato!AV29 -> 0 | J28: =campeonato!B32 -> 0 | K28: =campeonato!A32 -> 24 | L28: =campeonato!AW29 -> 0 | M28: 68
A29: =lista_alunos!H29 -> 0 | B29: 20 | C29: =campeonato!AT30 -> 0 | D29: =campeonato!B31 -> 0 | E29: =campeonato!A31 -> 23 | F29: =campeonato!AU30 -> 0 | G29: =campeonato!B29 -> 0 | H29: =campeonato!A29 -> 21 | I29: =campeonato!AV30 -> 0 | J29: =campeonato!B31 -> 0 | K29: =campeonato!A31 -> 23 | L29: =campeonato!AW30 -> 0 | M29: 67
A30: =lista_alunos!H30 -> 0 | B30: 21 | C30: =campeonato!AT31 -> 0 | D30: =campeonato!B30 -> 0 | E30: =campeonato!A30 -> 22 | F30: =campeonato!AU31 -> 0 | G30: =campeonato!B30 -> 0 | H30: =campeonato!A30 -> 22 | I30: =campeonato!AV31 -> 0 | J30: =campeonato!B30 -> 0 | K30: =campeonato!A30 -> 22 | L30: =campeonato!AW31 -> 0 | M30: 66
A31: =lista_alunos!H31 -> 0 | B31: 22 | C31: =campeonato!AT32 -> 0 | D31: =campeonato!B29 -> 0 | E31: =campeonato!A29 -> 21 | F31: =campeonato!AU32 -> 0 | G31: =campeonato!B31 -> 0 | H31: =campeonato!A31 -> 23 | I31: =campeonato!AV32 -> 0 | J31: =campeonato!B29 -> 0 | K31: =campeonato!A29 -> 21 | L31: =campeonato!AW32 -> 0 | M31: 65
A32: =lista_alunos!H32 -> 0 | B32: 23 | C32: =campeonato!AT33 -> 0 | D32: =campeonato!B28 -> 0 | E32: =campeonato!A28 -> 20 | F32: =campeonato!AU33 -> 0 | G32: =campeonato!B32 -> 0 | H32: =campeonato!A32 -> 24 | I32: =campeonato!AV33 -> 0 | J32: =campeonato!B28 -> 0 | K32: =campeonato!A28 -> 20 | L32: =campeonato!AW33 -> 0 | M32: 64
A33: =lista_alunos!H33 -> 0 | B33: 24 | C33: =campeonato!AT34 -> 0 | D33: =campeonato!B27 -> 0 | E33: =campeonato!A27 -> 19 | F33: =campeonato!AU34 -> 0 | G33: =campeonato!B33 -> 0 | H33: =campeonato!A33 -> 25 | I33: =campeonato!AV34 -> 0 | J33: =campeonato!B27 -> 0 | K33: =campeonato!A27 -> 19 | L33: =campeonato!AW34 -> 0 | M33: 63
B38: JOGO 1 | H38: JOGO 2 | N38: JOGO 3 | S38: JOGO 4
C40: =LARGE(C8:C32,1) -> 0 | I40: =LARGE(F8:F32,1) -> 0 | O40: =LARGE(I8:I32,1) -> 0 | T40: =LARGE(L8:L32,1) -> 8
B41: =LARGE(C8:C32,2) -> 0 | C41: 1ºLugar | D41: =LARGE(C8:C32,3) -> 0 | H41: =LARGE(F8:F32,2) -> 0 | I41: 1ºLugar | J41: =LARGE(F8:F32,3) -> 0 | N41: =LARGE(I8:I32,2) -> 0 | O41: 1ºLugar | P41: =LARGE(I8:I32,3) -> 0 | S41: =LARGE(L8:L32,2) -> 3 | T41: 1ºLugar | U41: =LARGE(L8:L32,3) -> 0
B42: 2ºLugar | D42: 3ºLugar | F42: =LARGE(C8:C32,4) -> 0 | H42: 2ºLugar | J42: 3ºLugar | L42: =LARGE(F8:F32,4) -> 0 | N42: 2ºLugar | P42: 3ºLugar | Q42: =LARGE(I8:I32,4) -> 0 | S42: 2ºLugar | U42: 3ºLugar | V42: =LARGE(L8:L32,4) -> 0
E43: 4ºLugar | K43: 4ºLugar | Q43: 4ºLugar | V43: 4ºLugar

Sheet junho
A2: Jogos de junho
C6: junho
A7: Nome | B7: Ordem | C7: J37 | D7: Nome | E7: Ordem | F7: J38 | G7: Nome | H7: Ordem | I7: J39 | J7: Nome | K7: Ordem | L7: J40 | M7: Total
A8: =lista_alunos!H35 -> 0 | B8: 26 | C8: =campeonato!AY9 -> 0 | D8: =campeonato!B19 -> L | E8: =campeonato!A19 -> 11 | F8: =campeonato!AZ9 -> 1 | G8: =campeonato!B26 -> 0 | H8: =campeonato!A26 -> 18 | I8: =campeonato!BA9 -> 4 | J8: =campeonato!B26 -> 0 | K8: =campeonato!A26 -> 18 | L8: =campeonato!BB9 -> 0 | M8: =SUM(C8:L8) -> 52
A9: =lista_alunos!H34 -> 0 | B9: 25 | C9: =campeonato!AY10 -> 0 | D9: =campeonato!B26 -> 0 | E9: =campeonato!A26 -> 18 | F9: =campeonato!AZ10 -> 0 | G9: =campeonato!B18 -> J | H9: =campeonato!A18 -> 10 | I9: =campeonato!BA10 -> 0 | J9: =campeonato!B18 -> J | K9: =campeonato!A18 -> 10 | L9: =campeonato!BB10 -> 0 | M9: 38
A10: =lista_alunos!H33 -> 0 | B10: 24 | C10: =campeonato!AY11 -> 0 | D10: =campeonato!B18 -> J | E10: =campeonato!A18 -> 10 | F10: =campeonato!AZ11 -> 0 | G10: =campeonato!B23 -> P | H10: =campeonato!A23 -> 15 | I10: =campeonato!BA11 -> 0 | J10: =campeonato!B23 -> P | K10: =campeonato!A23 -> 15 | L10: =campeonato!BB11 -> 0 | M10: 40
A11: =lista_alunos!H32 -> 0 | B11: 23 | C11: =campeonato!AY12 -> 0 | D11: =campeonato!B23 -> P | E11: =campeonato!A23 -> 15 | F11: =campeonato!AZ12 -> 0 | G11: =campeonato!B22 -> O | H11: =campeonato!A22 -> 14 | I11: =campeonato!BA12 -> 0 | J11: =campeonato!B22 -> O | K11: =campeonato!A22 -> 14 | L11: =campeonato!BB12 -> 0 | M11: 43
A12: =lista_alunos!H31 -> 0 | B12: 22 | C12: =campeonato!AY13 -> 0 | D12: =campeonato!B22 -> O | E12: =campeonato!A22 -> 14 | F12: =campeonato!AZ13 -> 0 | G12: =campeonato!B21 -> N | H12: =campeonato!A21 -> 13 | I12: =campeonato!BA13 -> 0 | J12: =campeonato!B21 -> N | K12: =campeonato!A21 -> 13 | L12: =campeonato!BB13 -> 0 | M12: 40
A13: =lista_alunos!H30 -> 0 | B13: 21 | C13: =campeonato!AY14 -> 0 | D13: =campeonato!B21 -> N | E13: =campeonato!A21 -> 13 | F13: =campeonato!AZ14 -> 0 | G13: =campeonato!B20 -> M | H13: =campeonato!A20 -> 12 | I13: =campeonato!BA14 -> 0 | J13: =campeonato!B20 -> M | K13: =campeonato!A20 -> 12 | L13: =campeonato!BB14 -> 0 | M13: 37
A14: =lista_alunos!H29 -> 0 | B14: 20 | C14: =campeonato!AY15 -> 0 | D14: =campeonato!B20 -> M | E14: =campeonato!A20 -> 12 | F14: =campeonato!AZ15 -> 16 | G14: =campeonato!B19 -> L | H14: =campeonato!A19 -> 11 | I14: =campeonato!BA15 -> 0 | J14: =campeonato!B19 -> L | K14: =campeonato!A19 -> 11 | L14: =campeonato!BB15 -> 0 | M14: 50
A15: =lista_alunos!H28 -> 0 | B15: 19 | C15: =campeonato!AY16 -> 0 | D15: =campeonato!B24 -> 0 | E15: =campeonato!A24 -> 16 | F15: =campeonato!AZ16 -> 0 | G15: =campeonato!B24 -> 0 | H15: =campeonato!A24 -> 16 | I15: =campeonato!BA16 -> 0 | J15: =campeonato!B24 -> 0 | K15: =campeonato!A24 -> 16 | L15: =campeonato!BB16 -> 0 | M15: 48
A16: =lista_alunos!H27 -> 0 | B16: 18 | C16: =campeonato!AY17 -> 0 | D16: =campeonato!B16 -> H | E16: =campeonato!A16 -> 8 | F16: =campeonato!AZ17 -> 0 | G16: =campeonato!B16 -> H | H16: =campeonato!A16 -> 8 | I16: =campeonato!BA17 -> 0 | J16: =campeonato!B16 -> H | K16: =campeonato!A16 -> 8 | L16: =campeonato!BB17 -> 0 | M16: 24
A17: =lista_alunos!H26 -> 0 | B17: 17 | C17: =campeonato!AY18 -> 0 | D17: =campeonato!B14 -> F | E17: =campeonato!A14 -> 6 | F17: =campeonato!AZ18 -> 0 | G17: =campeonato!B14 -> F | H17: =campeonato!A14 -> 6 | I17: =campeonato!BA18 -> 0 | J17: =campeonato!B14 -> F | K17: =campeonato!A14 -> 6 | L17: =campeonato!BB18 -> 0 | M17: 18
A18: =lista_alunos!H25 -> 0 | B18: 16 | C18: =campeonato!AY19 -> 0 | D18: =campeonato!B17 -> I | E18: =campeonato!A17 -> 9 | F18: =campeonato!AZ19 -> 0 | G18: =campeonato!B17 -> I | H18: =campeonato!A17 -> 9 | I18: =campeonato!BA19 -> 0 | J18: =campeonato!B17 -> I | K18: =campeonato!A17 -> 9 | L18: =campeonato!BB19 -> 0 | M18: 27
A19: =lista_alunos!H24 -> P | B19: 15 | C19: =campeonato!AY20 -> 0 | D19: =campeonato!B34 -> 0 | E19: =campeonato!A34 -> 26 | F19: =campeonato!AZ20 -> 0 | G19: =campeonato!B34 -> 0 | H19: =campeonato!A34 -> 26 | I19: =campeonato!BA20 -> 0 | J19: =campeonato!B34 -> 0 | K19: =campeonato!A34 -> 26 | L19: =campeonato!BB20 -> 0 | M19: 78
A20: =lista_alunos!H23 -> O | B20: 14 | C20: =campeonato!AY21 -> 0 | D20: =campeonato!B25 -> 0 | E20: =campeonato!A25 -> 17 | F20: =campeonato!AZ21 -> 0 | G20: =campeonato!B25 -> 0 | H20: =campeonato!A25 -> 17 | I20: =campeonato!BA21 -> 0 | J20: =campeonato!B25 -> 0 | K20: =campeonato!A25 -> 17 | L20: =campeonato!BB21 -> 0 | M20: 51
A21: =lista_alunos!H22 -> N | B21: 13 | C21: =campeonato!AY22 -> 0 | D21: =campeonato!B11 -> C | E21: =campeonato!A11 -> 3 | F21: =campeonato!AZ22 -> 0 | G21: =campeonato!B11 -> C | H21: =campeonato!A11 -> 3 | I21: =campeonato!BA22 -> 0 | J21: =campeonato!B11 -> C | K21: =campeonato!A11 -> 3 | L21: =campeonato!BB22 -> 0 | M21: 9
A22: =lista_alunos!H21 -> M | B22: 12 | C22: =campeonato!AY23 -> 0 | D22: =campeonato!B9 -> a | E22: =campeonato!A9 -> 1 | F22: =campeonato!AZ23 -> 0 | G22: =campeonato!B9 -> a | H22: =campeonato!A9 -> 1 | I22: =campeonato!BA23 -> 0 | J22: =campeonato!B9 -> a | K22: =campeonato!A9 -> 1 | L22: =campeonato!BB23 -> 0 | M22: 3
A23: =lista_alunos!H20 -> L | B23: 11 | C23: =campeonato!AY24 -> 0 | D23: =campeonato!B13 -> E | E23: =campeonato!A13 -> 5 | F23: =campeonato!AZ24 -> 0 | G23: =campeonato!B13 -> E | H23: =campeonato!A13 -> 5 | I23: =campeonato!BA24 -> 0 | J23: =campeonato!B13 -> E | K23: =campeonato!A13 -> 5 | L23: =campeonato!BB24 -> 0 | M23: 15
A24: =lista_alunos!H19 -> J | B24: 10 | C24: =campeonato!AY25 -> 0 | D24: =campeonato!B10 -> B | E24: =campeonato!A10 -> 2 | F24: =campeonato!AZ25 -> 0 | G24: =campeonato!B10 -> B | H24: =campeonato!A10 -> 2 | I24: =campeonato!BA25 -> 0 | J24: =campeonato!B10 -> B | K24: =campeonato!A10 -> 2 | L24: =campeonato!BB25 -> 0 | M24: 6
A25: =lista_alunos!H18 -> I | B25: 9 | C25: =campeonato!AY26 -> 0 | D25: =campeonato!B12 -> D | E25: =campeonato!A12 -> 4 | F25: =campeonato!AZ26 -> 0 | G25: =campeonato!B12 -> D | H25: =campeonato!A12 -> 4 | I25: =campeonato!BA26 -> 0 | J25: =campeonato!B12 -> D | K25: =campeonato!A12 -> 4 | L25: =campeonato!BB26 -> 0 | M25: 12
A26: =lista_alunos!H17 -> H | B26: 8 | C26: =campeonato!AY27 -> 0 | D26: =campeonato!B15 -> G | E26: =campeonato!A15 -> 7 | F26: =campeonato!AZ27 -> 0 | G26: =campeonato!B15 -> G | H26: =campeonato!A15 -> 7 | I26: =campeonato!BA27 -> 0 | J26: =campeonato!B15 -> G | K26: =campeonato!A15 -> 7 | L26: =campeonato!BB27 -> 0 | M26: 21
A27: =lista_alunos!H16 -> G | B27: 7 | C27: =campeonato!AY28 -> 0 | D27: =campeonato!B33 -> 0 | E27: =campeonato!A33 -> 25 | F27: =campeonato!AZ28 -> 0 | G27: =campeonato!B27 -> 0 | H27: =campeonato!A27 -> 19 | I27: =campeonato!BA28 -> 0 | J27: =campeonato!B33 -> 0 | K27: =campeonato!A33 -> 25 | L27: =campeonato!BB28 -> 0 | M27: 69
A28: =lista_alunos!H15 -> F | B28: 6 | C28: =campeonato!AY29 -> 0 | D28: =campeonato!B32 -> 0 | E28: =campeonato!A32 -> 24 | F28: =campeonato!AZ29 -> 0 | G28: =campeonato!B28 -> 0 | H28: =campeonato!A28 -> 20 | I28: =campeonato!BA29 -> 0 | J28: =campeonato!B32 -> 0 | K28: =campeonato!A32 -> 24 | L28: =campeonato!BB29 -> 0 | M28: 68
A29: =lista_alunos!H14 -> E | B29: 5 | C29: =campeonato!AY30 -> 0 | D29: =campeonato!B31 -> 0 | E29: =campeonato!A31 -> 23 | F29: =campeonato!AZ30 -> 0 | G29: =campeonato!B29 -> 0 | H29: =campeonato!A29 -> 21 | I29: =campeonato!BA30 -> 0 | J29: =campeonato!B31 -> 0 | K29: =campeonato!A31 -> 23 | L29: =campeonato!BB30 -> 0 | M29: 67
A30: =lista_alunos!H13 -> D | B30: 4 | C30: =campeonato!AY31 -> 0 | D30: =campeonato!B30 -> 0 | E30: =campeonato!A30 -> 22 | F30: =campeonato!AZ31 -> 0 | G30: =campeonato!B30 -> 0 | H30: =campeonato!A30 -> 22 | I30: =campeonato!BA31 -> 0 | J30: =campeonato!B30 -> 0 | K30: =campeonato!A30 -> 22 | L30: =campeonato!BB31 -> 0 | M30: 66
A31: =lista_alunos!H12 -> C | B31: 3 | C31: =campeonato!AY32 -> 0 | D31: =campeonato!B29 -> 0 | E31: =campeonato!A29 -> 21 | F31: =campeonato!AZ32 -> 0 | G31: =campeonato!B31 -> 0 | H31: =campeonato!A31 -> 23 | I31: =campeonato!BA32 -> 0 | J31: =campeonato!B29 -> 0 | K31: =campeonato!A29 -> 21 | L31: =campeonato!BB32 -> 0 | M31: 65
A32: =lista_alunos!H11 -> B | B32: 2 | C32: =campeonato!AY33 -> 0 | D32: =campeonato!B28 -> 0 | E32: =campeonato!A28 -> 20 | F32: =campeonato!AZ33 -> 0 | G32: =campeonato!B32 -> 0 | H32: =campeonato!A32 -> 24 | I32: =campeonato!BA33 -> 0 | J32: =campeonato!B28 -> 0 | K32: =campeonato!A28 -> 20 | L32: =campeonato!BB33 -> 0 | M32: 64
A33: =lista_alunos!H10 -> a | B33: 1 | C33: =campeonato!AY34 -> 0 | D33: =campeonato!B27 -> 0 | E33: =campeonato!A27 -> 19 | F33: =campeonato!AZ34 -> 0 | G33: =campeonato!B33 -> 0 | H33: =campeonato!A33 -> 25 | I33: =campeonato!BA34 -> 0 | J33: =campeonato!B27 -> 0 | K33: =campeonato!A27 -> 19 | L33: =campeonato!BB34 -> 0 | M33: 63
B38: JOGO 1 | H38: JOGO 2 | N38: JOGO 3 | S38: JOGO 4
C40: =LARGE(C8:C32,1) -> 0 | I40: =LARGE(F8:F32,1) -> 16 | O40: =LARGE(I8:I32,1) -> 4 | T40: =LARGE(L8:L32,1) -> 0
B41: =LARGE(C8:C32,2) -> 0 | C41: 1ºLugar | D41: =LARGE(C8:C32,3) -> 0 | H41: =LARGE(F8:F32,2) -> 1 | I41: 1ºLugar | J41: =LARGE(F8:F32,3) -> 0 | N41: =LARGE(I8:I32,2) -> 0 | O41: 1ºLugar | P41: =LARGE(I8:I32,3) -> 0 | S41: =LARGE(L8:L32,2) -> 0 | T41: 1ºLugar | U41: =LARGE(L8:L32,3) -> 0
B42: 2ºLugar | D42: 3ºLugar | F42: =LARGE(C8:C32,4) -> 0 | H42: 2ºLugar | J42: 3ºLugar | L42: =LARGE(F8:F32,4) -> 0 | N42: 2ºLugar | P42: 3ºLugar | Q42: =LARGE(I8:I32,4) -> 0 | S42: 2ºLugar | U42: 3ºLugar | V42: =LARGE(L8:L32,4) -> 0
E43: 4ºLugar | K43: 4ºLugar | Q43: 4ºLugar | V43: 4ºLugar

Sheet CLASSIF-PERÍODOS
B2: CLASSIFICAÇÃO POR PERÍODOS ESCOLARES
B6: PERÍODOS ESCOLARES
B8: NOME DO ALUNO | E8: 1º PERÍODO | H8: 2º PERÍODO | K8: 3ºPERÍODO
B10: =lista_alunos!H10 -> a | E10: =campeonato!L75 -> 325 | H10: =campeonato!O75 -> 43 | K10: =campeonato!R75 -> 8
B11: =lista_alunos!H11 -> B | E11: =campeonato!L76 -> 133 | H11: =campeonato!O76 -> 0 | K11: =campeonato!R76 -> 0
B12: =lista_alunos!H12 -> C | E12: =campeonato!L77 -> 266 | H12: =campeonato!O77 -> 26 | K12: =campeonato!R77 -> 0
B13: =lista_alunos!H13 -> D | E13: =campeonato!L78 -> 135 | H13: =campeonato!O78 -> 0 | K13: =campeonato!R78 -> 8
B14: =lista_alunos!H14 -> E | E14: =campeonato!L79 -> 370 | H14: =campeonato!O79 -> 7 | K14: =campeonato!R79 -> 0
B15: =lista_alunos!H15 -> F | E15: =campeonato!L80 -> 116 | H15: =campeonato!O80 -> 1 | K15: =campeonato!R80 -> 0
B16: =lista_alunos!H16 -> G | E16: =campeonato!L81 -> 105 | H16: =campeonato!O81 -> 43 | K16: =campeonato!R81 -> 16
B17: =lista_alunos!H17 -> H | E17: =campeonato!L82 -> 265 | H17: =campeonato!O82 -> 0 | K17: =campeonato!R82 -> 0
B18: =lista_alunos!H18 -> I | E18: =campeonato!L83 -> 185 | H18: =campeonato!O83 -> 0 | K18: =campeonato!R83 -> 0
B19: =lista_alunos!H19 -> J | E19: =campeonato!L84 -> 130 | H19: =campeonato!O84 -> 18 | K19: =campeonato!R84 -> 0
B20: =lista_alunos!H20 -> L | E20: =campeonato!L85 -> 24 | H20: =campeonato!O85 -> 0 | K20: =campeonato!R85 -> 0
B21: =lista_alunos!H21 -> M | E21: =campeonato!L86 -> 144 | H21: =campeonato!O86 -> 0 | K21: =campeonato!R86 -> 0
B22: =lista_alunos!H22 -> N | E22: =campeonato!L87 -> 273 | H22: =campeonato!O87 -> 21 | K22: =campeonato!R87 -> 0
B23: =lista_alunos!H23 -> O | E23: =campeonato!L88 -> 151 | H23: =campeonato!O88 -> 0 | K23: =campeonato!R88 -> 0
B24: =lista_alunos!H24 -> P | E24: =campeonato!L89 -> 303 | H24: =campeonato!O89 -> 80 | K24: =campeonato!R89 -> 0
B25: =lista_alunos!H25 -> 0 | E25: =campeonato!L90 -> 235 | H25: =campeonato!O90 -> 0 | K25: =campeonato!R90 -> 0
B26: =lista_alunos!H26 -> 0 | E26: =campeonato!L91 -> 203 | H26: =campeonato!O91 -> 0 | K26: =campeonato!R91 -> 0
B27: =lista_alunos!H27 -> 0 | E27: =campeonato!L92 -> 9 | H27: =campeonato!O92 -> 0 | K27: =campeonato!R92 -> 0
B28: =lista_alunos!H28 -> 0 | E28: =campeonato!L93 -> 9 | H28: =campeonato!O93 -> 0 | K28: =campeonato!R93 -> 0
B29: =lista_alunos!H29 -> 0 | E29: =campeonato!L94 -> 9 | H29: =campeonato!O94 -> 0 | K29: =campeonato!R94 -> 0
B30: =lista_alunos!H30 -> 0 | E30: =campeonato!L95 -> 9 | H30: =campeonato!O95 -> 0 | K30: =campeonato!R95 -> 0
B31: =lista_alunos!H31 -> 0 | E31: =campeonato!L96 -> 9 | H31: =campeonato!O96 -> 0 | K31: =campeonato!R96 -> 0
B32: =lista_alunos!H32 -> 0 | E32: =campeonato!L97 -> 9 | H32: =campeonato!O97 -> 0 | K32: =campeonato!R97 -> 0
B33: =lista_alunos!H33 -> 0 | E33: =campeonato!L98 -> 9 | H33: =campeonato!O98 -> 0 | K33: =campeonato!R98 -> 0
B34: =lista_alunos!H34 -> 0 | E34: =campeonato!L99 -> 9 | H34: =campeonato!O99 -> 0 | K34: =campeonato!R99 -> 0
B35: =lista_alunos!H35 -> 0 | E35: =campeonato!L100 -> 108 | H35: =campeonato!O100 -> 0 | K35: =campeonato!R100 -> 0
E51: 1º Período
E53: =LARGE(E10:G35,1) -> 370
B54: =LARGE(E10:G35,2) -> 325 | E54: 1º
B55: 2º | H55: =LARGE(E10:G35,3) -> 303
H56: 3º
K57: =LARGE(E10:G35,4) -> 273
K58: 4º
E65: 2º Período
E67: =LARGE(H10:J35,1) -> 80
B68: =LARGE(H10:J35,2) -> 43 | E68: 1º
B69: 2º | H69: =LARGE(H10:J35,3) -> 43
H70: 3º
K71: =LARGE(H10:J35,4) -> 26
K72: 4º
E78: 3º Período
E80: =LARGE(K10:M35,1) -> 16
B81: =LARGE(K10:M35,2) -> 8 | E81: 1º
B82: 2º | H82: =LARGE(K10:M35,3) -> 8
H83: 3º
K84: =LARGE(K10:M35,4) -> 0
K85: 4º
